Workbook

Sheet Sheet1
A1: qymc | B1: shxydm | C1: zczj | D1: currency | E1: zcsj | F1: fddbr | G1: legal_person_phone | H1: qylxr | I1: lxdh | J1: email | K1: cwfzr | L1: cwfzrdh | M1: zcdz | N1: jydz | O1: jyfw | P1: rd_investment | Q1: jg_investment | R1: zscqgs | S1: four_openness_amount | T1: four_transference_amount | U1: four_service_amount | V1: four_consult_amount | W1: settle_in_type | X1: entry_status | Y1: rzsj | Z1: wxmm | AA1: wxzt | AB1: is_business_account | AC1: create_time
A2: 江苏京华山一商业保理有限公司 | B2: 913200003216275096 | C2: 20000 | D2: 1 | E2: 2014-11-24 | F2: 时祥 | G2: 17712366278 | H2: =VLOOKUP(A2,'[1]合同信息 '!$F$1:$M$438,7,0) -> 时祥 | I2: =VLOOKUP(A2,'[1]合同信息 '!$F$1:$M$438,8,0) -> 13852598000 | J2: ada.sun@cpycf.com | M2: 无锡新区菱湖大道200号 | O2: 以受让应收账款的方式提供贸易融资;应收账款的收付结算、管理与催收;销售分户账管理;与本公司业务相关的信用风险担保;客户资信调查与评估;相关咨询服务。（依法须经批准的项目,经相关部门批准后方可开展经营活动） | W2: 在园 | X2: 2 | Z2: a0a475cf454cf9a06979034098167b9e | AA2: 启用 | AB2: 1 | AC2: now()
A3: 无锡微纳产业发展有限公司 | B3: 913202146829857231 | C3: 40000 | D3: 1 | E3: 2008-11-24 | F3: 杨渊斌 | G3: 0510-85388856 | H3: =VLOOKUP(A3,'[1]合同信息 '!$F$1:$M$438,7,0) ->  | I3: =VLOOKUP(A3,'[1]合同信息 '!$F$1:$M$438,8,0) ->  | J3: wre@wnd.gov.cn | M3: 无锡新吴区菱湖大道200-10 | O3: 许可项目:房地产开发经营（依法须经批准的项目,经相关部门批准后方可开展经营活动,具体经营项目以审批结果为准） 一般项目:园区管理服务;物业管理;非居住房地产租赁;以自有资金从事投资活动;创业投资（限投资未上市企业）;股权投资;自有资金投资的资产管理服务;科技中介服务;科技推广和应用服务;业务培训（不含教育培训、职业技能培训等需取得许可的培训）;信息咨询服务（不含许可类信息咨询服务）;信息技术咨询服务;企业管理咨询;广告设计、代理;广告制作;会议及展览服务（除依法须经批准的项目外,凭营业执照依法自主开展经营活动） | W3: 在园 | X3: 2 | Z3: a0a475cf454cf9a06979034098167b9e | AA3: 启用 | AB3: 1 | AC3: now()
A4: 中设国联无锡新能源发展有限公司 | B4: 91320214321157594X | C4: 47899.83 | D4: 1 | E4: 2014-11-04 | F4: 杨乐 | G4: 0510-85385355 | H4: =VLOOKUP(A4,'[1]合同信息 '!$F$1:$M$438,7,0) -> 杨乐 | I4: =VLOOKUP(A4,'[1]合同信息 '!$F$1:$M$438,8,0) -> 13771121286 | J4: 498885733@cmec-gl.com | M4: 无锡市新吴区菱湖大道200号中国传感网国际创新区A栋202 | O4: 新能源项目投资和管理;新能源系统工程的设计、安装和施工;新能源技术开发、技术咨询、技术服务;专用设备、通用设备的安装、销售;合同能源管理。（依法须经批准的项目,经相关部门批准后方可开展经营活动） | W4: 在园 | X4: 2 | Z4: a0a475cf454cf9a06979034098167b9e | AA4: 启用 | AB4: 1 | AC4: now()
A5: 无锡中科光电技术有限公司 | B5: 91320214579517104U | C5: 2031.4194 | D5: 1 | E5: 2011-08-02 | F5: 万学平 | G5: 0510-88570950 | H5: =VLOOKUP(A5,'[1]合同信息 '!$F$1:$M$438,7,0) -> 万学平 | I5: =VLOOKUP(A5,'[1]合同信息 '!$F$1:$M$438,8,0) -> 0510-88570950 | J5: sysinfo@cas-pe.com | M5: 无锡新吴区菱湖大道200号C座 | O5: 光机电一体化产品和相关软件的研究、开发、生产（限分支机构）、安装、销售;计算机软件开发、销售;系统集成;技术咨询、技术服务;自营和代理各类商品和技术的进出口业务;汽车（不含九座以下乘用车）技术开发、技术服务和销售。（依法须经批准的项目,经相关部门批准后方可开展经营活动） | W5: 在园 | X5: 2 | Z5: a0a475cf454cf9a06979034098167b9e | AA5: 启用 | AB5: 1 | AC5: now()
A6: 无锡英臻科技股份有限公司 | B6: 91320214693333296Q | C6: 6000 | D6: 1 | E6: 2009-08-07 | F6: 王辉 | G6: 0510-81816208 | H6: =VLOOKUP(A6,'[1]合同信息 '!$F$1:$M$438,7,0) ->  | I6: =VLOOKUP(A6,'[1]合同信息 '!$F$1:$M$438,8,0) ->  | J6: bei.huang@igen-tech.com | M6: 无锡市新吴区景贤路6号中国物联网国际创新园H4 | O6: 新能源开发管理（包括光伏、储能和用电侧管理）;计算机软硬件、电子产品、数码产品的技术开发、技术转让、技术咨询、技术服务、销售（不含专营、专控、专卖商品及限制项目）;计算机网络工程（除专项审批）;数据库及计算机网络服务;电子产品、无线网络设备、楼宇自动化设备和射频电子标签产品的研发、销售;嵌入式系统软件的开发、培训;应用软件服务;销售（含网上销售）、安装、调试自行研发的产品、计算机、软件及辅助设备、通讯设备;自营和代理各类商品及技术的进出口（国家限定公司经营或禁止进出口的商品和技术除外）;增值电信业务。（依法须经批准的项目,经相关部门批准后方可开展经营活动） 一般项目:电子元器件制造（除依法须经批准的项目外,凭营业执照依法自主开展经营活动） | W6: 在园 | X6: 2 | Z6: a0a475cf454cf9a06979034098167b9e | AA6: 启用 | AB6: 1 | AC6: now()
A7: 麦能新能源科技无锡有限公司 | B7: 91320213MA1MDD2M81 | C7: 1000 | D7: 1 | E7: 2015-12-28 | F7: 王辉 | G7: 0510-81816208 | H7: =VLOOKUP(A7,'[1]合同信息 '!$F$1:$M$438,7,0) ->  | I7: =VLOOKUP(A7,'[1]合同信息 '!$F$1:$M$438,8,0) ->  | J7: admin@igen-tech.com | M7: 无锡市新吴区菱湖大道200号F4 | O7: 一般项目：技术服务、技术开发、技术咨询、技术交流、技术转让、技术推广；光伏设备及元器件销售；物联网设备销售；光伏发电设备租赁；太阳能发电技术服务；软件开发；软件销售；信息技术咨询服务；广告制作；广告设计、代理；人工智能硬件销售（除依法须经批准的项目外，凭营业执照依法自主开展经营活动） | W7: 挂靠 | Z7: a0a475cf454cf9a06979034098167b9e | AA7: 禁用 | AB7: 0 | AC7: now()
A8: 无锡沃格自动化科技股份有限公司 | B8: 91320200050281007L | C8: 2350.1602 | D8: 1 | E8: 2012-08-09 | F8: 郑俭 | G8: 0510-81193060 | H8: =VLOOKUP(A8,'[1]合同信息 '!$F$1:$M$438,7,0) ->  | I8: =VLOOKUP(A8,'[1]合同信息 '!$F$1:$M$438,8,0) ->  | J8: Gina@novo-auto.com | M8: 无锡新区菱湖大道200号中国传感网国际创新园B栋222 | O8: 工业自动控制系统装置、机械设备的研发、装配及生产、销售;机械设备的安装、维修并提供技术咨询、技术服务;通用机械及配件、汽车零配件、电子元器件的销售;自营和代理各类商品及技术的进出口业务（国家限定企业经营或禁止进出口的商品和技术除外）。（依法须经批准的项目,经相关部门批准后方可开展经营活动） | W8: 异地生产 | Z8: a0a475cf454cf9a06979034098167b9e | AA8: 启用 | AB8: 1 | AC8: now()
A9: 江苏曼荼罗软件股份有限公司 | B9: 913202007635507481 | C9: 5892.0832 | D9: 1 | E9: 2004-06-09 | F9: 鲁冰青 | G9: 0510-82553099 | H9: =VLOOKUP(A9,'[1]合同信息 '!$F$1:$M$438,7,0) -> 陆艺 | I9: =VLOOKUP(A9,'[1]合同信息 '!$F$1:$M$438,8,0) -> 13915280061 | J9: sunjie@mandalat.com.cn | M9: 无锡新区菱湖大道200号创新园F区5号楼 | O9: 计算机软硬件的技术开发、技术服务、技术转让、技术咨询;计算机系统集成;自营和代理各类商品及技术的进出口业务（但国家限定企业经营或禁止进出口的商品及技术除外）。（依法须经批准的项目,经相关部门批准后方可开展经营活动） | W9: 在园 | X9: 2 | Z9: a0a475cf454cf9a06979034098167b9e | AA9: 启用 | AB9: 1 | AC9: now()
A10: 无锡麦臻信息咨询合伙企业（有限合伙） | B10: 91320214MA27D4UK3W | C10: 2632.5 | D10: 1 | E10: 2021-11-09 | F10: 华竹平 | G10: 0510-81816208 | H10: =VLOOKUP(A10,'[1]合同信息 '!$F$1:$M$438,7,0) ->  | I10: =VLOOKUP(A10,'[1]合同信息 '!$F$1:$M$438,8,0) ->  | J10: admin@igen-tech.com | M10: 无锡市新吴区菱湖大道200号F4 | O10: 一般项目:信息咨询服务（不含许可类信息咨询服务）;企业管理;企业管理咨询（除依法须经批准的项目外,凭营业执照依法自主开展经营活动） | W10: 挂靠 | Z10: a0a475cf454cf9a06979034098167b9e | AA10: 禁用 | AB10: 0 | AC10: now()
A11: 江苏艾特曼电子科技有限公司 | B11: 91320214053516342U | C11: 3100 | D11: 1 | E11: 2012-09-17 | F11: 李泽雍 | G11: 0510-81817004 | H11: =VLOOKUP(A11,'[1]合同信息 '!$F$1:$M$438,7,0) ->  | I11: =VLOOKUP(A11,'[1]合同信息 '!$F$1:$M$438,8,0) ->  | J11: hr@atmems.com | M11: 无锡新区菱湖大道200号国际创新园C楼辅楼 | O11: 晶圆级、系统级封装工艺开发;集成电路、MEMS微电子机械系统产品的工艺开发及产品销售;惯性、红外、压力、声学等传感器的测试平台及相关设备和软件的开发、技术服务;新型纺织材料的研发以及相关产品的制造、加工与销售;自营各类商品和技术的进出口业务（国家限定公司经营或禁止进出口的商品和技术除外）。（依法须经批准的项目,经相关部门批准后方可开展经营活动） | W11: 在园 | X11: 2 | Z11: a0a475cf454cf9a06979034098167b9e | AA11: 启用 | AB11: 1 | AC11: now()
A12: 无锡产发和生光科技创业投资合伙企业（有限合伙） | B12: 91320214MA2762515Y | C12: 20100 | D12: 1 | E12: 2021-09-30 | F12: 方正和生投资有限责任公司（委派代表 李尧琦） | G12: 13270131680 | H12: =VLOOKUP(A12,'[1]合同信息 '!$F$1:$M$438,7,0) ->  | I12: =VLOOKUP(A12,'[1]合同信息 '!$F$1:$M$438,8,0) ->  | J12: - | M12: 无锡市新吴区菱湖大道200号E1-202-34 | O12: 一般项目:创业投资（限投资未上市企业）;以私募基金从事股权投资、投资管理、资产管理等活动（须在中国证券投资基金业协会完成登记备案后方可从事经营活动）（除依法须经批准的项目外,凭营业执照依法自主开展经营活动） | W12: 挂靠 | Z12: a0a475cf454cf9a06979034098167b9e | AA12: 禁用 | AB12: 0 | AC12: now()
A13: 江苏宙斯物联网科技集团股份有限公司 | B13: 913202005823087688 | C13: 1400 | D13: 1 | E13: 2011-09-15 | F13: 顾东 | G13: 0510-82780056 | H13: =VLOOKUP(A13,'[1]合同信息 '!$F$1:$M$438,7,0) ->  | I13: =VLOOKUP(A13,'[1]合同信息 '!$F$1:$M$438,8,0) ->  | J13: zhouyan@cyberinco.com | M13: 无锡新区太湖国际科技园菱湖大道200号中国传感网国际创新园E幢 | O13: 许可项目:第一类增值电信业务;第二类增值电信业务;在线数据处理与交易处理业务（经营类电子商务）;互联网直播技术服务;互联网信息服务（依法须经批准的项目,经相关部门批准后方可开展经营活动,具体经营项目以审批结果为准）一般项目:物联网应用服务;物联网技术服务;物联网技术研发;物联网设备销售;物联网设备制造;通信设备制造;计算机软硬件及辅助设备零售;数字技术服务;软件开发;技术服务、技术开发、技术咨询、技术交流、技术转让、技术推广;信息系统集成服务;软件销售;信息咨询服务（不含许可类信息咨询服务）;数字内容制作服务（不含出版发行）;互联网数据服务;互联网销售（除销售需要许可的商品）;广告制作;广告设计、代理;广告发布;数字广告制作;数字广告设计、代理;数字广告发布;经济贸易咨询;国内贸易代理;代驾服务;机动车驾驶员培训;单用途商业预付卡代理销售;日用口罩（非医用）销售;汽车装饰用品销售;日用杂品销售;日用品销售;玩具销售;文具用品零售;办公用品销售;箱包销售;鞋帽零售;服装服饰零售;新鲜蔬菜零售;新鲜水果零售;食品互联网销售（仅销售预包装食品）;食品销售（仅销售预包装食品）;日用陶瓷制品销售;工艺美术品及礼仪用品销售（象牙及其制品除外）;体育用品及器材零售;塑料制品销售;金属材料销售;日用玻璃制品销售;仪器仪表销售;电工仪器仪表销售;五金产品零售;橡胶制品销售;化工产品销售（不含许可类化工产品）;建筑材料销售（除依法须经批准的项目外,凭营业执照依法自主开展经营活动） | W13: 挂靠 | Z13: a0a475cf454cf9a06979034098167b9e | AA13: 禁用 | AB13: 0 | AC13: now()
A14: 无锡昌德微电子股份有限公司 | B14: 91320200240501154L | C14: 2000 | D14: 1 | E14: 1995-12-04 | F14: 黄昌民 | G14: 13906192675 | H14: =VLOOKUP(A14,'[1]合同信息 '!$F$1:$M$438,7,0) -> 黄昌民 | I14: =VLOOKUP(A14,'[1]合同信息 '!$F$1:$M$438,8,0) -> 13706197971 | J14: hchangmin@cdwdz.com | M14: 无锡市新吴区菱湖大道200号中国物联网国家创新园E1栋901 | O14: 集成电路、半导体分立器件、电力电子元器件的设计、销售;机电一体化产品的销售;机械设备租赁（不含融资租赁）;自营和代理各类商品及技术的进出口业务（国家限定企业经营或禁止进出口的商品和技术除外）。（依法须经批准的项目,经相关部门批准后方可开展经营活动） | W14: 在园 | X14: 2 | Z14: a0a475cf454cf9a06979034098167b9e | AA14: 启用 | AB14: 1 | AC14: now()
A15: 艾普柯微电子（江苏）有限公司 | B15: 9131000058521410XD | C15: 1771.0714 | D15: 1 | E15: 2011-10-25 | F15: 李碧洲 | G15: 0510-85221033 | H15: =VLOOKUP(A15,'[1]合同信息 '!$F$1:$M$438,7,0) -> 李碧洲 | I15: =VLOOKUP(A15,'[1]合同信息 '!$F$1:$M$438,8,0) -> 18621367698 | J15: yichen_dong@epticore.com | M15: 无锡市新吴区菱湖大道200-5号楼5层 | O15: 集成电路及相关电子产品、仪器仪表的设计、研发、销售,并提供相关的技术咨询、技术服务,从事货物及技术的进出口业务。（依法须经批准的项目,经相关部门批准后方可开展经营活动） | W15: 在园 | X15: 2 | Z15: a0a475cf454cf9a06979034098167b9e | AA15: 启用 | AB15: 1 | AC15: now()
A16: 无锡汉咏科技股份有限公司 | B16: 91320200551184029Y | C16: 3695 | D16: 1 | E16: 2010-02-25 | F16: 王茂坚 | G16: 18921519216 | H16: =VLOOKUP(A16,'[1]合同信息 '!$F$1:$M$438,7,0) ->  | I16: =VLOOKUP(A16,'[1]合同信息 '!$F$1:$M$438,8,0) ->  | J16: hybusi@heyoov.com | M16: 无锡菱湖大道200号中国传感网国际创新园G1-608号 | O16: 计算机软件、物联网技术的开发、技术转让、技术咨询、技术服务;信息系统集成服务;建筑工程设计;工程项目管理服务;电子产品、通讯及广播电视设备（不含卫星广播电视地面接收设施及发射装置）、计算机软硬件及辅助设备的研发及销售;从事经营性互联网文化活动;网络游戏研发生产、网络游戏上网运营、网络游戏虚拟货币发行;自营和代理各类商品及技术的进出口业务,但国家限定企业经营或禁止进出口的商品和技术除外;经营电信业务（按许可证所列范围确定）;设计、制作、代理和发布各类广告。（依法须经批准的项目,经相关部门批准后方可开展经营活动） | W16: 挂靠 | Z16: a0a475cf454cf9a06979034098167b9e | AA16: 禁用 | AB16: 0 | AC16: now()
A17: 无锡兰霖网络科技有限公司 | B17: 91320213691345656N | C17: 300 | D17: 1 | E17: 2009-07-02 | F17: 邵伟 | G17: 0510-81022267 | H17: =VLOOKUP(A17,'[1]合同信息 '!$F$1:$M$438,7,0) ->  | I17: =VLOOKUP(A17,'[1]合同信息 '!$F$1:$M$438,8,0) ->  | J17: 408714302@qq.com | M17: 无锡市新吴区菱湖大道200号G1-1002 | O17: 电子产品、通信器材的设计和销售;计算机系统集成;计算机软硬件、农产品、食品的销售;机械设备出租;互联网上从事各类商品的销售（不含许可项目）;网络平台、网络技术的开发;软件开发;技术开发、技术转让、技术咨询、技术服务;互联网信息服务。（依法须经批准的项目,经相关部门批准后方可开展经营活动） | W17: 挂靠 | Z17: a0a475cf454cf9a06979034098167b9e | AA17: 禁用 | AB17: 0 | AC17: now()
A18: 江苏中科物联网科技创业投资有限公司 | B18: 913202145592540282 | C18: 20000 | D18: 1 | E18: 2010-07-14 | F18: 栾年生 | G18: 0510-85383398 | H18: =VLOOKUP(A18,'[1]合同信息 '!$F$1:$M$438,7,0) ->  | I18: =VLOOKUP(A18,'[1]合同信息 '!$F$1:$M$438,8,0) ->  | J18: 1458394262@qq.com | M18: 无锡新区太湖国际科技园菱湖大道200号微纳传感网国际创新园C楼 | O18: 创业投资业务;代理其他创业投资企业等机构或个人的创业投资业务;创业投资咨询业务;为创业企业提供管理服务业务;参与设立创业投资企业与创业投资管理顾问机构。（依法须经批准的项目,经相关部门批准后方可开展经营活动） | W18: 在园 | X18: 2 | Z18: a0a475cf454cf9a06979034098167b9e | AA18: 启用 | AB18: 1 | AC18: now()
A19: 无锡优拓信息技术股份有限公司 | B19: 913202005781199569 | C19: 1000 | D19: 1 | E19: 2011-06-30 | F19: 李宝麟 | G19: 025-85383079 | H19: =VLOOKUP(A19,'[1]合同信息 '!$F$1:$M$438,7,0) ->  | I19: =VLOOKUP(A19,'[1]合同信息 '!$F$1:$M$438,8,0) ->  | J19: liuyuanyuan@you2game.com | M19: 无锡新区太湖国际科技园菱湖大道200号中国传感网国际创新园E幢 | O19: 计算机软硬件的技术开发、技术咨询、技术服务、技术转让;培训服务（不含发证、不含国家统一认可的职业证书类培训）;以服务外包方式从事计算机开发;电子产品、通讯产品（不含卫星电视广播地面接收设施）的销售;自营和代理各类商品及技术的进出口（国家限定企业经营或禁止进出口的商品和技术除外）;利用信息网络经营游戏产品;增值电信业务（凭有效许可证经营）。（依法须经批准的项目,经相关部门批准后方可开展经营活动） | W19: 挂靠 | Z19: a0a475cf454cf9a06979034098167b9e | AA19: 禁用 | AB19: 0 | AC19: now()
A20: 无锡创微创业投资合伙企业（有限合伙） | B20: 91320214MA25Q2R208 | C20: 8000 | D20: 1 | E20: 2021-04-15 | F20: 无锡高新技术创业投资股份有限公司（委派代表 戴新） | G20: 0510-85069508 | H20: =VLOOKUP(A20,'[1]合同信息 '!$F$1:$M$438,7,0) ->  | I20: =VLOOKUP(A20,'[1]合同信息 '!$F$1:$M$438,8,0) ->  | J20: lwy@wxvc.com.cn | M20: 无锡市新吴区菱湖大道200-10（E1）栋202-26 | O20: 一般项目:创业投资（限投资未上市企业）（除依法须经批准的项目外,凭营业执照依法自主开展经营活动） | W20: 挂靠 | Z20: a0a475cf454cf9a06979034098167b9e | AA20: 禁用 | AB20: 0 | AC20: now()
A21: 华英证券有限责任公司 | B21: 91320214717884755C | C21: 20000 | D21: 1 | E21: 2011-04-20 | F21: 葛小波 | G21: 0510-85200510 | H21: =VLOOKUP(A21,'[1]合同信息 '!$F$1:$M$438,7,0) -> 葛小波 | I21: =VLOOKUP(A21,'[1]合同信息 '!$F$1:$M$438,8,0) -> 13812536001 | J21: office@huayingsc.com | M21: 无锡市新吴区菱湖大道200号中国物联网国际创新园F12栋 | O21: 许可项目:证券业务;债券市场业务（依法须经批准的项目,经相关部门批准后方可开展经营活动,具体经营项目以审批结果为准） 一般项目:证券财务顾问服务（除依法须经批准的项目外,凭营业执照依法自主开展经营活动） | W21: 在园 | X21: 2 | Z21: a0a475cf454cf9a06979034098167b9e | AA21: 启用 | AB21: 1 | AC21: now()
A22: 无锡布里渊电子科技有限公司 | B22: 91320211313880491L | C22: 1000 | D22: 1 | E22: 2014-08-22 | F22: 韦波 | G22: 18861501932 | H22: =VLOOKUP(A22,'[1]合同信息 '!$F$1:$M$438,7,0) -> 韦波 | I22: =VLOOKUP(A22,'[1]合同信息 '!$F$1:$M$438,8,0) -> 18626352029 | J22: wb@buliyuan.com | M22: 无锡市新吴区菱湖大道200号B401 | O22: 一般项目：技术服务、技术开发、技术咨询、技术交流、技术转让、技术推广；电子产品销售；仪器仪表制造；仪器仪表销售；智能仪器仪表制造；智能仪器仪表销售；软件开发；软件销售；专用设备制造（不含许可类专业设备制造）；工业控制计算机及系统制造；工业控制计算机及系统销售；工业自动控制系统装置制造；工业自动控制系统装置销售；安防设备制造；安防设备销售；工程和技术研究和试验发展；安全系统监控服务；家用电器销售；家用电器研发；家用电器制造；计算机软硬件及外围设备制造；物联网应用服务；物联网技术研发；物联网技术服务；物联网设备制造；物联网设备销售；工业互联网数据服务；通信设备制造；互联网销售（除销售需要许可的商品）（除依法须经批准的项目外，凭营业执照依法自主开展经营活动） | W22: 在园 | X22: 2 | Z22: a0a475cf454cf9a06979034098167b9e | AA22: 启用 | AB22: 1 | AC22: now()
A23: 无锡中科聚蓝企业管理咨询合伙企业（有限合伙） | B23: 91320214MA254NQD1N | C23: 6285.0623 | D23: 1 | E23: 2021-01-27 | F23: 无锡爱蓝企业管理咨询有限公司 | G23: 0510-88570960 | H23: =VLOOKUP(A23,'[1]合同信息 '!$F$1:$M$438,7,0) ->  | I23: =VLOOKUP(A23,'[1]合同信息 '!$F$1:$M$438,8,0) ->  | J23: sysinfo@cas-pe.com | M23: 无锡市新吴区菱湖大道200号E1-202-21 | O23: 一般项目：企业管理咨询；企业管理（除依法须经批准的项目外，凭营业执照依法自主开展经营活动） | W23: 挂靠 | Z23: a0a475cf454cf9a06979034098167b9e | AA23: 禁用 | AB23: 0 | AC23: now()
A24: 无锡众臻信息咨询合伙企业（有限合伙） | B24: 91320200MA1MHN3W5R | C24: 160 | D24: 1 | E24: 2016-04-08 | F24: 王辉 | G24: 0510-81816208 | H24: =VLOOKUP(A24,'[1]合同信息 '!$F$1:$M$438,7,0) ->  | I24: =VLOOKUP(A24,'[1]合同信息 '!$F$1:$M$438,8,0) ->  | J24: admin@igen-tech.com | M24: 无锡市新吴区菱湖大道200号F4 | O24: 贸易咨询;企业管理咨询。（依法须经批准的项目,经相关部门批准后方可开展经营活动） | W24: 挂靠 | Z24: a0a475cf454cf9a06979034098167b9e | AA24: 禁用 | AB24: 0 | AC24: now()
A25: 无锡优顺能源开发科技有限公司 | B25: 91320206MA1MNUUG8G | C25: 1000 | D25: 1 | E25: 2016-06-29 | F25: 傅坚 | G25: 0510-88250630 | H25: =VLOOKUP(A25,'[1]合同信息 '!$F$1:$M$438,7,0) ->  | I25: =VLOOKUP(A25,'[1]合同信息 '!$F$1:$M$438,8,0) ->  | J25: 13764444166@163.com | M25: 无锡市新吴区菱湖大道200号E2-103-1108 | O25: 从事电子科技领域内的技术开发、技术服务、技术咨询、技术转让；太阳能组件、太阳能电池用浆料、电池片、电子材料、光伏产品及系统的研发、技术咨询、销售；新能源电站项目的开发、设计、建设、管理、咨询、服务；利用自有资金对新能源电站项目进行投资；合同能源管理；光伏系统检测仪器、清洁设备、节能环保设备的研发及销售；新能源系统、智能检测系统、电动汽车充电设备、智能终端产品、无线网络技术、无线传感设备、无线网络设备、自动控制设备、物联网技术、物联网系统软件及设备的研发、设计、咨询、销售、及维护；新能源电站设备的系统集成和组装；光伏设备及元器件的制造以及销售；自营和代理各类商品及技术的进出口业务（国家限定企业经营或禁止进出口的商品和技术除外）。（依法须经批准的项目，经相关部门批准后方可开展经营活动） | W25: 挂靠 | Z25: a0a475cf454cf9a06979034098167b9e | AA25: 禁用 | AB25: 0 | AC25: now()
A26: 中智物联技术有限公司 | B26: 913202146700269393 | C26: 20000 | D26: 1 | E26: 2008-01-15 | F26: 谢忠信 | G26: 0755-86926868 | H26: =VLOOKUP(A26,'[1]合同信息 '!$F$1:$M$438,7,0) ->  | I26: =VLOOKUP(A26,'[1]合同信息 '!$F$1:$M$438,8,0) ->  | J26: gsnb@szkwrobot.com | M26: 无锡市新区菱湖大道200号中国传感网国际创新园F4 | O26: 基于物联网系统的软硬件设计、开发、销售和系统承包；从事电子软硬件产品和计算机软硬件产品、移动通讯设备、自动识别产品、射频识别系统及产品、移动手持终端产品、自动化网络设备及系统的开发、设计、销售、集成、科技及商业信息咨询服务。（依法须经批准的项目，经相关部门批准后方可开展经营活动） | W26: 挂靠 | Z26: a0a475cf454cf9a06979034098167b9e | AA26: 禁用 | AB26: 0 | AC26: now()
A27: 无锡国联产业升级投资中心（有限合伙） | B27: 91320200MA1Q24E11H | C27: 50000 | D27: 1 | E27: 2017-08-08 | F27: 无锡国联产业投资私募基金管理有限公司 | G27: 0510-85185760 | H27: =VLOOKUP(A27,'[1]合同信息 '!$F$1:$M$438,7,0) ->  | I27: =VLOOKUP(A27,'[1]合同信息 '!$F$1:$M$438,8,0) ->  | J27: info@glxcpe.com | M27: 无锡市新吴区菱湖大道200号中国传感网国际创新园E2-103 | O27: 利用自有资金对外投资。（依法须经批准的项目,经相关部门批准后方可开展经营活动）。 | W27: 挂靠 | Z27: a0a475cf454cf9a06979034098167b9e | AA27: 禁用 | AB27: 0 | AC27: now()
A28: 中城智慧科技有限公司 | B28: 91320213302071373J | C28: 12222 | D28: 1 | E28: 2014-05-24 | F28: 聂明 | G28: 021-60875668 | H28: =VLOOKUP(A28,'[1]合同信息 '!$F$1:$M$438,7,0) -> 聂明 | I28: =VLOOKUP(A28,'[1]合同信息 '!$F$1:$M$438,8,0) -> 13901208876 | J28: zonghe@zcsmart.com | M28: 无锡新吴区菱湖大道200号中国传感网国际创新园D2-307 | O28: 智能卡的开发、系统集成、技术咨询和技术转让;POS机及银行终端机具的研发并提供技术服务;通用设备及配件、五金产品、仪器仪表、电气机械及器材、电子产品、物联网产品、通信设备（不含卫星广播电视地面接收设施及发射装置）的销售;自营和代理各类商品和技术的进出口业务（国家限定企业经营或禁止进出口的商品和技术除外）;区块链技术开发与应用、推广;数据处理和分析;软件开发与推广;云计算技术的研发、转让、咨询、服务;物联网技术研发;智能终端设备研发、设计和销售。（依法须经批准的项目,经相关部门批准后方可开展经营活动）许可项目:第二类增值电信业务;电气安装服务（依法须经批准的项目,经相关部门批准后方可开展经营活动,具体经营项目以审批结果为准） | W28: 在园 | X28: 2 | Z28: a0a475cf454cf9a06979034098167b9e | AA28: 启用 | AB28: 1 | AC28: now()
A29: 华景传感科技（无锡）有限公司 | B29: 91320211553790065B | C29: 3602.9768 | D29: 1 | E29: 2010-04-09 | F29: 缪建民 | G29: 0510-85622282 | H29: =VLOOKUP(A29,'[1]合同信息 '!$F$1:$M$438,7,0) -> 吴亮 | I29: =VLOOKUP(A29,'[1]合同信息 '!$F$1:$M$438,8,0) -> 15161695069 | J29: qiugz@svsens.com | M29: 无锡市新吴区菱湖大道200号中国传感网国际创新园F2 | O29: 传感设备的研发、生产、制造;物联网的技术开发、技术咨询、技术服务、技术转让;自营和代理各类商品及技术的进出口业务（国家限定企业经营或禁止进出口的商品和技术除外）。（依法须经批准的项目,经相关部门批准后方可开展经营活动） | W29: 在园 | X29: 2 | Z29: a0a475cf454cf9a06979034098167b9e | AA29: 启用 | AB29: 1 | AC29: now()
A30: 无锡国联产业投资私募基金管理有限公司 | B30: 9132021479331907XR | C30: 120000 | D30: 1 | E30: 2006-09-21 | F30: 郭秉宇 | G30: 0510-82830019 | H30: =VLOOKUP(A30,'[1]合同信息 '!$F$1:$M$438,7,0) ->  | I30: =VLOOKUP(A30,'[1]合同信息 '!$F$1:$M$438,8,0) ->  | J30: info@wuxicapital.com.cn | M30: 无锡市新吴区菱湖大道200号中国传感网国际创新园E1-202 | O30: 一般项目:私募股权投资基金管理、创业投资基金管理服务（须在中国证券投资基金业协会完成登记备案后方可从事经营活动）;创业投资（限投资未上市企业）;以自有资金从事投资活动;以私募基金从事股权投资、投资管理、资产管理等活动（须在中国证券投资基金业协会完成登记备案后方可从事经营活动）（除依法须经批准的项目外,凭营业执照依法自主开展经营活动） | W30: 挂靠 | Z30: a0a475cf454cf9a06979034098167b9e | AA30: 禁用 | AB30: 0 | AC30: now()
A31: 无锡国联浚源创业投资中心（有限合伙） | B31: 91320200553819024U | C31: 28200 | D31: 1 | E31: 2010-04-16 | F31: 厦门浚源创业投资基金管理合伙企业（有限合伙） | G31: 0510-82700340 | H31: =VLOOKUP(A31,'[1]合同信息 '!$F$1:$M$438,7,0) ->  | I31: =VLOOKUP(A31,'[1]合同信息 '!$F$1:$M$438,8,0) ->  | J31: dingjt@jycapital.cn | M31: 无锡市新吴区菱湖大道200号中国传感网国际创新园E2-103 | O31: 创业投资业务;创业投资咨询业务;为创业企业提供创业管理服务业务;参与设立创业投资企业与创业投资管理顾问机构。（依法须经批准的项目,经相关部门批准后方可开展经营活动） | W31: 挂靠 | Z31: a0a475cf454cf9a06979034098167b9e | AA31: 禁用 | AB31: 0 | AC31: now()
A32: 无锡高新人才发展集团有限公司 | B32: 913202147333033751 | C32: 5000 | D32: 1 | E32: 2001-11-28 | F32: 严茵 | G32: 0510-85213833 | H32: =VLOOKUP(A32,'[1]合同信息 '!$F$1:$M$438,7,0) -> 朱晓燕 | I32: =VLOOKUP(A32,'[1]合同信息 '!$F$1:$M$438,8,0) -> 15052250111 | J32: zxy@nchr.com.cn | M32: 无锡新吴区菱湖大道200号中国传感网国际创新园A楼402室 | O32: 许可项目:职业中介活动;第二类增值电信业务（依法须经批准的项目,经相关部门批准后方可开展经营活动,具体经营项目以审批结果为准） 一般项目:人力资源服务（不含职业中介活动、劳务派遣服务）;社会经济咨询服务;市场调查;健康咨询服务（不含诊疗服务）;劳务服务（不含劳务派遣）;生产线管理服务;承接档案服务外包;信息咨询服务（不含许可类信息咨询服务）;会议及展览服务;市场营销策划;企业管理咨询;安全咨询服务;企业管理;单位后勤管理服务;法律咨询（不含依法须律师事务所执业许可的业务）;广告设计、代理;广告制作;商务代理代办服务;采购代理服务;组织文化艺术交流活动;数据处理服务;计算机系统服务;技术服务、技术开发、技术咨询、技术交流、技术转让、技术推广;科技推广和应用服务;数据处理和存储支持服务;信息技术咨询服务;软件外包服务;软件开发;信息系统集成服务;信息系统运行维护服务;园区管理服务（除依法须经批准的项目外,凭营业执照依法自主开展经营活动） | W32: 在园 | X32: 2 | Z32: a0a475cf454cf9a06979034098167b9e | AA32: 启用 | AB32: 1 | AC32: now()
A33: 尚贤谷物联网投资管理（无锡）有限公司 | B33: 91320214MA26AB190E | C33: 20000 | D33: 1 | E33: 2021-06-17 | F33: 许天 | G33: 0510-85368770 | H33: =VLOOKUP(A33,'[1]合同信息 '!$F$1:$M$438,7,0) ->  | I33: =VLOOKUP(A33,'[1]合同信息 '!$F$1:$M$438,8,0) ->  | J33: jiangli@wiotipc.org.cn | M33: 无锡市新吴区菱湖大道200号E1-901 | O33: 一般项目:私募股权投资基金管理、创业投资基金管理服务（须在中国证券投资基金业协会完成登记备案后方可从事经营活动）;自有资金投资的资产管理服务;股权投资;以自有资金从事投资活动;创业投资（限投资未上市企业）;市场调查（不含涉外调查）;企业管理咨询（除依法须经批准的项目外,凭营业执照依法自主开展经营活动） | W33: 挂靠 | Z33: a0a475cf454cf9a06979034098167b9e | AA33: 禁用 | AB33: 0 | AC33: now()
A34: 澳盛投资管理（无锡）有限公司 | B34: 913202145969880205 | C34: 1500 | D34: 1 | E34: 2012-06-19 | F34: 马晓微 | G34: 0510-66055077 | H34: =VLOOKUP(A34,'[1]合同信息 '!$F$1:$M$438,7,0) ->  | I34: =VLOOKUP(A34,'[1]合同信息 '!$F$1:$M$438,8,0) ->  | J34: 365743951@qq.com | M34: 无锡新区菱湖大道200号A座3层 | O34: 智能交通、物联网、电子商务、软件开发、新材料、环保、节能、新能源、软件及服务外包、国内外领先技术项目的商务咨询、投资咨询、投资管理。（依法须经批准的项目,经相关部门批准后方可开展经营活动） | W34: 挂靠 | Z34: a0a475cf454cf9a06979034098167b9e | AA34: 禁用 | AB34: 0 | AC34: now()
A35: 阿达智能装备（江苏）有限公司 | B35: 91320214MA7HGDC048 | C35: 3000 | D35: 1 | E35: 2022-01-30 | F35: HE YUNBO | G35: 0510-85299969 | H35: =VLOOKUP(A35,'[1]合同信息 '!$F$1:$M$438,7,0) -> HE YUNBO | I35: =VLOOKUP(A35,'[1]合同信息 '!$F$1:$M$438,8,0) -> 15207550012 | J35: ada@ada-ie.com | M35: 无锡市新吴区菱湖大道200号A502 | O35: 一般项目：电子专用设备制造；软件开发；工业自动控制系统装置制造；电动机制造；电机制造；电子测量仪器制造；光学仪器制造；仪器仪表制造；信息系统集成服务；信息技术咨询服务；电子、机械设备维护（不含特种设备）；计算机软硬件及外围设备制造；半导体照明器件制造；半导体分立器件制造；集成电路制造；半导体器件专用设备制造；半导体器件专用设备销售（除依法须经批准的项目外，凭营业执照依法自主开展经营活动） | W35: 在园 | X35: 2 | Z35: a0a475cf454cf9a06979034098167b9e | AA35: 启用 | AB35: 1 | AC35: now()
A36: 无锡派瑞新媒体投资合伙企业（有限合伙） | B36: 91320205MA1X03CU98 | C36: 10000 | D36: 1 | E36: 2018-08-01 | F36: 共青城派瑞新媒投资管理合伙企业（有限合伙） | G36: 010-67301888 | H36: =VLOOKUP(A36,'[1]合同信息 '!$F$1:$M$438,7,0) ->  | I36: =VLOOKUP(A36,'[1]合同信息 '!$F$1:$M$438,8,0) ->  | J36: 63377690@qq.com | M36: 无锡市新吴区菱湖大道200-11（E2）栋516-3 | O36: 投资管理、股权投资、创业投资。（依法须经批准的项目,经相关部门批准后方可开展经营活动） | W36: 挂靠 | Z36: a0a475cf454cf9a06979034098167b9e | AA36: 禁用 | AB36: 0 | AC36: now()
A37: 无锡联发产业投资中心（有限合伙） | B37: 91320214MA25WWXD3E | C37: 10000 | D37: 1 | E37: 2021-04-30 | F37: 无锡国联产业投资私募基金管理有限公司 | G37: 0510-85185760 | H37: =VLOOKUP(A37,'[1]合同信息 '!$F$1:$M$438,7,0) ->  | I37: =VLOOKUP(A37,'[1]合同信息 '!$F$1:$M$438,8,0) ->  | J37: info@glxcpe.com | M37: 无锡市新吴区菱湖大道200-10（E1）栋202-27 | O37: 一般项目：以自有资金从事投资活动（除依法须经批准的项目外，凭营业执照依法自主开展经营活动） | W37: 挂靠 | Z37: a0a475cf454cf9a06979034098167b9e | AA37: 禁用 | AB37: 0 | AC37: now()
A38: 无锡中金鼎讯信通科技股份有限公司 | B38: 9132021307471484XE | C38: 3600 | D38: 1 | E38: 2013-08-06 | F38: 赵宏伟 | G38: 0510-68789595 | H38: =VLOOKUP(A38,'[1]合同信息 '!$F$1:$M$438,7,0) -> 赵宏伟 | I38: =VLOOKUP(A38,'[1]合同信息 '!$F$1:$M$438,8,0) -> 13910112188 | J38: chuxf@bjzjdx.com | M38: 无锡新吴区菱湖大道200号中国物联网国际创新园E1-403 | O38: 许可项目:建设工程施工;计算机信息系统安全专用产品销售（依法须经批准的项目,经相关部门批准后方可开展经营活动,具体经营项目以审批结果为准）一般项目:技术服务、技术开发、技术咨询、技术交流、技术转让、技术推广;信息技术咨询服务;通信设备制造;软件开发;网络与信息安全软件开发;信息系统集成服务;计算机软硬件及辅助设备零售;数字视频监控系统销售;信息安全设备销售;网络设备销售;光通信设备销售;互联网设备销售;信息系统运行维护服务;物联网技术服务;5G通信技术服务;软件外包服务;通信设备销售;网络设备制造;互联网安全服务;网络技术服务;储能技术服务;商用密码产品销售（除依法须经批准的项目外,凭营业执照依法自主开展经营活动） | W38: 在园 | X38: 2 | Z38: a0a475cf454cf9a06979034098167b9e | AA38: 启用 | AB38: 1 | AC38: now()
A39: 江苏开盟科技有限公司 | B39: 91320214585527245R | C39: 2200 | D39: 1 | E39: 2011-10-24 | F39: 张国锋 | G39: 0510-81000790 | H39: =VLOOKUP(A39,'[1]合同信息 '!$F$1:$M$438,7,0) -> 张国锋 | I39: =VLOOKUP(A39,'[1]合同信息 '!$F$1:$M$438,8,0) -> 13915265056 | J39: 1316480@qq.com | M39: 无锡市新吴区菱湖大道200号G1-603 | O39: 许可项目:建筑智能化工程施工;建筑智能化系统设计;住宅室内装饰装修;建筑劳务分包（依法须经批准的项目,经相关部门批准后方可开展经营活动,具体经营项目以审批结果为准）一般项目:技术服务、技术开发、技术咨询、技术交流、技术转让、技术推广;物联网技术研发;软件开发;集成电路设计;电气安装服务;安全技术防范系统设计施工服务;信息系统运行维护服务;计算机系统服务;信息系统集成服务;摄像及视频制作服务;物联网设备销售;软件销售;数字视频监控系统销售;网络设备销售;计算机软硬件及辅助设备批发;移动通信设备销售;智能无人飞行器销售;办公用品销售（除依法须经批准的项目外,凭营业执照依法自主开展经营活动） | W39: 在园 | X39: 2 | Z39: a0a475cf454cf9a06979034098167b9e | AA39: 启用 | AB39: 1 | AC39: now()
A40: 无锡尚贤谷物联网投资合伙企业（有限合伙） | B40: 91320214MA7HPG048G | C40: 26100 | D40: 1 | E40: 2022-01-30 | F40: 无锡国联资本运营私募基金管理有限公司 | G40: - | H40: =VLOOKUP(A40,'[1]合同信息 '!$F$1:$M$438,7,0) ->  | I40: =VLOOKUP(A40,'[1]合同信息 '!$F$1:$M$438,8,0) ->  | J40: info@wuxicapital.com.cn | M40: 无锡市新吴区菱湖大道200号E1-202-48 | O40: 一般项目:以自有资金从事投资活动（除依法须经批准的项目外,凭营业执照依法自主开展经营活动） | W40: 挂靠 | Z40: a0a475cf454cf9a06979034098167b9e | AA40: 禁用 | AB40: 0 | AC40: now()
A41: 无锡锡产微芯半导体有限公司 | B41: 91320214MA1YGXW434 | C41: 330071.4286 | D41: 1 | E41: 2019-06-04 | F41: 叶甜春 | G41: 0510-8199826 | H41: =VLOOKUP(A41,'[1]合同信息 '!$F$1:$M$438,7,0) -> 叶甜春 | I41: =VLOOKUP(A41,'[1]合同信息 '!$F$1:$M$438,8,0) -> 13810468593 | J41: SPARC@ic-sparc.com | M41: 无锡市新吴区菱湖大道200号中国传感网国际创新园E1-10层 | O41: 半导体器件与集成电路设计、开发和销售;电子元器件的研发;机械设备、计算机软硬件及外部设备的销售;计算机软件开发;半导体科技领域内的技术开发、技术咨询、技术服务、技术转让;自营和代理货物及技术的进出口业务（国家限定公司经营或禁止进出口的商品和技术除外）。（依法须经批准的项目,经相关部门批准后方可开展经营活动） | W41: 在园 | X41: 2 | Z41: a0a475cf454cf9a06979034098167b9e | AA41: 启用 | AB41: 1 | AC41: now()
A42: 江苏创芯海微科技有限公司 | B42: 91320214MA21PJLJ9R | C42: 1000 | D42: 1 | E42: 2020-06-11 | F42: 顾先立 | G42: 0510-85378880 | H42: =VLOOKUP(A42,'[1]合同信息 '!$F$1:$M$438,7,0) ->  | I42: =VLOOKUP(A42,'[1]合同信息 '!$F$1:$M$438,8,0) ->  | J42: guxianli@wiot.tech | M42: 无锡市新吴区菱湖大道200号E2-112 | O42: 一般项目:技术服务、技术开发、技术咨询、技术交流、技术转让、技术推广;工程和技术研究和试验发展;电子元器件批发;电子专用设备销售;电子专用设备制造;仪器仪表制造;电子产品销售;机械设备销售;通讯设备销售;通讯设备修理;计算机软硬件及辅助设备批发;计算机及办公设备维修;软件开发;软件销售;信息系统运行维护服务（除依法须经批准的项目外,凭营业执照依法自主开展经营活动） | W42: 挂靠 | Z42: a0a475cf454cf9a06979034098167b9e | AA42: 禁用 | AB42: 0 | AC42: now()
A43: 中科融通物联科技无锡有限公司 | B43: 9132021306763311XR | C43: 10000 | D43: 1 | E43: 2013-04-28 | F43: 陈晓莉 | G43: 0510-68789388 | H43: =VLOOKUP(A43,'[1]合同信息 '!$F$1:$M$438,7,0) -> 郭春光 | I43: =VLOOKUP(A43,'[1]合同信息 '!$F$1:$M$438,8,0) -> 15006170282 | J43: miaolin@ubisys.com.cn | M43: 无锡市新吴区菱湖大道200号中国物联网国际创新园E2-308号 | O43: 计算机及网络设备、安防设备、通信设备的技术开发、技术转让、技术服务（不含互联网信息服务）、技术咨询、安装、销售;软件开发、销售;电子产品设计、制造、销售;信息系统集成;安全技术防范工程、建筑智能化工程、电子工程设计、施工;机房设备设计、安装;应用软件、电子设备及器材租赁（不含融资租赁）。（依法须经批准的项目,经相关部门批准后方可开展经营活动） | W43: 在园 | X43: 2 | Z43: a0a475cf454cf9a06979034098167b9e | AA43: 启用 | AB43: 1 | AC43: now()
A44: 无锡蝶和科技有限公司 | B44: 913202145502811939 | C44: 8625.0259 | D44: 1 | E44: 2010-02-02 | F44: 陈济海 | G44: 0510-66618288 | H44: =VLOOKUP(A44,'[1]合同信息 '!$F$1:$M$438,7,0) ->  | I44: =VLOOKUP(A44,'[1]合同信息 '!$F$1:$M$438,8,0) ->  | J44: qiantingting@dihmed.com | M44: 无锡市新吴区菱湖大道200号中国传感网国际创新园G8栋4楼 | O44: 计算机软硬件的开发、销售;基础软件服务;应用软件服务;计算机系统服务;技术开发、技术咨询、技术转让、技术服务;计算机网络技术的开发;智能卡、电子产品、机械设备的销售;智能卡应用系统的维护;以服务外包方式从事软件开发;机电自动化设备维修、技术研发、技术服务;自动化产品的生产、销售;自营和代理各类商品和技术的进出口（国家限定公司经营或禁止进出口的商品和技术除外）;设计、制作、代理和发布国内广告业务。（依法须经批准的项目,经相关部门批准后方可开展经营活动） | W44: 挂靠 | Z44: a0a475cf454cf9a06979034098167b9e | AA44: 禁用 | AB44: 0 | AC44: now()
A45: 中兴智能交通股份有限公司 | B45: 913202007226045783 | C45: 7326.3158 | D45: 1 | E45: 2000-04-24 | F45: 邓华 | G45: 0510-66055077 | H45: =VLOOKUP(A45,'[1]合同信息 '!$F$1:$M$438,7,0) ->  | I45: =VLOOKUP(A45,'[1]合同信息 '!$F$1:$M$438,8,0) ->  | J45: dongli@zte-its.com | M45: 无锡新区太湖国际科技园菱湖大道200号中国传感网国际创新园A楼 | O45: 交通运输领域、城市智能交通领域、物联网领域、铁路、地铁、城市轨道交通、公路、厂矿、港口码头、机场的有线无线通信系统、视频监控系统、环保及防灾报警系统、计算机信息系统、信号自动控制系统、安全和交通监控设备、传感和终端设备、应用软件的技术开发、销售、咨询、转让、服务;通信工程施工总承包;信息系统集成;停车场管理;停车场服务;自营和代理各类商品及技术的进出口业务（国家限定企业经营或禁止进出口的商品和技术除外,不含分销及其他国家禁止、限制类项目,涉及行政许可的凭有效许可证明经营）。（依法须经批准的项目,经相关部门批准后方可开展经营活动） | W45: 挂靠 | Z45: a0a475cf454cf9a06979034098167b9e | AA45: 禁用 | AB45: 0 | AC45: now()
A46: 品冠物联科技有限公司 | B46: 91320214330829129L | C46: 5000 | D46: 1 | E46: 2015-02-03 | F46: 蒋宗清 | G46: 0510-85381619 | H46: =VLOOKUP(A46,'[1]合同信息 '!$F$1:$M$438,7,0) -> 蒋宗清 | I46: =VLOOKUP(A46,'[1]合同信息 '!$F$1:$M$438,8,0) -> 13511070896 | J46: huangmeijie@thinkgo.cc | M46: 无锡市新吴区太科园菱湖大道200号中国传感网创新园G10-301 | O46: 许可项目:货物进出口;技术进出口;进出口代理;文件、资料等其他印刷品印刷（依法须经批准的项目,经相关部门批准后方可开展经营活动,具体经营项目以审批结果为准） 一般项目:物联网技术研发;物联网技术服务;电子产品销售;电子专用设备销售;机械设备销售;机械设备研发;软件开发;软件销售;信息系统集成服务;计算机系统服务;通用设备制造（不含特种设备制造）;通用设备修理;专用设备制造（不含许可类专业设备制造）;专用设备修理;计算机软硬件及辅助设备批发;其他电子器件制造;租赁服务（不含出版物出租）;金属结构制造;金属结构销售;物料搬运装备销售;物料搬运装备制造;智能物料搬运装备销售;智能仓储装备销售（除依法须经批准的项目外,凭营业执照依法自主开展经营活动） | W46: 在园 | X46: 2 | Z46: a0a475cf454cf9a06979034098167b9e | AA46: 启用 | AB46: 1 | AC46: now()
A47: 江苏众乐乐影视传媒有限公司 | B47: 91320214314136883L | C47: 1234.5667 | D47: 1 | E47: 2014-09-18 | F47: 黄璐璐 | G47: 0510-85388782 | H47: =VLOOKUP(A47,'[1]合同信息 '!$F$1:$M$438,7,0) ->  | I47: =VLOOKUP(A47,'[1]合同信息 '!$F$1:$M$438,8,0) ->  | J47: zmj@zllfilm.com | M47: 无锡市新吴区菱湖大道200号F11栋三楼创星孵化器A2 | O47: 影视文化项目的策划;广播电视节目制作（凭有效许可证经营）;影视剧本创作、策划;影视制作;影视特效的设计与制作。（依法须经批准的项目,经相关部门批准后方可开展经营活动） | W47: 挂靠 | Z47: a0a475cf454cf9a06979034098167b9e | AA47: 禁用 | AB47: 0 | AC47: now()
A48: 无锡中科英智投资管理有限公司 | B48: 91320213MA1MDDGH66 | C48: 1000 | D48: 1 | E48: 2015-12-28 | F48: 朱振兴 | G48: 0510-85383398 | H48: =VLOOKUP(A48,'[1]合同信息 '!$F$1:$M$438,7,0) ->  | I48: =VLOOKUP(A48,'[1]合同信息 '!$F$1:$M$438,8,0) ->  | J48: 1458394262@qq.com | M48: 无锡菱湖大道200号中国传感网国际创新园C栋1楼 | O48: 股权投资;投资管理。（依法须经批准的项目,经相关部门批准后方可开展经营活动） | W48: 挂靠 | Z48: a0a475cf454cf9a06979034098167b9e | AA48: 禁用 | AB48: 0 | AC48: now()
A49: 江苏中元盛辉新能源科技有限公司 | B49: 91320214MA1MGU198R | C49: 3000 | D49: 1 | E49: 2016-03-25 | F49: 侍崇波 | G49: 0510-85385858 | H49: =VLOOKUP(A49,'[1]合同信息 '!$F$1:$M$438,7,0) ->  | I49: =VLOOKUP(A49,'[1]合同信息 '!$F$1:$M$438,8,0) ->  | J49: donge.qin@sino-sola.com | M49: 无锡新吴区菱湖大道200号中国传感网国际创新园G1-503 | O49: 新能源材料研发;太阳能电站及组件的研发、设计、组装、安装、销售及运行维护;高、低压成套开关设备的组装、安装、销售及运行维护;光伏照明系统、光伏充电系统的研发、安装、销售及运行维护;技术咨询服务;自营和代理各类商品及技术的进出口业务（国家限定公司经营或禁止进出口的商品及技术除外）。（依法须经批准的项目,经相关部门批准后方可开展经营活动）许可项目:发电、输电、供电业务（依法须经批准的项目,经相关部门批准后方可开展经营活动,具体经营项目以审批结果为准）一般项目:合同能源管理（除依法须经批准的项目外,凭营业执照依法自主开展经营活动） | W49: 挂靠 | Z49: a0a475cf454cf9a06979034098167b9e | AA49: 禁用 | AB49: 0 | AC49: now()
A50: 无锡点石共赢咨询服务合伙企业（有限合伙） | B50: 91320214MA26X80LXB | C50: 2000 | D50: 1 | E50: 2021-08-25 | F50: 沈广平 | G50: 0510-85185760 | H50: =VLOOKUP(A50,'[1]合同信息 '!$F$1:$M$438,7,0) ->  | I50: =VLOOKUP(A50,'[1]合同信息 '!$F$1:$M$438,8,0) ->  | J50: info@glxcpe.com | M50: 无锡市新吴区菱湖大道200-11（E1）栋202-37 | O50: 一般项目：社会经济咨询服务；以自有资金从事投资活动（除依法须经批准的项目外，凭营业执照依法自主开展经营活动） | W50: 挂靠 | Z50: a0a475cf454cf9a06979034098167b9e | AA50: 禁用 | AB50: 0 | AC50: now()
A51: 无锡市恒顺金属材料有限公司 | B51: 91320200135927444B | C51: 26000 | D51: 1 | E51: 1993-07-16 | F51: 张飙 | G51: 0510-83071991 | H51: =VLOOKUP(A51,'[1]合同信息 '!$F$1:$M$438,7,0) ->  | I51: =VLOOKUP(A51,'[1]合同信息 '!$F$1:$M$438,8,0) ->  | J51: qianz@gljsss.com | M51: 无锡市新吴区菱湖大道200号中国物联网国际创新园E1-201 | O51: 国内贸易、货物进出口贸易;自有房屋的租赁服务;焦炭的销售。（依法须经批准的项目,经相关部门批准后方可开展经营活动）一般项目:金属矿石销售（除依法须经批准的项目外,凭营业执照依法自主开展经营活动） | W51: 挂靠 | Z51: a0a475cf454cf9a06979034098167b9e | AA51: 禁用 | AB51: 0 | AC51: now()
A52: 无锡中科赛新投资合伙企业（有限合伙） | B52: 9132020058666337XE | C52: 20650 | D52: 1 | E52: 2011-12-01 | F52: 无锡馥海投资管理有限公司 | G52: 0510-85383398 | H52: =VLOOKUP(A52,'[1]合同信息 '!$F$1:$M$438,7,0) ->  | I52: =VLOOKUP(A52,'[1]合同信息 '!$F$1:$M$438,8,0) ->  | J52: 1458394262@qq.com | M52: 无锡市新吴区菱湖大道200号中国传感网国际创新园C1座203 | O52: 利用自有资金对外投资。（依法须经批准的项目,经相关部门批准后方可开展经营活动） | W52: 挂靠 | Z52: a0a475cf454cf9a06979034098167b9e | AA52: 禁用 | AB52: 0 | AC52: now()
A53: 无锡星微科技有限公司 | B53: 91320214330966457E | C53: 923.61815 | D53: 1 | E53: 2015-03-11 | F53: 陆敏杰 | G53: 0510-85389676 | H53: =VLOOKUP(A53,'[1]合同信息 '!$F$1:$M$438,7,0) ->  | I53: =VLOOKUP(A53,'[1]合同信息 '!$F$1:$M$438,8,0) ->  | J53: qianlin@xivitech.net.cn | M53: 无锡新吴区菱湖大道200号F11栋二楼创新孵化器A06 | O53: 许可项目:货物进出口;技术进出口（依法须经批准的项目,经相关部门批准后方可开展经营活动,具体经营项目以审批结果为准）一般项目:机电耦合系统研发;物料搬运装备制造;通用设备制造（不含特种设备制造）;制药专用设备制造;工业机器人制造;智能基础制造装备制造;电子专用设备制造;半导体器件专用设备制造;电子元器件与机电组件设备制造;电机制造;电机及其控制系统研发;电气设备销售;专业设计服务;软件开发;工业自动控制系统装置销售（除依法须经批准的项目外,凭营业执照依法自主开展经营活动） | W53: 挂靠 | Z53: a0a475cf454cf9a06979034098167b9e | AA53: 禁用 | AB53: 0 | AC53: now()
A54: 无锡易百客科技有限公司 | B54: 91320214MA1MT8R35N | C54: 147.291 | D54: 1 | E54: 2016-08-26 | F54: 李东旭 | G54: 19952219808 | H54: =VLOOKUP(A54,'[1]合同信息 '!$F$1:$M$438,7,0) -> 李东旭 | I54: =VLOOKUP(A54,'[1]合同信息 '!$F$1:$M$438,8,0) -> 19952219808 | J54: 947715076@qq.com | M54: 无锡市新吴区菱湖大道200号中国传感网国际创新园G10-803 | O54: 计算机软硬件、电子产品的技术开发、技术转让、技术咨询、技术服务、销售；助动自行车、自行车、汽车及车辆配件的销售、出租、维修；信息系统集成服务；企业营销策划；经济与商务咨询服务（不含投资咨询）；综合布线工程、智能化安装工程的施工。（依法须经批准的项目，经相关部门批准后方可开展经营活动） | W54: 在园 | X54: 2 | Z54: a0a475cf454cf9a06979034098167b9e | AA54: 启用 | AB54: 1 | AC54: now()
A55: 无锡巨天自动化技术有限公司 | B55: 91320214566878875N | C55: 200 | D55: 1 | E55: 2010-12-20 | F55: 刘瑞 | G55: 0510-83786898 | H55: =VLOOKUP(A55,'[1]合同信息 '!$F$1:$M$438,7,0) ->  | I55: =VLOOKUP(A55,'[1]合同信息 '!$F$1:$M$438,8,0) ->  | J55: jtzdh-sxz@163.com | M55: 无锡市新区菱湖大道200号E2-409 | O55: 自动化设备及产品的研发、销售;普通机械、电子产品、低压电器、电线电缆、仪器仪表的销售并提供售后维修服务;自动化软硬件系统工程开发,并提供技术服务;自营和代理各类商品及技术的进出口业务（国家限定企业经营或禁止进出口的商品和技术除外）。（依法须经批准的项目,经相关部门批准后方可开展经营活动） | W55: 挂靠 | Z55: a0a475cf454cf9a06979034098167b9e | AA55: 禁用 | AB55: 0 | AC55: now()
A56: 无锡威卓智能机器人有限公司 | B56: 91320214MA1P1XDW1B | C56: 2350 | D56: 1 | E56: 2017-05-22 | F56: HE JIZHONG | G56: 0510-85384033 | H56: =VLOOKUP(A56,'[1]合同信息 '!$F$1:$M$438,7,0) ->  | I56: =VLOOKUP(A56,'[1]合同信息 '!$F$1:$M$438,8,0) ->  | J56: jenny@weldroid.com | M56: 无锡市新吴区菱湖大道200号D2-600-266 | O56: 智能机器人、通用设备、专用设备、电子产品、仪器仪表的研发、销售、进出口及技术服务;电子产品及元器件的维修、检测;软件开发、销售。（依法须经批准的项目,经相关部门批准后方可开展经营活动） | W56: 挂靠 | Z56: a0a475cf454cf9a06979034098167b9e | AA56: 禁用 | AB56: 0 | AC56: now()
A57: 无锡海颂科技有限公司 | B57: 91320200MA1WK1KC5X | C57: 500 | D57: 1 | E57: 2018-05-18 | F57: 林雪松 | G57: 13758228318 | H57: =VLOOKUP(A57,'[1]合同信息 '!$F$1:$M$438,7,0) -> 林雪松 | I57: =VLOOKUP(A57,'[1]合同信息 '!$F$1:$M$438,8,0) -> 13758228318 | J57: xsl@hysumtech.com | M57: 无锡市新吴区菱湖大道200号G8-301 | O57: 机电产品、电器配件、计算机软硬件的技术开发、技术咨询、技术服务、技术转让;超声波焊接技术的研发;环保工程的设计、施工;电力电子元器件、金属切割及焊接设备、模具、塑料加工专用设备的制造、加工、研发、销售、安装;通用机械及配件、金属材料、金属制品、塑料制品、仪器仪表的销售;自营和代理各类商品及技术进出口业务（国家限定企业经营或禁止进出口的商品和技术除外）。（依法须经批准的项目,经相关部门批准后方可开展经营活动） 一般项目:汽车零部件及配件制造;汽车零部件研发（除依法须经批准的项目外,凭营业执照依法自主开展经营活动） | W57: 在园 | X57: 2 | Z57: a0a475cf454cf9a06979034098167b9e | AA57: 启用 | AB57: 1 | AC57: now()
A58: 无锡小白无忧科技有限公司 | B58: 913202143309952586 | C58: 425.5319 | D58: 1 | E58: 2015-03-04 | F58: 金唯栋 | G58: 13961859953 | H58: =VLOOKUP(A58,'[1]合同信息 '!$F$1:$M$438,7,0) ->  | I58: =VLOOKUP(A58,'[1]合同信息 '!$F$1:$M$438,8,0) ->  | J58: victor.jin@xiaobaiwuyou.com | M58: 无锡市新吴区菱湖大道200号F11二楼创星孵化器E1 | O58: 计算机、电子专业的技术开发、技术服务；计算机网络工程；计算机软硬件的开发及销售；信息科技专业领域内的技术开发、技术服务；通信网络工程；通信系统设备的销售、安装、调试、维护；电子产品及耗材、通讯设备（不含卫星地面接收设施和发射装置）、计算机辅助设备、通用机械及配件的销售及维修服务；润滑油、汽车及其配件、摩托车、日用品、百货、办公用品的销售；知识产权咨询服务；工商登记代理；企业管理服务（不含投资与资产管理）；办公设备租赁；设计、制作、代理和发布国内各类广告；自营和代理各类商品及技术的进出口业务（国家限定企业经营或禁止进出口的商品和技术除外）。（依法须经批准的项目，经相关部门批准后方可开展经营活动） | W58: 挂靠 | Z58: a0a475cf454cf9a06979034098167b9e | AA58: 禁用 | AB58: 0 | AC58: now()
A59: 无锡谱视界科技有限公司 | B59: 91320214MA25QW1M0F | C59: 1000 | D59: 1 | E59: 2021-04-19 | F59: 杨飞 | G59: 0510-85290662 | H59: =VLOOKUP(A59,'[1]合同信息 '!$F$1:$M$438,7,0) -> 李子婧 | I59: =VLOOKUP(A59,'[1]合同信息 '!$F$1:$M$438,8,0) -> 18751558662 | J59: xm.gu@specvision.com.cn | M59: 无锡市新吴区菱湖大道200号E2-111 | O59: 一般项目:技术服务、技术开发、技术咨询、技术交流、技术转让、技术推广;光电子器件制造;电力电子元器件制造;集成电路芯片及产品制造;集成电路芯片及产品销售;电子测量仪器制造;电子元器件批发;电子元器件零售;电子测量仪器销售;光学仪器制造;光学玻璃制造;光学玻璃销售;光学仪器销售;机械零件、零部件加工;机械零件、零部件销售;通用零部件制造;功能玻璃和新型光学材料销售;电子元器件与机电组件设备制造;电子元器件与机电组件设备销售;核子及核辐射测量仪器制造;导航、测绘、气象及海洋专用仪器制造;导航、测绘、气象及海洋专用仪器销售;集成电路设计;专业设计服务;会议及展览服务（除依法须经批准的项目外,凭营业执照依法自主开展经营活动） | W59: 在园 | X59: 2 | Z59: a0a475cf454cf9a06979034098167b9e | AA59: 启用 | AB59: 1 | AC59: now()
A60: 无锡国经众明投资企业（有限合伙） | B60: 91320200MA1NAUU07U | C60: 3280 | D60: 1 | E60: 2017-01-16 | F60: 无锡国经投资管理有限公司 | G60: 0510-85858678 | H60: =VLOOKUP(A60,'[1]合同信息 '!$F$1:$M$438,7,0) ->  | I60: =VLOOKUP(A60,'[1]合同信息 '!$F$1:$M$438,8,0) ->  | J60: 71523207@qq.com | M60: 无锡市新吴区菱湖大道200号中国传感网国际创新园E2-103 | O60: 利用自有资金对外投资。（依法须经批准的项目,经相关部门批准后方可开展经营活动）。 | W60: 挂靠 | Z60: a0a475cf454cf9a06979034098167b9e | AA60: 禁用 | AB60: 0 | AC60: now()
A61: 无锡华鼎创业投资管理有限公司 | B61: 91320204302141415J | C61: 10000 | D61: 1 | E61: 2014-05-21 | F61: 李玲娟 | G61: 0510-82698712 | H61: =VLOOKUP(A61,'[1]合同信息 '!$F$1:$M$438,7,0) ->  | I61: =VLOOKUP(A61,'[1]合同信息 '!$F$1:$M$438,8,0) ->  | J61: bying@wxvcg.com | M61: 无锡市新吴区菱湖大道200号中国传感网国际创新园E1-202-14 | O61: 一般项目:私募股权投资基金管理、创业投资基金管理服务（须在中国证券投资基金业协会完成登记备案后方可从事经营活动）;股权投资;以自有资金从事投资活动;企业管理咨询;创业投资（限投资未上市企业）;财务咨询（除依法须经批准的项目外,凭营业执照依法自主开展经营活动） | W61: 挂靠 | Z61: a0a475cf454cf9a06979034098167b9e | AA61: 禁用 | AB61: 0 | AC61: now()
A62: 无锡产发创业投资中心（有限合伙） | B62: 91320214MA237YPC1U | C62: 40000 | D62: 1 | E62: 2020-11-20 | F62: 无锡华鼎创业投资管理有限公司（委派代表 李玲娟） | G62: 0510-82698712 | H62: =VLOOKUP(A62,'[1]合同信息 '!$F$1:$M$438,7,0) ->  | I62: =VLOOKUP(A62,'[1]合同信息 '!$F$1:$M$438,8,0) ->  | J62: bying@wxvcg.com | M62: 无锡市新吴区菱湖大道200号中国传感网国际创新园E1-202-1401 | O62: 一般项目:创业投资（限投资未上市企业）;以自有资金从事投资活动;企业管理咨询;股权投资（除依法须经批准的项目外,凭营业执照依法自主开展经营活动） | W62: 挂靠 | Z62: a0a475cf454cf9a06979034098167b9e | AA62: 禁用 | AB62: 0 | AC62: now()
A63: 无锡矽鼎科技有限公司 | B63: 91320213678987777M | C63: 1235.3 | D63: 1 | E63: 2008-08-18 | F63: 陈海雷 | G63: 0510-81015338 | H63: =VLOOKUP(A63,'[1]合同信息 '!$F$1:$M$438,7,0) ->  | I63: =VLOOKUP(A63,'[1]合同信息 '!$F$1:$M$438,8,0) ->  | J63: henryc@cynovogroup.com | M63: 无锡市菱湖大道200号中国传感网国际创新园G10-1110 | O63: 计算机软硬件和互联网终端设备、无线数据终端、移动数据终端设备及移动通信设备的研发、生产及销售;仪器仪表、货币专用设备的研发、生产、销售及技术服务;以服务外包方式从事计算机软硬件的开发;培训服务（不含发证）;自营和代理各类商品和技术的进出口（国家限定公司经营或禁止进出口的商品和技术除外）。（依法须经批准的项目,经相关部门批准后方可开展经营活动） | W63: 挂靠 | Z63: a0a475cf454cf9a06979034098167b9e | AA63: 禁用 | AB63: 0 | AC63: now()
A64: 江苏达和晟智能科技集团有限公司 | B64: 91320214MA7HTGNJ96 | C64: 2000 | D64: 1 | E64: 2022-03-01 | F64: 李永春 | G64: 18306199294 | H64: =VLOOKUP(A64,'[1]合同信息 '!$F$1:$M$438,7,0) -> 李永春 | I64: =VLOOKUP(A64,'[1]合同信息 '!$F$1:$M$438,8,0) -> 13915409168 | J64: 18306199294@163.com | M64: 无锡市新吴区菱湖大道200-27（B）栋415 | O64: 许可项目:建设工程施工;互联网信息服务;在线数据处理与交易处理业务（经营类电子商务）;食品销售（依法须经批准的项目,经相关部门批准后方可开展经营活动,具体经营项目以审批结果为准） 一般项目:技术服务、技术开发、技术咨询、技术交流、技术转让、技术推广;机械电气设备销售;电力电子元器件销售;机械电气设备制造;电力电子元器件制造;机械设备销售;普通机械设备安装服务;以自有资金从事投资活动;业务培训（不含教育培训、职业技能培训等需取得许可的培训）;货物进出口;技术进出口;进出口代理;国内贸易代理;销售代理;社会调查（不含涉外调查）;企业管理;企业管理咨询;普通货物仓储服务（不含危险化学品等需许可审批的项目）;信息咨询服务（不含许可类信息咨询服务）;租赁服务（不含许可类租赁服务）;物联网技术研发;物联网技术服务;软件开发;广告设计、代理;广告发布;广告制作;数据处理服务;图文设计制作;文化娱乐经纪人服务;会议及展览服务;经济贸易咨询;企业形象策划;教育咨询服务（不含涉许可审批的教育培训活动）;人力资源服务（不含职业中介活动、劳务派遣服务）;健康咨询服务（不含诊疗服务）;远程健康管理服务;日用百货销售;化妆品批发;化妆品零售;珠宝首饰批发;珠宝首饰零售;文具用品批发;文具用品零售;办公用品销售;工艺美术品及礼仪用品销售（象牙及其制品除外）;电子产品销售;通讯设备销售;玩具销售;服装服饰批发;服装服饰零售;箱包销售;鞋帽批发;鞋帽零售;体育用品及器材批发;体育用品及器材零售;针纺织品销售;家用电器销售;厨具卫具及日用杂品批发;五金产品批发;五金产品零售;保健食品（预包装）销售（除依法须经批准的项目外,凭营业执照依法自主开展经营活动） | W64: 在园 | X64: 2 | Z64: a0a475cf454cf9a06979034098167b9e | AA64: 启用 | AB64: 1 | AC64: now()
A65: 无锡数信互融科技发展有限公司 | B65: 913202143238264645 | C65: 1163.756 | D65: 1 | E65: 2014-12-05 | F65: 罗杰 | G65: 0510-81819731 | H65: =VLOOKUP(A65,'[1]合同信息 '!$F$1:$M$438,7,0) -> 罗杰 | I65: =VLOOKUP(A65,'[1]合同信息 '!$F$1:$M$438,8,0) -> 13811735057 | J65: liyanyan@ifre.co | M65: 无锡新区菱湖大道200号中国传感网国际创新园B335号 | O65: 基础软件开发、应用软件开发;技术开发、技术转让、技术咨询、技术服务;计算机软硬件及相关配件的销售;网络科技研发;数据处理及存储服务。（依法须经批准的项目,经相关部门批准后方可开展经营活动） | W65: 在园 | X65: 2 | Z65: a0a475cf454cf9a06979034098167b9e | AA65: 启用 | AB65: 1 | AC65: now()
A66: 中科产业投资无锡有限公司 | B66: 91320214MA1XF8XD9K | C66: 5000 | D66: 1 | E66: 2018-11-12 | F66: 孙方刚 | G66: 0510-85381345 | H66: =VLOOKUP(A66,'[1]合同信息 '!$F$1:$M$438,7,0) ->  | I66: =VLOOKUP(A66,'[1]合同信息 '!$F$1:$M$438,8,0) ->  | J66: edu@ciotc.org | M66: 无锡市新吴区菱湖大道200号C栋6楼 | O66: 创业投资;行业性实业投资;利用自有资金对外投资;会议及展览服务;物联网技术研究;教学实验仪器的开发和销售;面向成年人开展的培训服务（不含发证、不含国家统一认可的职业证书类培训）;技术咨询;市场调研;计算机软件开发。 （依法须经批准的项目,经相关部门批准后方可开展经营活动） | W66: 挂靠 | Z66: a0a475cf454cf9a06979034098167b9e | AA66: 禁用 | AB66: 0 | AC66: now()
A67: 无锡优塑美科技有限公司 | B67: 91320214579501532C | C67: 2280 | D67: 1 | E67: 2011-07-27 | F67: 陈敏 | G67: 0510-85216039 | H67: =VLOOKUP(A67,'[1]合同信息 '!$F$1:$M$438,7,0) -> 陈敏 | I67: =VLOOKUP(A67,'[1]合同信息 '!$F$1:$M$438,8,0) -> 13921299581 | J67: lianxiang.wang@foryouep.com | M67: 无锡市新吴区菱湖大道200号中国传感网国际创新园E2-213 | O67: ＬＥＤ照明产品及配件、高分子材料及产品、塑料制品、机械设备、电子产品、建材、纺织品、皮革制品、化妆品、化工设备及产品（不含危险品）、金属制品、五金交电的研发、销售、生产（限分支机构经营）；危险化学品经营（按许可证所列范围和方式经营）；技术服务、技术开发、技术咨询、 技术转让；企业管理咨询服务（不含投资咨询）；自营各类商品和技术的进出口（国家限定公司经营或禁止进出口的商品和技术除外）。（依法须经批准的项目，经相关部门批准后方可开展经营活动） | W67: 在园 | X67: 2 | Z67: a0a475cf454cf9a06979034098167b9e | AA67: 启用 | AB67: 1 | AC67: now()
A68: 无锡沃达科半导体技术有限公司 | B68: 91320214MA1W3R788R | C68: 2306.785 | D68: 1 | E68: 2018-02-08 | F68: 黄炜 | G68: 0510-85387565 | H68: =VLOOKUP(A68,'[1]合同信息 '!$F$1:$M$438,7,0) -> 黄炜 | I68: =VLOOKUP(A68,'[1]合同信息 '!$F$1:$M$438,8,0) -> 13961758258 | J68: sunyuping@voltaic.com.cn | M68: 无锡市新吴区菱湖大道200号中国物联网国际创新园G8-401 | O68: 一般项目:技术服务、技术开发、技术咨询、技术交流、技术转让、技术推广;集成电路芯片及产品制造;集成电路芯片及产品销售;集成电路设计;货物进出口;技术进出口（除依法须经批准的项目外,凭营业执照依法自主开展经营活动） | W68: 在园 | X68: 2 | Z68: a0a475cf454cf9a06979034098167b9e | AA68: 启用 | AB68: 1 | AC68: now()
A69: 华景科技无锡有限公司 | B69: 91320214MA1NCC6P03 | C69: 5000 | D69: 1 | E69: 2017-02-03 | F69: MIAO JIANMIN（缪建民） | G69: 0510-85622282 | H69: =VLOOKUP(A69,'[1]合同信息 '!$F$1:$M$438,7,0) ->  | I69: =VLOOKUP(A69,'[1]合同信息 '!$F$1:$M$438,8,0) ->  | J69: qiugz@svsens.com | M69: 无锡市新吴区菱湖大道200号中国传感网国际创新园F2 | O69: 物联网传感器、集成电路的研发、加工、制造;物联网传感器、电子元器件、电子产品的设计、技术开发、技术服务;电子产品的批发;自营和代理各类商品和技术的进出口（国家限定公司经营或禁止进出口的商品和技术除外）。（依法须经批准的项目,经相关部门批准后方可开展经营活动） | W69: 挂靠 | Z69: a0a475cf454cf9a06979034098167b9e | AA69: 禁用 | AB69: 0 | AC69: now()
A70: 无锡市德联投资有限公司 | B70: 91320214691328127Y | C70: 10000 | D70: 1 | E70: 2009-06-22 | F70: 吴卫华 | G70: 0510-82830135 | H70: =VLOOKUP(A70,'[1]合同信息 '!$F$1:$M$438,7,0) ->  | I70: =VLOOKUP(A70,'[1]合同信息 '!$F$1:$M$438,8,0) ->  | J70: 89015641@qq.com | M70: 无锡新区太湖国际科技园菱湖大道200号中国微纳国际创新园1号楼 | O70: 对外投资、受托资产管理、投资咨询、财务咨询、经济信息咨询。（依法须经批准的项目,经相关部门批准后方可开展经营活动） | W70: 挂靠 | Z70: a0a475cf454cf9a06979034098167b9e | AA70: 禁用 | AB70: 0 | AC70: now()
A71: 无锡德昌投资企业（有限合伙） | B71: 9132020033103001XT | C71: 260 | D71: 1 | E71: 2015-04-03 | F71: 黄昌民 | G71: 13906192675 | H71: =VLOOKUP(A71,'[1]合同信息 '!$F$1:$M$438,7,0) ->  | I71: =VLOOKUP(A71,'[1]合同信息 '!$F$1:$M$438,8,0) ->  | J71: hchangmin@cdwdz.com | M71: 无锡市新吴区菱湖大道200-E1-901 | O71: 利用自有资金对外投资。（依法须经批准的项目,经相关部门批准后方可开展经营活动） | W71: 挂靠 | Z71: a0a475cf454cf9a06979034098167b9e | AA71: 禁用 | AB71: 0 | AC71: now()
A72: 无锡市时盛激光科技有限公司 | B72: 91320211051871850D | C72: 500 | D72: 1 | E72: 2012-08-22 | F72: 周训全 | G72: 0510-85172008 | H72: =VLOOKUP(A72,'[1]合同信息 '!$F$1:$M$438,7,0) -> 周训全 | I72: =VLOOKUP(A72,'[1]合同信息 '!$F$1:$M$438,8,0) -> 18961720099 | J72: 199918707@qq.com | M72: 无锡市新吴区菱湖大道200号E2-104 | O72: 一般项目:工业自动控制系统装置制造;工业自动控制系统装置销售;电子元器件与机电组件设备制造;电子元器件与机电组件设备销售;金属切割及焊接设备制造;金属切割及焊接设备销售;机械设备研发;机械设备销售;软件开发;技术服务、技术开发、技术咨询、技术交流、技术转让、技术推广（除依法须经批准的项目外,凭营业执照依法自主开展经营活动） | W72: 在园 | X72: 2 | Z72: a0a475cf454cf9a06979034098167b9e | AA72: 启用 | AB72: 1 | AC72: now()
A73: 江苏晟能科技股份有限公司 | B73: 91320214346236854R | C73: 1250 | D73: 1 | E73: 2015-06-30 | F73: 倪晓宇 | G73: 0510-88101258 | H73: =VLOOKUP(A73,'[1]合同信息 '!$F$1:$M$438,7,0) -> 倪晓宇 | I73: =VLOOKUP(A73,'[1]合同信息 '!$F$1:$M$438,8,0) -> 13585085897 | J73: bid@iyoungsun.com | M73: 无锡市新吴区菱湖大道200号中国传感网国际创新园F10 | O73: 许可项目:发电业务、输电业务、供（配）电业务（依法须经批准的项目,经相关部门批准后方可开展经营活动,具体经营项目以审批结果为准） 一般项目:技术服务、技术开发、技术咨询、技术交流、技术转让、技术推广;软件开发;软件销售;信息系统集成服务;储能技术服务;技术推广服务;合同能源管理;节能管理服务;数据处理服务;大数据服务（除依法须经批准的项目外,凭营业执照依法自主开展经营活动） | W73: 在园 | X73: 2 | Z73: a0a475cf454cf9a06979034098167b9e | AA73: 启用 | AB73: 1 | AC73: now()
A74: 中兴九城网络科技无锡有限公司 | B74: 91320214061876866J | C74: 1790.938 | D74: 1 | E74: 2013-02-07 | F74: 殷建勇 | G74: 18762638816 | H74: =VLOOKUP(A74,'[1]合同信息 '!$F$1:$M$438,7,0) ->  | I74: =VLOOKUP(A74,'[1]合同信息 '!$F$1:$M$438,8,0) ->  | J74: 18762638816@163.com | M74: 无锡市新吴区菱湖大道200号F11栋三楼创星孵化器A7 | O74: 许可项目:第一类增值电信业务;第二类增值电信业务;建设工程施工;互联网游戏服务;互联网信息服务（依法须经批准的项目,经相关部门批准后方可开展经营活动,具体经营项目以审批结果为准）一般项目:技术服务、技术开发、技术咨询、技术交流、技术转让、技术推广;网络技术服务;网络与信息安全软件开发;计算机系统服务;网络设备销售;信息系统集成服务;互联网安全服务;物联网技术服务;物联网技术研发;电子元器件批发;软件开发;电子元器件零售;互联网设备销售;光通信设备销售;工业控制计算机及系统销售;电子元器件与机电组件设备销售;电子测量仪器销售;集成电路销售;云计算设备销售;信息安全设备销售;数字视频监控系统销售;信息系统运行维护服务;专业设计服务;信息技术咨询服务;技术进出口;进出口代理;货物进出口;电子产品销售;机械零件、零部件销售;显示器件销售;光电子器件销售;新材料技术研发;家用电器安装服务;音响设备销售;家用视听设备销售;家用电器销售;数字文化创意技术装备销售;计算机软硬件及辅助设备批发;计算机软硬件及辅助设备零售;游艺用品及室内游艺器材销售（除依法须经批准的项目外,凭营业执照依法自主开展经营活动） | W74: 挂靠 | Z74: a0a475cf454cf9a06979034098167b9e | AA74: 禁用 | AB74: 0 | AC74: now()
A75: 国科瑞祺物联网创业投资有限公司 | B75: 91320214560328987T | C75: 38144.8801 | D75: 1 | E75: 2010-07-22 | F75: 孙华 | G75: 010-82607629 | H75: =VLOOKUP(A75,'[1]合同信息 '!$F$1:$M$438,7,0) ->  | I75: =VLOOKUP(A75,'[1]合同信息 '!$F$1:$M$438,8,0) ->  | J75: casim@casim.cn | M75: 无锡市新吴区太湖国际科技园菱湖大道200号中国微纳传感网国际创新园B楼 | O75: 创业投资,创业投资咨询,为创业企业提供创业管理服务。（依法须经批准的项目,经相关部门批准后方可开展经营活动） | W75: 挂靠 | Z75: a0a475cf454cf9a06979034098167b9e | AA75: 禁用 | AB75: 0 | AC75: now()
A76: 无锡纽科电子科技股份有限公司 | B76: 91320214066282805K | C76: 500 | D76: 1 | E76: 2013-04-23 | F76: 邹志荣 | G76: 0510-85389552 | H76: =VLOOKUP(A76,'[1]合同信息 '!$F$1:$M$438,7,0) ->  | I76: =VLOOKUP(A76,'[1]合同信息 '!$F$1:$M$438,8,0) ->  | J76: finance001@newic-china.com | M76: 无锡市新吴区菱湖大道200号中国传感网国际创新园D2-608（经营场所:无锡市新吴区菱湖大道180号-10-B4） | O76: 物联网领域射频元器件的技术开发及产品的制造和销售;电子电感元器件、电子变压器的设计、制造和销售;自营和代理各类商品及技术的进出口（国家限定公司经营或禁止进出口的商品和技术除外）;注塑件的设计、生产、制造、销售（限分支机构经营）。（依法须经批准的项目,经相关部门批准后方可开展经营活动） | W76: 异地生产 | Z76: a0a475cf454cf9a06979034098167b9e | AA76: 启用 | AB76: 1 | AC76: now()
A77: 瓴芯电子科技（无锡）有限公司 | B77: 91320214MA1PBBBM14 | C77: 1000 | D77: 1 | E77: 2017-07-04 | F77: NI CHUAN | G77: 0510-68101580 | H77: =VLOOKUP(A77,'[1]合同信息 '!$F$1:$M$438,7,0) -> NI CHUAN | I77: =VLOOKUP(A77,'[1]合同信息 '!$F$1:$M$438,8,0) -> 18068298716 | J77: jennie.qian@len-technology.com | M77: 无锡市新吴区菱湖大道200号中国传感网国际创新园A-201号 | O77: 集成电路、软件的设计、开发、销售、进出口;集成电路芯片的封装、测试、销售;集成电路的故障分析服务;电子产品的技术开发、销售、进出口;电子元器件的销售、进出口;集成芯片的技术开发、技术转让。（依法须经批准的项目,经相关部门批准后方可开展经营活动） | W77: 在园 | X77: 2 | Z77: a0a475cf454cf9a06979034098167b9e | AA77: 启用 | AB77: 1 | AC77: now()
A78: 华进半导体封装先导技术研发中心有限公司 | B78: 913202130551581209 | C78: 36042.32 | D78: 1 | E78: 2012-09-29 | F78: 叶甜春 | G78: 0510-66679352 | H78: =VLOOKUP(A78,'[1]合同信息 '!$F$1:$M$438,7,0) -> 苏建光 | I78: =VLOOKUP(A78,'[1]合同信息 '!$F$1:$M$438,8,0) -> 13961887136 | J78: ceo@ncap-cn.com | M78: 无锡市新吴区太湖国际科技园菱湖大道200号中国传感网国际创新园D1栋 | O78: 一般项目:技术服务、技术开发、技术咨询、技术交流、技术转让、技术推广;集成电路制造;集成电路销售;信息系统集成服务;集成电路设计;计算机软硬件及外围设备制造;集成电路芯片及产品制造;集成电路芯片及产品销售;知识产权服务（专利代理服务除外）;技术进出口;货物进出口;以自有资金从事投资活动（除依法须经批准的项目外,凭营业执照依法自主开展经营活动） | W78: 在园 | X78: 2 | Z78: a0a475cf454cf9a06979034098167b9e | AA78: 启用 | AB78: 1 | AC78: now()
A79: 无锡泓瑞航天科技有限公司 | B79: 91320213576282530J | C79: 2143 | D79: 1 | E79: 2011-07-11 | F79: 王小军 | G79: 0510-85387830 | H79: =VLOOKUP(A79,'[1]合同信息 '!$F$1:$M$438,7,0) -> 杨登强 | I79: =VLOOKUP(A79,'[1]合同信息 '!$F$1:$M$438,8,0) -> 18906195727 | J79: hrhtkjwx@sina.com | M79: 无锡新吴区菱湖大道200号传感网国际创新园G6 | O79: 航天技术应用及技术服务;真空、低温、电子类设备与表面工程产品的设计、开发、制造和销售;自营和代理各类商品和技术的进出口（国家限定公司经营或禁止进出口的商品和技术除外）。（依法须经批准的项目,经相关部门批准后方可开展经营活动） | W79: 在园 | X79: 2 | Z79: a0a475cf454cf9a06979034098167b9e | AA79: 启用 | AB79: 1 | AC79: now()
A80: 无锡市艾克特电气股份有限公司 | B80: 91320200071039797X | C80: 1145 | D80: 1 | E80: 2013-06-17 | F80: 宋明忻 | G80: 0510-85380261 | H80: =VLOOKUP(A80,'[1]合同信息 '!$F$1:$M$438,7,0) -> 刘建 | I80: =VLOOKUP(A80,'[1]合同信息 '!$F$1:$M$438,8,0) -> 18961882930 | J80: fengke@jact.cc | M80: 无锡市新吴区菱湖大道200号中国传感网国际创新园A-1001 | O80: 工业自动控制系统装置、电机、输配电及控制设备、汽车零部件及配件的研发、生产和销售;物联网设备、集成电路、新能源汽车驱动控制系统的研发与设计;软件的开发、技术服务与销售;信息系统集成服务;自营和代理各类商品及技术的进出口业务（国家限定企业经营或禁止进出口的商品和技术除外）。（依法须经批准的项目,经相关部门批准后方可开展经营活动） | W80: 在园 | X80: 2 | Z80: a0a475cf454cf9a06979034098167b9e | AA80: 启用 | AB80: 1 | AC80: now()
A81: 江苏中科君芯科技有限公司 | B81: 91320213585596419Y | C81: 1957.2463 | D81: 1 | E81: 2011-11-17 | F81: 连永懿 | G81: 0510-81884888 | H81: =VLOOKUP(A81,'[1]合同信息 '!$F$1:$M$438,7,0) -> 肖庆云 | I81: =VLOOKUP(A81,'[1]合同信息 '!$F$1:$M$438,8,0) -> 13902972899 | J81: junshine@cas-junshine.com | M81: 无锡新区菱湖大道200号中国传感网国际创新园D2-501 | O81: 电子元器件及系统设备的研发、销售、技术服务;物联网传感网等相关领域的系统集成、产品或设备的研发和运营服务。（依法须经批准的项目,经相关部门批准后方可开展经营活动）一般项目:技术进出口;货物进出口（除依法须经批准的项目外,凭营业执照依法自主开展经营活动） | W81: 在园 | X81: 2 | Z81: a0a475cf454cf9a06979034098167b9e | AA81: 启用 | AB81: 1 | AC81: now()
A82: 无锡优微科技有限公司 | B82: 91320214MA257KKY3K | C82: 3000 | D82: 1 | E82: 2021-02-10 | F82: 邢小亮 | G82: 0510-88350925 | H82: =VLOOKUP(A82,'[1]合同信息 '!$F$1:$M$438,7,0) ->  | I82: =VLOOKUP(A82,'[1]合同信息 '!$F$1:$M$438,8,0) ->  | J82: jixiaomian@uw-ic.com | M82: 无锡市新吴区菱湖大道200号G8-405 | O82: 许可项目:货物进出口;技术进出口;进出口代理（依法须经批准的项目,经相关部门批准后方可开展经营活动,具体经营项目以审批结果为准）一般项目:技术服务、技术开发、技术咨询、技术交流、技术转让、技术推广;电子专用材料研发;机械设备研发;集成电路制造;半导体分立器件制造;电力电子元器件制造;机械零件、零部件加工;通用设备制造（不含特种设备制造）;专用设备制造（不含许可类专业设备制造）;集成电路设计;集成电路销售;半导体分立器件销售;电力电子元器件销售;机械零件、零部件销售;软件销售;机械设备租赁;软件开发;通用设备修理;专用设备修理（除依法须经批准的项目外,凭营业执照依法自主开展经营活动） | W82: 挂靠 | Z82: a0a475cf454cf9a06979034098167b9e | AA82: 禁用 | AB82: 0 | AC82: now()
A83: 江苏中科西北星信息科技有限公司 | B83: 91320214582272072G | C83: 2250 | D83: 1 | E83: 2011-09-06 | F83: 王蒙 | G83: 0510-81817224 | H83: =VLOOKUP(A83,'[1]合同信息 '!$F$1:$M$438,7,0) ->  | I83: =VLOOKUP(A83,'[1]合同信息 '!$F$1:$M$438,8,0) ->  | J83: zkxbx@ciotc.org | M83: 无锡市新吴区菱湖大道200号中国传感网国际创新园C1座7楼 | O83: 计算机软、硬件开发及应用;计算机控制有关的软、硬件产品及成套设备的开发、生产及销售;大数据的应用技术开发和处理;数据库技术服务;行业信息化解决方案的开发和应用技术开发;大计算机系统集成;电子产品和机械设备的研发、销售;计算机控制工程和工程检测服务;自动化、智能化成套设备的设计、安装和调试;防盗报警、电子监控工程的设计、施工及维修;技术咨询及服务;健康管理咨询（不得从事诊疗活动）、养老服务咨询、健康信息咨询;养老看护服务;家政服务;展览展示服务;电子商务技术研发;人工智能技术产品、智能家居产品、电子产品、通讯设备（不含卫星广播地面接收设施及发射装置）研发、设计和销售,技术服务、技术咨询、技术转让;电信增值业务;企业管理咨询服务;第一类、第二类、第三类医疗器械的销售（凭有效许可证经营）;自营和代理各类商品及技术的进出口业务（国家限定企业经营或禁止进出口的商品和技术除外）。（依法须经批准的项目,经相关部门批准后方可开展经营活动） | W83: 在园 | X83: 2 | Z83: a0a475cf454cf9a06979034098167b9e | AA83: 启用 | AB83: 1 | AC83: now()
A84: 芯河半导体科技（无锡）有限公司 | B84: 91320214MA1YD36232 | C84: 1878.553 | D84: 1 | E84: 2019-05-14 | F84: 王晓明 | G84: 0510-85388273 | H84: =VLOOKUP(A84,'[1]合同信息 '!$F$1:$M$438,7,0) -> 王晓明 | I84: =VLOOKUP(A84,'[1]合同信息 '!$F$1:$M$438,8,0) -> 18761613082 | J84: lizheng@galachip.com | M84: 无锡市新吴区菱湖大道200号中国传感网国际创新园E1-701 | O84: 集成电路设计、研发、销售;半导体产品的销售;计算机软硬件、电信设备和通讯网络系统及软件的设计、开发、销售;计算机系统集成;电子科技、信息科技、计算机科技领域的技术开发、技术咨询、技术服务;自营和代理各类商品及技术的进出口业务（国家限定企业经营或禁止进出口的商品和技术除外）。（依法须经批准的项目,经相关部门批准后方可开展经营活动） | W84: 在园 | X84: 2 | Z84: a0a475cf454cf9a06979034098167b9e | AA84: 启用 | AB84: 1 | AC84: now()
A85: 龙微科技无锡有限公司 | B85: 913202133021285602 | C85: 3497.3529 | D85: 1 | E85: 2014-06-09 | F85: 殷宗平 | G85: 0510-85260888 | H85: =VLOOKUP(A85,'[1]合同信息 '!$F$1:$M$438,7,0) -> 杨倩 | I85: =VLOOKUP(A85,'[1]合同信息 '!$F$1:$M$438,8,0) -> 18552505685 | J85: xuxiao@longwaytec.com | M85: 无锡市新吴区菱湖大道200号中国传感网国际创新园G5号 | O85: 一般项目:技术服务、技术开发、技术咨询、技术交流、技术转让、技术推广;电子元器件制造;电子元器件批发;电子元器件零售;集成电路芯片及产品制造;集成电路芯片及产品销售;物联网技术研发;物联网设备制造;物联网设备销售;智能仪器仪表制造;智能仪器仪表销售;计算机软硬件及辅助设备批发;计算机软硬件及辅助设备零售;软件开发;货物进出口;技术进出口;进出口代理（除依法须经批准的项目外,凭营业执照依法自主开展经营活动） | W85: 在园 | X85: 2 | Z85: a0a475cf454cf9a06979034098167b9e | AA85: 启用 | AB85: 1 | AC85: now()
A86: 国联昆吾九鼎（无锡）投资中心（有限合伙） | B86: 91320200694474568J | C86: 20000 | D86: 1 | E86: 2009-08-27 | F86: 无锡上鼎久鼎投资管理有限公司 | G86: 010-56570999 | H86: =VLOOKUP(A86,'[1]合同信息 '!$F$1:$M$438,7,0) ->  | I86: =VLOOKUP(A86,'[1]合同信息 '!$F$1:$M$438,8,0) ->  | J86: peservice@jdcapital.com | M86: 无锡市新吴区菱湖大道200号中国传感网国际创新园E2-103 | O86: 行业性实业投资。（依法须经批准的项目,经相关部门批准后方可开展经营活动） | W86: 挂靠 | Z86: a0a475cf454cf9a06979034098167b9e | AA86: 禁用 | AB86: 0 | AC86: now()
A87: 无锡安诺信通信技术有限公司 | B87: 913202133390515365 | C87: 5000 | D87: 1 | E87: 2015-05-21 | F87: 赵剑开 | G87: 0510-68799783 | H87: =VLOOKUP(A87,'[1]合同信息 '!$F$1:$M$438,7,0) ->  | I87: =VLOOKUP(A87,'[1]合同信息 '!$F$1:$M$438,8,0) ->  | J87: wxzxzz@anosi.cn | M87: 无锡市新区菱湖大道200号中国传感网国际创新园G7栋一层 | O87: 软件开发及销售;技术转让、技术咨询、技术服务;计算机软硬件及辅助设备、仓储设备、物流设备的销售;计算机和辅助设备修理;通信设备修理;信息技术咨询;信息系统集成服务;仓储服务。（依法须经批准的项目,经相关部门批准后方可开展经营活动） | W87: 挂靠 | Z87: a0a475cf454cf9a06979034098167b9e | AA87: 禁用 | AB87: 0 | AC87: now()
A88: 无锡国经众贤投资企业（有限合伙） | B88: 91320211MA1TA2MPX9 | C88: 5000 | D88: 1 | E88: 2017-11-15 | F88: 无锡国经投资管理有限公司 | G88: 0510-85858678 | H88: =VLOOKUP(A88,'[1]合同信息 '!$F$1:$M$438,7,0) ->  | I88: =VLOOKUP(A88,'[1]合同信息 '!$F$1:$M$438,8,0) ->  | J88: 71523207@qq.com | M88: 无锡市新吴区菱湖大道200号中国传感网国际创新园E2-103 | O88: 利用自有资金对外投资。（依法须经批准的项目,经相关部门批准后方可开展经营活动） | W88: 挂靠 | Z88: a0a475cf454cf9a06979034098167b9e | AA88: 禁用 | AB88: 0 | AC88: now()
A89: 无锡中智人力资源服务有限公司 | B89: 913202145795271774 | C89: 200 | D89: 1 | E89: 2011-08-02 | F89: 寇春丽 | G89: 0510-81817301 | H89: =VLOOKUP(A89,'[1]合同信息 '!$F$1:$M$438,7,0) -> 吴晓兰 | I89: =VLOOKUP(A89,'[1]合同信息 '!$F$1:$M$438,8,0) -> 18651868665 | J89: kcl@ciicjs.com | M89: 无锡市菱湖大道200号中国传感网国际创新园A311 | O89: 许可项目:劳务派遣服务;职业中介活动（依法须经批准的项目,经相关部门批准后方可开展经营活动,具体经营项目以审批结果为准） 一般项目:人力资源服务（不含职业中介活动、劳务派遣服务）;薪酬管理服务;工程管理服务;科技中介服务;咨询策划服务;财务咨询;认证咨询;企业管理咨询;信息咨询服务（不含许可类信息咨询服务）;票据信息咨询服务;市场营销策划;教育咨询服务（不含涉许可审批的教育培训活动）;社会经济咨询服务;信息技术咨询服务;自费出国留学中介服务;法律咨询（不含依法须律师事务所执业许可的业务）;技术服务、技术开发、技术咨询、技术交流、技术转让、技术推广;标准化服务;税务服务;科技推广和应用服务;版权代理;承接档案服务外包;数据处理服务;数据处理和存储支持服务;生产线管理服务;劳务服务（不含劳务派遣）;专业设计服务;业务培训（不含教育培训、职业技能培训等需取得许可的培训）;组织文化艺术交流活动;组织体育表演活动;软件外包服务;基于云平台的业务外包服务;接受金融机构委托从事信息技术和流程外包服务（不含金融信息服务）;商务代理代办服务;市场主体登记注册代理;招投标代理服务;政府采购代理服务;市场调查（不含涉外调查）;企业管理;翻译服务;酒店管理（除依法须经批准的项目外,凭营业执照依法自主开展经营活动） 限分支机构经营:知识产权服务（专利代理服务除外） | W89: 在园 | X89: 2 | Z89: a0a475cf454cf9a06979034098167b9e | AA89: 启用 | AB89: 1 | AC89: now()
A90: 无锡芯享信息科技有限公司 | B90: 91320214MA1WUNMW6U | C90: 1045.873 | D90: 1 | E90: 2018-07-10 | F90: 沈聪聪 | G90: 0510-83739999 | H90: =VLOOKUP(A90,'[1]合同信息 '!$F$1:$M$438,7,0) -> 徐培培 | I90: =VLOOKUP(A90,'[1]合同信息 '!$F$1:$M$438,8,0) -> 13806181464 | J90: xxpr@xnebula.com | M90: 无锡市新吴区菱湖大道200号中国传感网国际创新园G10-1006 | O90: 一般项目:信息系统集成服务;信息技术咨询服务;信息系统运行维护服务;数据处理服务;工业互联网数据服务;物联网技术服务;物联网技术研发;网络技术服务;物联网应用服务;网络与信息安全软件开发;软件开发;技术服务、技术开发、技术咨询、技术交流、技术转让、技术推广;软件销售;网络设备销售;通讯设备销售;物联网设备销售;计算机软硬件及辅助设备零售;工业控制计算机及系统销售;信息安全设备销售;电子产品销售;办公用品销售;五金产品零售;货物进出口;技术进出口（除依法须经批准的项目外,凭营业执照依法自主开展经营活动） | W90: 在园 | X90: 2 | Z90: a0a475cf454cf9a06979034098167b9e | AA90: 启用 | AB90: 1 | AC90: now()
A91: 无锡美凯能源科技有限公司 | B91: 91320213593919716E | C91: 1092.6573 | D91: 1 | E91: 2012-04-06 | F91: 牟英峰 | G91: 0510-81193051 | H91: =VLOOKUP(A91,'[1]合同信息 '!$F$1:$M$438,7,0) ->  | I91: =VLOOKUP(A91,'[1]合同信息 '!$F$1:$M$438,8,0) ->  | J91: 2237377827@qq.com | M91: 无锡新吴区菱湖大道200号中国传感网国际创新园B-201号 | O91: 能源技术及产品、能源技术系统软件、嵌入式软件、并网逆变器技术及产品的研发、生产、销售;能源技术咨询与技术服务;自营和代理各类商品及技术的进出口业务（国家限定公司经营或禁止进出口的商品和技术除外）。（依法须经批准的项目,经相关部门批准后方可开展经营活动） | W91: 挂靠 | Z91: a0a475cf454cf9a06979034098167b9e | AA91: 禁用 | AB91: 0 | AC91: now()
A92: 无锡国经众新投资管理合伙企业（有限合伙） | B92: 91320200MA1MD4B35C | C92: 4250 | D92: 1 | E92: 2015-09-18 | F92: 无锡国经投资管理有限公司 | G92: 0510-85858678 | H92: =VLOOKUP(A92,'[1]合同信息 '!$F$1:$M$438,7,0) ->  | I92: =VLOOKUP(A92,'[1]合同信息 '!$F$1:$M$438,8,0) ->  | J92: 71523207@qq.com | M92: 无锡市新吴区菱湖大道200号中国传感网国际创新园E2-103 | O92: 利用自有资金对外投资;投资咨询（不含证券、期货类）。（依法须经批准的项目,经相关部门批准后方可开展经营活动） | W92: 挂靠 | Z92: a0a475cf454cf9a06979034098167b9e | AA92: 禁用 | AB92: 0 | AC92: now()
A93: 无锡人才之家信息科技有限公司 | B93: 913202147986075055 | C93: 345 | D93: 1 | E93: 2007-02-15 | F93: 杨晓峰 | G93: 0510-85226111 | H93: =VLOOKUP(A93,'[1]合同信息 '!$F$1:$M$438,7,0) -> 杨晓峰 | I93: =VLOOKUP(A93,'[1]合同信息 '!$F$1:$M$438,8,0) -> 13813691833 | J93: fbzb@rczj.cn | M93: 无锡市新吴区菱湖大道200号中国传感网国际创新园A-302号 | O93: 计算机软硬件开发；境内职业中介；商务信息咨询（不含投资咨询）；酒店管理咨询服务；设计、制作、代理及发布国内各类广告业务；承接服务外包；企业营销策划；劳务派遣经营；第二类增值电信业务中的因特网信息服务业（因特网信息服务不含新闻、出版、教育、医疗保健、药品和医疗器械、互联网电子公告服务等内容）。（依法须经批准的项目，经相关部门批准后方可开展经营活动）一般项目：商务代理代办服务；汽车新车销售；机动车检验检测服务；汽车租赁；机动车修理和维护；代驾服务；专业保洁、清洗、消毒服务；家政服务；建筑物清洁服务；生产线管理服务；装卸搬运（除依法须经批准的项目外，凭营业执照依法自主开展经营活动） | W93: 在园 | X93: 2 | Z93: a0a475cf454cf9a06979034098167b9e | AA93: 启用 | AB93: 1 | AC93: now()
A94: 无锡扬晟科技股份有限公司 | B94: 91320214554610089T | C94: 5000 | D94: 1 | E94: 2010-04-21 | F94: 倪晓宇 | G94: 0510-88102309 | H94: =VLOOKUP(A94,'[1]合同信息 '!$F$1:$M$438,7,0) ->  | I94: =VLOOKUP(A94,'[1]合同信息 '!$F$1:$M$438,8,0) ->  | J94: bid@iyoungsun.com | M94: 无锡新吴区菱湖大道200号中国传感网国际创新园G10-903、910 | O94: 计算机软硬件的技术开发、技术咨询、技术服务及技术转让;新能源技术开发、技术转让;新能源汽车充换电设施的研发、生产、销售;节能技术的研发、技术转让、技术咨询及技术服务;电气机械及器材的研发、销售及运行维护服务;工程测量服务;数据处理和存储服务;承装（修、试）电力设施业务;计算机软硬件及辅助设备零售;设计、制作、代理、发布各类广告业务;标识标牌的加工销售。（依法须经批准的项目,经相关部门批准后方可开展经营活动）。一般项目:机械电气设备制造（除依法须经批准的项目外,凭营业执照依法自主开展经营活动） | W94: 在园 | X94: 2 | Z94: a0a475cf454cf9a06979034098167b9e | AA94: 启用 | AB94: 1 | AC94: now()
A95: 江苏物创产业投资有限公司 | B95: 91320214MABTAACA3B | C95: 3000 | D95: 1 | E95: 2022-06-28 | F95: 齐玉峰 | G95: - | H95: =VLOOKUP(A95,'[1]合同信息 '!$F$1:$M$438,7,0) ->  | I95: =VLOOKUP(A95,'[1]合同信息 '!$F$1:$M$438,8,0) ->  | J95: - | M95: 无锡市新吴区菱湖大道200号E2-112 | O95: 一般项目:股权投资;创业投资（限投资未上市企业）;以自有资金从事投资活动;自有资金投资的资产管理服务;信息咨询服务（不含许可类信息咨询服务）;信息技术咨询服务（除依法须经批准的项目外,凭营业执照依法自主开展经营活动） | W95: 挂靠 | Z95: a0a475cf454cf9a06979034098167b9e | AA95: 禁用 | AB95: 0 | AC95: now()
A96: 无锡产发云晖创业投资合伙企业（有限合伙） | B96: 91320214MA7HY4PT89 | C96: 10000 | D96: 1 | E96: 2022-01-29 | F96: 东台云畅投资管理合伙企业（有限合伙） | G96: - | H96: =VLOOKUP(A96,'[1]合同信息 '!$F$1:$M$438,7,0) ->  | I96: =VLOOKUP(A96,'[1]合同信息 '!$F$1:$M$438,8,0) ->  | J96: - | M96: 无锡市新吴区菱湖大道200号E1-202-45 | O96: 一般项目:创业投资（限投资未上市企业）;以私募基金从事股权投资、投资管理、资产管理等活动（须在中国证券投资基金业协会完成登记备案后方可从事经营活动）（除依法须经批准的项目外,凭营业执照依法自主开展经营活动） | W96: 挂靠 | Z96: a0a475cf454cf9a06979034098167b9e | AA96: 禁用 | AB96: 0 | AC96: now()
A97: 无锡中汉和物流科技有限公司 | B97: 91320214MA1MFFUW46 | C97: 5000 | D97: 1 | E97: 2016-02-24 | F97: 许红兵 | G97: 0510-85380006 | H97: =VLOOKUP(A97,'[1]合同信息 '!$F$1:$M$438,7,0) -> 许红兵 | I97: =VLOOKUP(A97,'[1]合同信息 '!$F$1:$M$438,8,0) -> 85380006 | J97: postmaster@zhhwlkj.com | M97: 无锡市菱湖大道200号中国传感网国际创新园G10-401 | O97: 智能自动化设备、计算机软硬件的技术开发、技术咨询、技术转让;自动分拣设备、仓储自动化设备、输送设备及配件、电子产品、计算机软硬件的销售;企业管理咨询服务（不含投资咨询）。（依法须经批准的项目,经相关部门批准后方可开展经营活动） | W97: 在园 | X97: 2 | Z97: a0a475cf454cf9a06979034098167b9e | AA97: 启用 | AB97: 1 | AC97: now()
A98: 无锡来龙去脉科技有限公司 | B98: 91320214MA20BF8E76 | C98: 1000 | D98: 1 | E98: 2019-11-01 | F98: 贺建 | G98: 13405893332 | H98: =VLOOKUP(A98,'[1]合同信息 '!$F$1:$M$438,7,0) -> 贺建 | I98: =VLOOKUP(A98,'[1]合同信息 '!$F$1:$M$438,8,0) -> 17312786806 | J98: 813556902@qq.com | M98: 无锡市新吴区菱湖大道200号中国传感网国际创新园E2-103 | O98: 技术开发、技术咨询、技术转让、技术服务、技术推广;计算机软件开发及维护;设计、制作、代理、发布广告;互联网文化活动。（依法须经批准的项目,经相关部门批准后方可开展经营活动） | W98: 在园 | X98: 2 | Z98: a0a475cf454cf9a06979034098167b9e | AA98: 启用 | AB98: 1 | AC98: now()
A99: 无锡国联创新一号投资合伙企业（有限合伙） | B99: 91320205MA25C7DY07 | C99: 10000 | D99: 1 | E99: 2021-03-09 | F99: 无锡国联资本运营私募基金管理有限公司 | G99: 0510-82830985 | H99: =VLOOKUP(A99,'[1]合同信息 '!$F$1:$M$438,7,0) ->  | I99: =VLOOKUP(A99,'[1]合同信息 '!$F$1:$M$438,8,0) ->  | J99: info@wuxicapital.com.cn | M99: 无锡市新吴区菱湖大道200号中国传感网国际创新园E1-202-63 | O99: 一般项目:股权投资;以自有资金从事投资活动（除依法须经批准的项目外,凭营业执照依法自主开展经营活动） | W99: 挂靠 | Z99: a0a475cf454cf9a06979034098167b9e | AA99: 禁用 | AB99: 0 | AC99: now()
A100: 无锡中科富创科技孵化有限公司 | B100: 913202143460860085 | C100: 500 | D100: 1 | E100: 2015-06-24 | F100: 栾年生 | G100: 0510-85383398 | H100: =VLOOKUP(A100,'[1]合同信息 '!$F$1:$M$438,7,0) ->  | I100: =VLOOKUP(A100,'[1]合同信息 '!$F$1:$M$438,8,0) ->  | J100: 1458394262@qq.com | M100: 无锡新吴区菱湖大道200号中国传感网国际创新园C座2楼 | O100: 一般项目：创业空间服务；信息技术咨询服务；技术服务、技术开发、技术咨询、技术交流、技术转让、技术推广；市场营销策划；企业形象策划；会议及展览服务；软件开发；市场调查；科技中介服务；信息咨询服务（不含许可类信息咨询服务）；企业管理；物联网技术服务（除依法须经批准的项目外，凭营业执照依法自主开展经营活动） | W100: 挂靠 | Z100: a0a475cf454cf9a06979034098167b9e | AA100: 禁用 | AB100: 0 | AC100: now()
A101: 无锡飞翎电子有限公司 | B101: 91320214748158756F | C101: 362.4564 | D101: 2 | E101: 2003-04-14 | F101: 肖毅 | G101: 0510-83704003 | H101: =VLOOKUP(A101,'[1]合同信息 '!$F$1:$M$438,7,0) ->  | I101: =VLOOKUP(A101,'[1]合同信息 '!$F$1:$M$438,8,0) ->  | J101: info@midea.com.cn | M101: 无锡新区太湖国际科技园菱湖大道200号中国传感网国际创新园内 | O101: 软件产品的开发，新型电子元器件（新型机电元件）的开发生产；生产税控收款机；普通货运；电机产品的开发、设计、制造、销售。（依法须经批准的项目，经相关部门批准后方可开展经营活动） | W101: 挂靠 | Z101: a0a475cf454cf9a06979034098167b9e | AA101: 禁用 | AB101: 0 | AC101: now()
A102: 无锡亚上科技有限公司 | B102: 91320213MA1PYG7B58 | C102: 1000 | D102: 1 | E102: 2017-07-24 | F102: 段伟 | G102: 13520647688 | H102: =VLOOKUP(A102,'[1]合同信息 '!$F$1:$M$438,7,0) ->  | I102: =VLOOKUP(A102,'[1]合同信息 '!$F$1:$M$438,8,0) ->  | J102: david@qingtuapp.com | M102: 无锡市新吴区菱湖大道200号D2-600-32 | O102: 一般项目:技术服务、技术开发、技术咨询、技术交流、技术转让、技术推广;网络技术服务;软件开发;软件销售;软件外包服务;市场营销策划;计算机软硬件及辅助设备批发;工业自动控制系统装置销售;智能控制系统集成;信息系统集成服务;计算机系统服务;电子产品销售;电气设备销售;仪器仪表销售;货物进出口;技术进出口;进出口代理（除依法须经批准的项目外,凭营业执照依法自主开展经营活动） | W102: 挂靠 | Z102: a0a475cf454cf9a06979034098167b9e | AA102: 禁用 | AB102: 0 | AC102: now()
A103: 无锡智瑞信息科技有限公司 | B103: 913202140879385004 | C103: 1200 | D103: 1 | E103: 2014-02-19 | F103: 陈怡洁 | G103: 0510-81813067 | H103: =VLOOKUP(A103,'[1]合同信息 '!$F$1:$M$438,7,0) ->  | I103: =VLOOKUP(A103,'[1]合同信息 '!$F$1:$M$438,8,0) ->  | J103: 36074243@QQ.COM | M103: 无锡市新吴区菱湖大道200号中国传感网国际创新园A307-2号 | O103: 许可项目:职业中介活动（依法须经批准的项目,经相关部门批准后方可开展经营活动,具体经营项目以审批结果为准）一般项目:技术服务、技术开发、技术咨询、技术交流、技术转让、技术推广;人力资源服务（不含职业中介活动、劳务派遣服务）;生产线管理服务;电力电子元器件销售;电力电子元器件制造;电子产品销售;企业管理;企业管理咨询;会议及展览服务;信息咨询服务（不含许可类信息咨询服务）;接受金融机构委托从事信息技术和流程外包服务（不含金融信息服务）;生物化工产品技术研发;润滑油销售;普通货物仓储服务（不含危险化学品等需许可审批的项目）;数字内容制作服务（不含出版发行）;摄像及视频制作服务（除依法须经批准的项目外,凭营业执照依法自主开展经营活动） | W103: 在园 | X103: 2 | Z103: a0a475cf454cf9a06979034098167b9e | AA103: 启用 | AB103: 1 | AC103: now()
A104: 江苏慧嘉博人力资源集团有限公司 | B104: 91320213301981703T | C104: 1000 | D104: 1 | E104: 2014-05-15 | F104: 蒋丹 | G104: 18921183025 | H104: =VLOOKUP(A104,'[1]合同信息 '!$F$1:$M$438,7,0) ->  | I104: =VLOOKUP(A104,'[1]合同信息 '!$F$1:$M$438,8,0) ->  | J104: - | M104: 无锡市新吴区菱湖大道200号中国传感网国际创新园A307-1 | O104: 境内职业中介服务（凭许可证经营）；以承继服务外包方式从事电子元器件、机械零部件、计算机软件的技术开发、生产、包装、检测；软件开发与技术服务（不含互联网信息服务）；技术转让；社保代理服务；企业管理服务（不含投资与资产管理）；物业管理；家政服务；绿化养护服务；健康咨询服务（不含诊疗性质）；清洁服务；会议及展览服务；信息系统集成服务；信息技术咨询服务；市场调查服务；心理咨询（不含诊疗性质）；搬运装卸服务；仓储服务；建筑装饰装修工程施工。（依法须经批准的项目，经相关部门批准后方可开展经营活动） | W104: 挂靠 | Z104: a0a475cf454cf9a06979034098167b9e | AA104: 禁用 | AB104: 0 | AC104: now()
A105: 无锡众诺信息技术有限公司 | B105: 91320203581089719Q | C105: 200 | D105: 1 | E105: 2011-08-30 | F105: 王有 | G105: 13400005851 | H105: =VLOOKUP(A105,'[1]合同信息 '!$F$1:$M$438,7,0) ->  | I105: =VLOOKUP(A105,'[1]合同信息 '!$F$1:$M$438,8,0) ->  | J105: manystep@126.com | M105: 无锡市新吴区菱湖大道200号E2-103-1023 | O105: 通讯信息技术、计算机、软件的技术开发、技术服务、技术咨询；信息系统集成服务；计算机、软件及辅助设备的销售；企业管理咨询；企业营销策划；电脑加工图片服务；代理记账；会计服务、税务服务、企业登记代理服务。（依法须经批准的项目，经相关部门批准后方可开展经营活动） | W105: 挂靠 | Z105: a0a475cf454cf9a06979034098167b9e | AA105: 禁用 | AB105: 0 | AC105: now()
A106: 无锡市中科芯启航产业投资合伙企业（有限合伙） | B106: 91320214MA22FBMA60 | C106: 5000 | D106: 1 | E106: 2020-09-16 | F106: 无锡中科英智投资管理有限公司 | G106: 0510-85383398 | H106: =VLOOKUP(A106,'[1]合同信息 '!$F$1:$M$438,7,0) ->  | I106: =VLOOKUP(A106,'[1]合同信息 '!$F$1:$M$438,8,0) ->  | J106: 1458394262@qq.com | M106: 无锡市新吴区菱湖大道200号中国传感网国际创新园C1座209 | O106: 一般项目：以自有资金从事投资活动；创业投资（除依法须经批准的项目外，凭营业执照依法自主开展经营活动） | W106: 挂靠 | Z106: a0a475cf454cf9a06979034098167b9e | AA106: 禁用 | AB106: 0 | AC106: now()
A107: 江苏启明星辰信息安全技术有限公司 | B107: 91320214MA1XCRQL5M | C107: 5000 | D107: 1 | E107: 2018-10-26 | F107: 傅毅 | G107: 15850536476 | H107: =VLOOKUP(A107,'[1]合同信息 '!$F$1:$M$438,7,0) ->  | I107: =VLOOKUP(A107,'[1]合同信息 '!$F$1:$M$438,8,0) ->  | J107: fuyi@venustech.com.cn | M107: 无锡市新吴区菱湖大道200号中国传感网国际创新园E2-103 | O107: 电子信息技术、计算机网络技术、计算机软硬件的技术开发、技术服务、技术转让、技术咨询;展览展示服务;会议服务;计算机网络工程;五金产品、电子元器件、计算机软硬件的销售;自有房屋租赁;面向成年人开展的计算机技术培训（不含国家统一认可的执业证书类培训）;自营和代理各类商品及技术的进出口（国家限定公司经营或禁止进出口的商品和技术除外）;机械设备租赁。（依法须经批准的项目,经相关部门批准后方可开展经营活动） | W107: 挂靠 | Z107: a0a475cf454cf9a06979034098167b9e | AA107: 禁用 | AB107: 0 | AC107: now()
A108: 无锡美偌科微电子有限公司 | B108: 91320214323896382H | C108: 2225 | D108: 1 | E108: 2014-12-22 | F108: 夏中宇 | G108: 0510-81021569 | H108: =VLOOKUP(A108,'[1]合同信息 '!$F$1:$M$438,7,0) -> 夏中宇 | I108: =VLOOKUP(A108,'[1]合同信息 '!$F$1:$M$438,8,0) -> 13585000628 | J108: sale@mir-power.com | M108: 无锡市新吴区菱湖大道200号中国物联网国际创新园A-406、A-407 | O108: 集成电路、功率元件及其应用系统的设计、开发、生产、销售、技术咨询及技术服务;集成电路相关应用软件的技术咨询及技术服务;自营和代理各类商品和技术的进出口（国家限定公司经营或禁止进出口的商品和技术除外）。（依法须经批准的项目,经相关部门批准后方可开展经营活动） | W108: 在园 | X108: 2 | Z108: a0a475cf454cf9a06979034098167b9e | AA108: 启用 | AB108: 1 | AC108: now()
A109: 中兴智能系统集成无锡有限公司 | B109: 91320214074656299W | C109: 5000 | D109: 1 | E109: 2013-07-18 | F109: 刘海峰 | G109: 0510-66055077 | H109: =VLOOKUP(A109,'[1]合同信息 '!$F$1:$M$438,7,0) ->  | I109: =VLOOKUP(A109,'[1]合同信息 '!$F$1:$M$438,8,0) ->  | J109: wuyh@zte-its.com | M109: 无锡市新吴区菱湖大道200号中国传感网国际创新园A-607 | O109: 计算机系统集成;物联网技术的研发;通讯软硬件、企业管理软件的技术开发、技术咨询、技术转让;计算机软件的销售;通信系统设计、安装;计算机系统服务;安全技术防范系统工程设计、施工、维修;电气设备与信号设备的安装;自营和代理各类商品及技术的进出口（国家限定公司经营或禁止进出口的商品和技术除外）;股权投资。（依法须经批准的项目,经相关部门批准后方可开展经营活动） | W109: 挂靠 | Z109: a0a475cf454cf9a06979034098167b9e | AA109: 禁用 | AB109: 0 | AC109: now()
A110: 无锡创星孵化器管理有限公司 | B110: 91320213MA1MBP2K38 | C110: 350 | D110: 1 | E110: 2015-11-26 | F110: 刘人杰 | G110: 0510-85389232 | H110: =VLOOKUP(A110,'[1]合同信息 '!$F$1:$M$438,7,0) -> 刘人杰 | I110: =VLOOKUP(A110,'[1]合同信息 '!$F$1:$M$438,8,0) -> 13665157322 | J110: service@starcafe.cc | M110: 无锡市菱湖大道200号中国传感网国际创新园F11楼 | O110: 许可项目:餐饮服务（依法须经批准的项目,经相关部门批准后方可开展经营活动,具体经营项目以审批结果为准）一般项目:创业空间服务;企业管理咨询;以自有资金从事投资活动;物联网技术服务;市场调查（不含涉外调查）;会议及展览服务;市场营销策划;业务培训（不含教育培训、职业技能培训等需取得许可的培训）;企业形象策划;物业管理;非居住房地产租赁;餐饮管理;食品经营（仅销售预包装食品）（除依法须经批准的项目外,凭营业执照依法自主开展经营活动） | W110: 在园 | X110: 2 | Z110: a0a475cf454cf9a06979034098167b9e | AA110: 启用 | AB110: 1 | AC110: now()
A111: 无锡品冠衣联网信息技术有限公司 | B111: 91320214MA1YCX6R41 | C111: 18000 | D111: 1 | E111: 2019-05-13 | F111: 蒋宗清 | G111: 0510-85381619 | H111: =VLOOKUP(A111,'[1]合同信息 '!$F$1:$M$438,7,0) -> 蒋宗清 | I111: =VLOOKUP(A111,'[1]合同信息 '!$F$1:$M$438,8,0) -> 1351107896 | J111: huangmeijie@thinkgo.cc | M111: 无锡市新吴区菱湖大道200号中国传感网国际创新园G10-706 | O111: 许可项目:房地产开发经营;建筑智能化系统设计;建筑智能化工程施工（依法须经批准的项目,经相关部门批准后方可开展经营活动,具体经营项目以审批结果为准） 一般项目:物联网技术研发;物联网技术服务;物联网应用服务;信息系统集成服务;计算机系统服务;软件开发;软件销售;工程和技术研究和试验发展;机械设备研发;机械设备销售;电子产品销售;电子专用设备销售;通用设备制造（不含特种设备制造）;通用设备修理;专用设备制造（不含许可类专业设备制造）;专用设备修理;土地使用权租赁;非居住房地产租赁;物业管理;会议及展览服务;组织文化艺术交流活动;市场营销策划;以自有资金从事投资活动（除依法须经批准的项目外,凭营业执照依法自主开展经营活动） | W111: 在园 | X111: 2 | Z111: a0a475cf454cf9a06979034098167b9e | AA111: 启用 | AB111: 1 | AC111: now()
A112: 无锡辩日咨询服务合伙企业（有限合伙） | B112: 91320214MA2225RY7E | C112: 2000 | D112: 1 | E112: 2020-07-23 | F112: 张伟民 | G112: 0510-85185760 | H112: =VLOOKUP(A112,'[1]合同信息 '!$F$1:$M$438,7,0) ->  | I112: =VLOOKUP(A112,'[1]合同信息 '!$F$1:$M$438,8,0) ->  | J112: info@glxcpe.com | M112: 无锡市新吴区菱湖大道200号中国传感网国际创新园E1-202-9 | O112: 一般项目:社会经济咨询服务;以自有资金从事投资活动（除依法须经批准的项目外,凭营业执照依法自主开展经营活动） | W112: 挂靠 | Z112: a0a475cf454cf9a06979034098167b9e | AA112: 禁用 | AB112: 0 | AC112: now()
A113: 无锡图灵视频科技有限公司 | B113: 91320214MA1NQEH91H | C113: 1000 | D113: 1 | E113: 2017-04-10 | F113: 钟星 | G113: 0510-85381702 | H113: =VLOOKUP(A113,'[1]合同信息 '!$F$1:$M$438,7,0) -> 钟星 | I113: =VLOOKUP(A113,'[1]合同信息 '!$F$1:$M$438,8,0) -> 18061601251 | J113: xing@turingvideo.com | M113: 无锡市新吴区菱湖大道200号中国传感网国际创新园E2-419 | O113: 工程和技术研究与试验发展;技术开发、技术转让、技术推广、技术服务、技术咨询;产品设计;软件开发;基础软件、应用服务软件;机械设备、电子产品、五金交电、计算机软件及辅助设备、日用杂货的销售;数据处理（数据处理中的银行卡中心、PUE值在1.5以上的云计算数据中心除外）;会议服务;企业策划、设计;市场调查;自营和代理各类商品及技术的进出口（国家限定公司经营或禁止进出口的商品及技术除外）。（依法须经批准的项目,经相关部门批准后方可开展经营活动） | W113: 在园 | X113: 2 | Z113: a0a475cf454cf9a06979034098167b9e | AA113: 启用 | AB113: 1 | AC113: now()
A114: 江苏多益能源科技有限公司 | B114: 91320214MA1X46DT7C | C114: 1000 | D114: 1 | E114: 2018-08-29 | F114: 姜占锋 | G114: 0510-85383299 | H114: =VLOOKUP(A114,'[1]合同信息 '!$F$1:$M$438,7,0) ->  | I114: =VLOOKUP(A114,'[1]合同信息 '!$F$1:$M$438,8,0) ->  | J114: yuemengwei@allenergy.com.cn | M114: 无锡市新吴区菱湖大道200号中国传感网国际创新园E1-501 | O114: 分布式光伏电站、风力发电站、储能电站的开发、建设、运行、维护、技术咨询;电力设施销售、维护;系统集成;储能系统涉及的原材料（不含危险品）及零部件、锂离子动力电池研发、设计、销售;太阳能组件、电池片及相关原材料的销售;自营和代理各类商品及技术的进出口业务（国家限定企业经营或禁止进出口的商品和技术除外）。（依法须经批准的项目,经相关部门批准后方可开展经营活动）一般项目:电池制造;通用零部件制造;新能源原动设备制造;输配电及控制设备制造;电子元器件与机电组件设备制造;能量回收系统研发（除依法须经批准的项目外,凭营业执照依法自主开展经营活动） | W114: 挂靠 | Z114: a0a475cf454cf9a06979034098167b9e | AA114: 禁用 | AB114: 0 | AC114: now()
A115: 江苏奥立信数字科技有限公司 | B115: 91320214MA25LMGT94 | C115: 1000 | D115: 1 | E115: 2021-04-06 | F115: 吴凯 | G115: 0510-85220581 | H115: =VLOOKUP(A115,'[1]合同信息 '!$F$1:$M$438,7,0) -> 曾庆斌 | I115: =VLOOKUP(A115,'[1]合同信息 '!$F$1:$M$438,8,0) -> 18605314315 | J115: miaoshuyuan@olxin.cn | M115: 无锡市新吴区菱湖大道200-8号G1-306 | O115: 一般项目：技术服务、技术开发、技术咨询、技术交流、技术转让、技术推广；工业互联网数据服务；云计算装备技术服务；计算机系统服务；数据处理服务；数据处理和存储支持服务；物联网技术研发；物联网技术服务；物联网应用服务；信息系统集成服务；信息技术咨询服务；智能控制系统集成；工业工程设计服务；工程管理服务；工程技术服务（规划管理、勘察、设计、监理除外）；合同能源管理；节能管理服务；社会经济咨询服务；企业管理咨询；商务代理代办服务；销售代理；国内贸易代理；物联网设备销售；电子元器件与机电组件设备销售；工业自动控制系统装置销售；电子产品销售；工业控制计算机及系统销售；计算机软硬件及辅助设备批发；计算机软硬件及辅助设备零售（除依法须经批准的项目外，凭营业执照依法自主开展经营活动） | W115: 在园 | X115: 2 | Z115: a0a475cf454cf9a06979034098167b9e | AA115: 启用 | AB115: 1 | AC115: now()
A116: 无锡保利得信息技术合伙企业（有限合伙） | B116: 91320200346270729T | C116: 3000 | D116: 1 | E116: 2015-06-30 | F116: 王蒙 | G116: 0510-81817224 | H116: =VLOOKUP(A116,'[1]合同信息 '!$F$1:$M$438,7,0) ->  | I116: =VLOOKUP(A116,'[1]合同信息 '!$F$1:$M$438,8,0) ->  | J116: fucy@ciotc.org | M116: 无锡市新吴区菱湖大道200号中国传感网国际创新园C1座701室 | O116: 计算机信息系统技术开发、技术咨询、技术服务;物联网技术开发、技术咨询;数据处理服务;企业管理信息咨询服务。（依法须经批准的项目,经相关部门批准后方可开展经营活动） | W116: 挂靠 | Z116: a0a475cf454cf9a06979034098167b9e | AA116: 禁用 | AB116: 0 | AC116: now()
A117: 无锡物创咨询管理合伙企业（有限合伙） | B117: 91320214MA22FJ9L5M | C117: 3000 | D117: 1 | E117: 2020-09-16 | F117: 万文珍 | G117: 0510-85378880 | H117: =VLOOKUP(A117,'[1]合同信息 '!$F$1:$M$438,7,0) ->  | I117: =VLOOKUP(A117,'[1]合同信息 '!$F$1:$M$438,8,0) ->  | J117: cxzx@wiot.tech | M117: 无锡市新吴区菱湖大道200号E2-112 | O117: 一般项目:信息咨询服务（不含许可类信息咨询服务）;企业管理咨询;技术服务、技术开发、技术咨询、技术交流、技术转让、技术推广;软件开发（除依法须经批准的项目外,凭营业执照依法自主开展经营活动） | W117: 挂靠 | Z117: a0a475cf454cf9a06979034098167b9e | AA117: 禁用 | AB117: 0 | AC117: now()
A118: 无锡悦启航科技合伙企业（有限合伙） | B118: 91320214MA255XE523 | C118: 1400 | D118: 1 | E118: 2021-02-02 | F118: 夏中宇 | G118: 0510-81021569 | H118: =VLOOKUP(A118,'[1]合同信息 '!$F$1:$M$438,7,0) ->  | I118: =VLOOKUP(A118,'[1]合同信息 '!$F$1:$M$438,8,0) ->  | J118: youxy@mir-power.com | M118: 无锡市新吴区菱湖大道200号28-A406 | O118: 一般项目：技术服务、技术开发、技术咨询、技术交流、技术转让、技术推广；集成电路芯片及产品销售；半导体分立器件销售；以自有资金从事投资活动（除依法须经批准的项目外，凭营业执照依法自主开展经营活动） | W118: 挂靠 | Z118: a0a475cf454cf9a06979034098167b9e | AA118: 禁用 | AB118: 0 | AC118: now()
A119: 无锡米芯微电子技术有限公司 | B119: 91320214MA201GPA0B | C119: 500 | D119: 1 | E119: 2019-09-04 | F119: 路安安 | G119: 13358117210 | H119: =VLOOKUP(A119,'[1]合同信息 '!$F$1:$M$438,7,0) -> 路安安 | I119: =VLOOKUP(A119,'[1]合同信息 '!$F$1:$M$438,8,0) -> 13358117210 | J119: - | M119: 无锡市新吴区菱湖大道200号G1-403 | O119: 微电子技术、软件的技术开发、技术服务、技术咨询、技术转让；集成电路产品的技术开发、技术转让、技术服务、技术咨询；半导体分立器件、集成电路、模具的制造；电子工业专用设备的制造。（依法须经批准的项目，经相关部门批准后方可开展经营活动） | W119: 在园 | X119: 2 | Z119: a0a475cf454cf9a06979034098167b9e | AA119: 启用 | AB119: 1 | AC119: now()
A120: 无锡凯盟威电子科技有限公司 | B120: 91320203074727931A | C120: 200 | D120: 1 | E120: 2013-08-07 | F120: 刘健 | G120: 18921105816 | H120: =VLOOKUP(A120,'[1]合同信息 '!$F$1:$M$438,7,0) -> 刘健 | I120: =VLOOKUP(A120,'[1]合同信息 '!$F$1:$M$438,8,0) -> 18621663839 | J120: 543225860@qq.com | M120: 无锡市新吴区菱湖大道200号G10-606 | O120: 一般项目:技术服务、技术开发、技术咨询、技术交流、技术转让、技术推广;电子元器件批发;计算机软硬件及辅助设备批发;工业控制计算机及系统销售;软件开发;信息系统集成服务;集成电路设计;集成电路销售;集成电路芯片及产品销售;业务培训（不含教育培训、职业技能培训等需取得许可的培训）（除依法须经批准的项目外,凭营业执照依法自主开展经营活动） | W120: 在园 | X120: 2 | Z120: a0a475cf454cf9a06979034098167b9e | AA120: 启用 | AB120: 1 | AC120: now()
A121: 无锡锐格思信息技术有限公司 | B121: 91320213585533258G | C121: 600 | D121: 1 | E121: 2011-10-31 | F121: 刘华立 | G121: 0510-81817399 | H121: =VLOOKUP(A121,'[1]合同信息 '!$F$1:$M$438,7,0) ->  | I121: =VLOOKUP(A121,'[1]合同信息 '!$F$1:$M$438,8,0) ->  | J121: zhaorong.zhang@rigosys.com | M121: 无锡菱湖大道200号中国传感网国际创新园C2-3F | O121: 技术开发、技术服务、技术咨询、技术转让;电子产品、软件、（数据）通信设备、宽带接入设备、网络安全设备、网关、智能化技术设备、智能家居设备、云计算产品、互联网及物联网信息技术产品、无线电通信设备（不含卫星地面接收设备）、采集终端、低压电器产品、计算机及安全自动化监控设备生产、销售及安装、调试、维修,及前述产品的配套设备、零部件、配套软件的生产和销售;计算机应用领域的系统集成和服务;电力自动化设备的技术研发、技术服务、销售;自营和代理各类商品和技术的进出口（国家限定公司经营或禁止进出口的商品和技术除外）。（依法须经批准的项目,经相关部门批准后方可开展经营活动） | W121: 在园 | X121: 2 | Z121: a0a475cf454cf9a06979034098167b9e | AA121: 启用 | AB121: 1 | AC121: now()
A122: 无锡红杉恒业股权投资合伙企业（有限合伙） | B122: 913202005668158153 | C122: 95774.5 | D122: 1 | E122: 2010-12-03 | F122: 上海喆煊投资中心（有限合伙） | G122: 010-65615668 | H122: =VLOOKUP(A122,'[1]合同信息 '!$F$1:$M$438,7,0) ->  | I122: =VLOOKUP(A122,'[1]合同信息 '!$F$1:$M$438,8,0) ->  | J122: AIC@sequoiacap.com | M122: 无锡市新吴区菱湖大道200号中国传感网国际创新园E2-103-3 | O122: 利用自有资金对外投资。（依法须经批准的项目,经相关部门批准后方可开展经营活动） | W122: 挂靠 | Z122: a0a475cf454cf9a06979034098167b9e | AA122: 禁用 | AB122: 0 | AC122: now()
A123: 无锡逸启航科技合伙企业（有限合伙） | B123: 91320214MA255J0A6M | C123: 600 | D123: 1 | E123: 2021-02-01 | F123: 夏中宇 | G123: 0510-81021569 | H123: =VLOOKUP(A123,'[1]合同信息 '!$F$1:$M$438,7,0) ->  | I123: =VLOOKUP(A123,'[1]合同信息 '!$F$1:$M$438,8,0) ->  | J123: youxy@mir-power.com | M123: 无锡市新吴区菱湖大道200号28-A406 | O123: 一般项目：技术服务、技术开发、技术咨询、技术交流、技术转让、技术推广；集成电路芯片及产品销售；半导体分立器件销售；以自有资金从事投资活动（除依法须经批准的项目外，凭营业执照依法自主开展经营活动） | W123: 挂靠 | Z123: a0a475cf454cf9a06979034098167b9e | AA123: 禁用 | AB123: 0 | AC123: now()
A124: 江苏中设辉通智慧停车科技有限公司 | B124: 91320211MA1YM9QG0B | C124: 2000 | D124: 1 | E124: 2019-06-28 | F124: 陈凤军 | G124: 0510-83278988 | H124: =VLOOKUP(A124,'[1]合同信息 '!$F$1:$M$438,7,0) ->  | I124: =VLOOKUP(A124,'[1]合同信息 '!$F$1:$M$438,8,0) ->  | J124: jszs@jszs-group.com | M124: 无锡市新吴区菱湖大道200号中国传感网国际创新园G1-402室 | O124: 停车场智能管理系统的技术开发、技术服务、技术咨询;停车场管理服务;停车场规划、设计、技术咨询;专业化设计服务;专用设备租赁（不含融资性租赁）;专用设备、机械式停车设备、仪器仪表的销售;保洁服务;设计、制作、代理、发布各类广告业务;计算机系统服务;为电动汽车提供充电服务。（依法须经批准的项目,经相关部门批准后方可开展经营活动） | W124: 挂靠 | Z124: a0a475cf454cf9a06979034098167b9e | AA124: 禁用 | AB124: 0 | AC124: now()
A125: 无锡红杉兴业股权投资合伙企业（有限合伙） | B125: 91320200562995038Q | C125: 83880.885 | D125: 1 | E125: 2010-10-21 | F125: 上海喆煊投资中心（有限合伙）（委派代表:周逵） | G125: 010-65615668 | H125: =VLOOKUP(A125,'[1]合同信息 '!$F$1:$M$438,7,0) ->  | I125: =VLOOKUP(A125,'[1]合同信息 '!$F$1:$M$438,8,0) ->  | J125: AIC@sequoiacap.com | M125: 无锡市新吴区菱湖大道200号中国传感网国际创新园E2-103-4 | O125: 利用自有资金对外投资。（依法须经批准的项目,经相关部门批准后方可开展经营活动） | W125: 挂靠 | Z125: a0a475cf454cf9a06979034098167b9e | AA125: 禁用 | AB125: 0 | AC125: now()
A126: 无锡飞谱电子信息技术有限公司 | B126: 91320214398339900W | C126: 656.91 | D126: 1 | E126: 2014-07-10 | F126: 王道祥 | G126: 0510-88575846 | H126: =VLOOKUP(A126,'[1]合同信息 '!$F$1:$M$438,7,0) -> 王道祥 | I126: =VLOOKUP(A126,'[1]合同信息 '!$F$1:$M$438,8,0) -> 15800642656 | J126: support@rst-em.com | M126: 无锡市新吴区菱湖大道200号中国物联网国际创新园E1-803号 | O126: 集成电路研发制造;印刷电路板制造;基础软件服务;应用软件服务;工程与技术研究与试验发展;计算机硬件及软件的研发、设计、销售、租赁（不含融资租赁）;软件技术咨询。（依法须经批准的项目,经相关部门批准后方可开展经营活动） | W126: 在园 | X126: 2 | Z126: a0a475cf454cf9a06979034098167b9e | AA126: 启用 | AB126: 1 | AC126: now()
A127: 江苏中科羿链通信技术有限公司 | B127: 91320214MA1MLUC1X0 | C127: 3980 | D127: 1 | E127: 2015-09-23 | F127: 朱瑞 | G127: 18816200904 | H127: =VLOOKUP(A127,'[1]合同信息 '!$F$1:$M$438,7,0) ->  | I127: =VLOOKUP(A127,'[1]合同信息 '!$F$1:$M$438,8,0) ->  | J127: 670616757@qq.com | M127: 无锡新吴区菱湖大道200号中国传感网国际创新园C栋10楼 | O127: 通信系统工程的咨询、设计、安装及技术服务;电子信息技术的研究与开发;网络设备、通信设备、电子产品的销售。（依法须经批准的项目,经相关部门批准后方可开展经营活动）一般项目:通信设备制造（除依法须经批准的项目外,凭营业执照依法自主开展经营活动） | W127: 挂靠 | Z127: a0a475cf454cf9a06979034098167b9e | AA127: 禁用 | AB127: 0 | AC127: now()
A128: 无锡市瀚为科技有限公司 | B128: 91320214MA1MGK7U0U | C128: 2000 | D128: 1 | E128: 2016-03-22 | F128: 杨义海 | G128: 0510-81021579 | H128: =VLOOKUP(A128,'[1]合同信息 '!$F$1:$M$438,7,0) ->  | I128: =VLOOKUP(A128,'[1]合同信息 '!$F$1:$M$438,8,0) ->  | J128: 1015973676@qq.com | M128: 无锡市菱湖大道200号中国传感网国际创新园A栋406室 | O128: 集成电路和功率器件的设计、制造和销售；电子产品的设计、制造和销售；软件设计及系统解决方案销售；专业技术服务。（依法须经批准的项目，经相关部门批准后方可开展经营活动） | W128: 挂靠 | Z128: a0a475cf454cf9a06979034098167b9e | AA128: 禁用 | AB128: 0 | AC128: now()
A129: 无锡浩森舟科技有限公司 | B129: 91320214MA1WUFKK3B | C129: 100 | D129: 1 | E129: 2018-07-09 | F129: 王伟 | G129: 0510-68074665 | H129: =VLOOKUP(A129,'[1]合同信息 '!$F$1:$M$438,7,0) ->  | I129: =VLOOKUP(A129,'[1]合同信息 '!$F$1:$M$438,8,0) ->  | J129: 15190244413@qq.com | M129: 无锡市新吴区菱湖大道200号F11栋二楼 | O129: 模具、工装夹具、注塑产品的开发、加工、销售；金属材料及构件、机械设备、电子零部件、电器设备及配件、塑料材料的销售；自营和代理各类商品及技术的进出口业务（国家限定企业经营或禁止进出口的商品和技术除外）。（依法须经批准的项目，经相关部门批准后方可开展经营活动） | W129: 挂靠 | Z129: a0a475cf454cf9a06979034098167b9e | AA129: 禁用 | AB129: 0 | AC129: now()
A130: 无锡开云信息技术有限公司 | B130: 913202140893641849 | C130: 500 | D130: 1 | E130: 2014-01-13 | F130: 郑浩然 | G130: 0510-85229289 | H130: =VLOOKUP(A130,'[1]合同信息 '!$F$1:$M$438,7,0) -> 郑浩然 | I130: =VLOOKUP(A130,'[1]合同信息 '!$F$1:$M$438,8,0) -> 13914136591 | J130: kyzsl@shetuan365.cn | M130: 无锡市新吴区菱湖大道200号中国传感网国际创新园E1-302号 | O130: 许可项目:互联网信息服务;第二类增值电信业务;检验检测服务;广播电视节目制作经营;信息网络传播视听节目（依法须经批准的项目,经相关部门批准后方可开展经营活动,具体经营项目以审批结果为准） 一般项目:软件开发;软件销售;技术服务、技术开发、技术咨询、技术交流、技术转让、技术推广;互联网数据服务;数据处理和存储支持服务;区块链技术相关软件和服务;会议及展览服务;科技中介服务;信息咨询服务（不含许可类信息咨询服务）;企业管理;信息系统集成服务;信息系统运行维护服务;计算机软硬件及辅助设备零售（除依法须经批准的项目外,凭营业执照依法自主开展经营活动） | W130: 在园 | X130: 2 | Z130: a0a475cf454cf9a06979034098167b9e | AA130: 启用 | AB130: 1 | AC130: now()
A131: 无锡思佰益私募基金管理有限公司 | B131: 91320214MA1PC95J91 | C131: 400 | D131: 1 | E131: 2017-07-07 | F131: 王永刚 | G131: 021-68776855 | H131: =VLOOKUP(A131,'[1]合同信息 '!$F$1:$M$438,7,0) ->  | I131: =VLOOKUP(A131,'[1]合同信息 '!$F$1:$M$438,8,0) ->  | J131: xzhu@sbigroup.co.jp | M131: 无锡市新吴区菱湖大道200号中国传感网国际创新园D2-602号 | O131: 一般项目：私募股权投资基金管理、创业投资基金管理服务（须在中国证券投资基金业协会完成登记备案后方可从事经营活动）（除依法须经批准的项目外，凭营业执照依法自主开展经营活动） | W131: 挂靠 | Z131: a0a475cf454cf9a06979034098167b9e | AA131: 禁用 | AB131: 0 | AC131: now()
A132: 无锡流深光电科技有限公司 | B132: 91320203MA1MAPCU32 | C132: 340.700749 | D132: 1 | E132: 2015-11-03 | F132: 孙伟伟 | G132: 0510-88232723 | H132: =VLOOKUP(A132,'[1]合同信息 '!$F$1:$M$438,7,0) ->  | I132: =VLOOKUP(A132,'[1]合同信息 '!$F$1:$M$438,8,0) ->  | J132: 39014940@qq.com | M132: 无锡市新吴区菱湖大道200号中国传感网国际创新园E2-405 | O132: 电子元器件、电子产品的技术开发、技术转让、技术咨询、技术服务、生产及销售;信息系统集成服务;自营和代理各类商品及技术的进出口业务（国家限定企业经营或禁止进出口的商品和技术除外）。（依法须经批准的项目,经相关部门批准后方可开展经营活动） | W132: 挂靠 | Z132: a0a475cf454cf9a06979034098167b9e | AA132: 禁用 | AB132: 0 | AC132: now()
A133: 无锡沃克特科技有限公司 | B133: 91320211346186770J | C133: 1200 | D133: 1 | E133: 2015-06-23 | F133: 顾小龙 | G133: 0510-66725980 | H133: =VLOOKUP(A133,'[1]合同信息 '!$F$1:$M$438,7,0) ->  | I133: =VLOOKUP(A133,'[1]合同信息 '!$F$1:$M$438,8,0) ->  | J133: 40604974@qq.com | M133: 无锡市新吴区菱湖大道200号中国传感网国际创新园A501 | O133: 一般项目:技术服务、技术开发、技术咨询、技术交流、技术转让、技术推广;电子元器件制造;信息咨询服务（不含许可类信息咨询服务）;信息系统集成服务;建筑材料销售;建筑装饰材料销售;机械电气设备销售;电力设施器材销售;机械零件、零部件销售;机械设备销售;电子产品销售;通讯设备销售;计算机软硬件及辅助设备批发;计算机软硬件及辅助设备零售;初级农产品收购;办公设备销售;金属材料销售;金属制品销售;第一类医疗器械销售;第二类医疗器械销售;针纺织品销售;服装服饰零售;服装服饰批发;仪器仪表销售;食品销售（仅销售预包装食品）（除依法须经批准的项目外,凭营业执照依法自主开展经营活动） | W133: 挂靠 | Z133: a0a475cf454cf9a06979034098167b9e | AA133: 禁用 | AB133: 0 | AC133: now()
A134: 无锡美桥电子科技有限公司 | B134: 91320214MA1XJ38874 | C134: 1000 | D134: 1 | E134: 2018-11-28 | F134: 阮祥磊 | G134: 0510-68773577 | H134: =VLOOKUP(A134,'[1]合同信息 '!$F$1:$M$438,7,0) ->  | I134: =VLOOKUP(A134,'[1]合同信息 '!$F$1:$M$438,8,0) ->  | J134: - | M134: 无锡市新吴区菱湖大道200号B401 | O134: 电子产品的研究、开发、技术咨询、技术转让及技术服务；光纤传感设备、火灾探测报警设备、安全监测设备、物联网传感器、采集卡、激光模组、光学模组、计算机、软件及辅助设备、仪器仪表、家用电器、护理用品、家用电力器具、保健电器具、数码产品、美容仪器产品（除需要申请医疗器械生产经营许可证的医疗器械外）的研发、生产、加工、销售（含网络销售）及技术咨询服务；自营和代理各类商品及技术的进出口（国家限定公司经营或禁止进出口的商品和技术除外）。（依法须经批准的项目，经相关部门批准后方可开展经营活动） | W134: 挂靠 | Z134: a0a475cf454cf9a06979034098167b9e | AA134: 禁用 | AB134: 0 | AC134: now()
A135: 智驰华芯（无锡）传感科技有限公司 | B135: 91320214MA1X2TDW33 | C135: 1282.35 | D135: 1 | E135: 2018-08-21 | F135: 胡国俊 | G135: 0510-82709868 | H135: =VLOOKUP(A135,'[1]合同信息 '!$F$1:$M$438,7,0) -> 胡国俊 | I135: =VLOOKUP(A135,'[1]合同信息 '!$F$1:$M$438,8,0) -> 15255193297 | J135: sds@sds-wuxi.com | M135: 无锡市新吴区菱湖大道200号中国传感网国际创新园F6 | O135: 软件开发;信息技术咨询服务;半导体分立器件、集成电路、电子元件及组件、工业仪器仪表、光学仪器、汽车零部件及配件制造;集成电路设计。（依法须经批准的项目,经相关部门批准后方可开展经营活动） 一般项目:智能仪器仪表销售;电子元器件零售;导航、测绘、气象及海洋专用仪器制造;导航、测绘、气象及海洋专用仪器销售（除依法须经批准的项目外,凭营业执照依法自主开展经营活动） | W135: 在园 | X135: 2 | Z135: a0a475cf454cf9a06979034098167b9e | AA135: 启用 | AB135: 1 | AC135: now()
A136: 无锡安特源科技股份有限公司 | B136: 91320200589957779N | C136: 1312.6263 | D136: 1 | E136: 2012-01-29 | F136: 许若鹏 | G136: 0510-85382428 | H136: =VLOOKUP(A136,'[1]合同信息 '!$F$1:$M$438,7,0) -> 许若鹏 | I136: =VLOOKUP(A136,'[1]合同信息 '!$F$1:$M$438,8,0) -> 15961838578 | J136: xiameng@adpowertech.com | M136: 无锡市新区菱湖大道200号中国传感网国际创新园D2-101、D2-201号房屋 | O136: 电子产品、通用机械及配件、仪器仪表、计算机配件的设计开发、销售;灯具及配件的设计、销售及照明工程的施工;自营和代理各类商品及技术的进出口（国家限定公司经营或禁止进出口的商品和技术除外）;LED驱动电源的生产。（依法须经批准的项目,经相关部门批准后方可开展经营活动） | W136: 在园 | X136: 2 | Z136: a0a475cf454cf9a06979034098167b9e | AA136: 启用 | AB136: 1 | AC136: now()
A137: 无锡飞蓝航空科技有限公司 | B137: 91320214314045631U | C137: 500 | D137: 1 | E137: 2014-10-22 | F137: 姜宇峰 | G137: 13817462958 | H137: =VLOOKUP(A137,'[1]合同信息 '!$F$1:$M$438,7,0) ->  | I137: =VLOOKUP(A137,'[1]合同信息 '!$F$1:$M$438,8,0) ->  | J137: jyf1983@163.com | M137: 无锡新吴区太湖国际科技园菱湖大道200号中国传感网国际创新园B335 | O137: 飞机及其零部件的设计、研发、销售、技术咨询和技术服务;航空及其相关物联领域电子通讯设备、自动识别产品、射频识别系统及产品、移动手持终端产品、仪器仪表、自动化设备及系统的研发、生产、销售及咨询;自营和代理各类商品及技术的进出口业务（国家限定公司经营或禁止进出口的商品及技术除外）。（依法须经批准的项目,经相关部门批准后方可开展经营活动） | W137: 挂靠 | Z137: a0a475cf454cf9a06979034098167b9e | AA137: 禁用 | AB137: 0 | AC137: now()
A138: 丽泽电池科技（无锡）有限公司 | B138: 91320214MACECKEF3K | C138: 1000 | D138: 1 | E138: 2023-04-10 | F138: 戴雯娜 | G138: 0510-85550533 | H138: =VLOOKUP(A138,'[1]合同信息 '!$F$1:$M$438,7,0) ->  | I138: =VLOOKUP(A138,'[1]合同信息 '!$F$1:$M$438,8,0) ->  | J138: info@lize.ltd | M138: 无锡市新吴区菱湖大道200号D2-600-715 | O138: 一般项目：技术服务、技术开发、技术咨询、技术交流、技术转让、技术推广；电池制造；电池零配件生产；电池销售；电池零配件销售；充电桩销售；包装服务；专业设计服务；输配电及控制设备制造；货物进出口；技术进出口；进出口代理；蓄电池租赁（除依法须经批准的项目外，凭营业执照依法自主开展经营活动） | W138: 挂靠 | Z138: a0a475cf454cf9a06979034098167b9e | AA138: 禁用 | AB138: 0 | AC138: now()
A139: 无锡众创投资管理有限公司 | B139: 91320214338784260U | C139: 180 | D139: 1 | E139: 2015-04-08 | F139: 刘人杰 | G139: 0510-85389232 | H139: =VLOOKUP(A139,'[1]合同信息 '!$F$1:$M$438,7,0) ->  | I139: =VLOOKUP(A139,'[1]合同信息 '!$F$1:$M$438,8,0) ->  | J139: servicce@starcafe.cc | M139: 无锡市菱湖大道200号中国传感网国际创新园F11楼 | O139: 利用自有资金对外投资;企业管理咨询;物联网技术的研发;市场调查;会务服务;展览展示服务;市场营销策划;企业形象策划;物业管理（凭有效资质证书经营）;自有房屋租赁。（依法须经批准的项目,经相关部门批准后方可开展经营活动） | W139: 挂靠 | Z139: a0a475cf454cf9a06979034098167b9e | AA139: 禁用 | AB139: 0 | AC139: now()
A140: 江苏哲勤科技有限公司 | B140: 913202115580702351 | C140: 1000 | D140: 1 | E140: 2010-07-08 | F140: 崔小波 | G140: 0510-66955570 | H140: =VLOOKUP(A140,'[1]合同信息 '!$F$1:$M$438,7,0) ->  | I140: =VLOOKUP(A140,'[1]合同信息 '!$F$1:$M$438,8,0) ->  | J140: tong@cngiga.com | M140: 无锡市新吴区菱湖大道200号中国传感网国际创新园G1-706-1 | O140: 计算机网络系统集成;计算机软硬件的技术开发、技术转让、技术咨询、技术服务;企业管理咨询服务;水、电安装;电子产品、通信设备（不含卫星广播电视地面接收设施及发射装置）、视频设备、计算机及辅助设备、仪器仪表、电气机械及器材、通用设备、专用设备、五金产品、金属材料、润滑油、化工产品（不含危险品）的销售;制冷、空调设备,空气净化设备的安装、销售、维修、租赁及技术服务;智能化安装工程的设计、施工;实验分析仪器的设计、制造（不含需领取许可证的项目）;计算机网络工程的施工及安装;自营和代理各类商品及技术的进出口业务（国家限定企业经营或禁止进出口的商品和技术除外）。（依法须经批准的项目,经相关部门批准后方可开展经营活动） | W140: 挂靠 | Z140: a0a475cf454cf9a06979034098167b9e | AA140: 禁用 | AB140: 0 | AC140: now()
A141: 无锡创星众创企业管理咨询合伙企业（有限合伙） | B141: 91320200MA1MB0068X | C141: 125 | D141: 1 | E141: 2015-11-09 | F141: 无锡众创投资管理有限公司 | G141: 0510-85389232 | H141: =VLOOKUP(A141,'[1]合同信息 '!$F$1:$M$438,7,0) ->  | I141: =VLOOKUP(A141,'[1]合同信息 '!$F$1:$M$438,8,0) ->  | J141: servicce@starcafe.cc | M141: 无锡菱湖大道200号中国传感网国际创新园F11栋 | O141: 企业管理咨询（不含投资咨询）；物联网技术的研发；市场调查；会务服务；展览展示服务；市场营销策划；面向成人开展的培训服务（不含发证、不含国家统一认可的职业证书类培训）；企业形象策划；物业管理（凭有效证书经营）；自有房屋租赁。（依法须经批准的项目，经相关部门批准后方可开展经营活动） | W141: 挂靠 | Z141: a0a475cf454cf9a06979034098167b9e | AA141: 禁用 | AB141: 0 | AC141: now()
A142: 无锡奥利杰科技有限公司 | B142: 913202147802711426 | C142: 1100 | D142: 1 | E142: 2005-10-20 | F142: 周志城 | G142: 0510-85221389 | H142: =VLOOKUP(A142,'[1]合同信息 '!$F$1:$M$438,7,0) -> 周志城 | I142: =VLOOKUP(A142,'[1]合同信息 '!$F$1:$M$438,8,0) -> 13395111011 | J142: org@org-elec.com | M142: 无锡新区菱湖大道200号中国传感网国际创新园A804室 | O142: ＬＥＤ照明产品、灯具照明产品、灯饰及配件产品的研发；信息技术咨询服务；电子产品、电源、ＬＥＤ照明解决方案；计算机软件安装、数据处理和储存服务；信息系统集成服务，软件开发设计、集成电路设计及上述产品的批发、进出口业务。（以上商品进出口不涉及国营贸易、进出口配额许可证、出口配额招标、出口许可证等专项管理的商品，涉及行政许可的，凭有效许可证明经营）（依法须经批准的项目，经相关部门批准后方可开展经营活动） | W142: 在园 | X142: 2 | Z142: a0a475cf454cf9a06979034098167b9e | AA142: 启用 | AB142: 1 | AC142: now()
A143: 无锡永逸乐机电设备有限公司 | B143: 91320214079893074D | C143: 1200 | D143: 1 | E143: 2013-10-14 | F143: 钱洁 | G143: 0510-85386576 | H143: =VLOOKUP(A143,'[1]合同信息 '!$F$1:$M$438,7,0) -> 虞婧娜 | I143: =VLOOKUP(A143,'[1]合同信息 '!$F$1:$M$438,8,0) -> 13861456657 | J143: bolong_yjn888@163.com | M143: 无锡市新吴区菱湖大道200号中国传感网国际创新园B101号 | O143: 电气机械及器材、通用机械及配件的技术开发、销售、安装、维修及技术咨询;物联网的技术开发、设计、咨询、服务;金属材料及制品、橡塑制品、化工产品及原料（不含危险品）、五金产品、电子产品及通讯设备（不含卫星地面接收设施和发射装置）、润滑油、润滑脂、胶黏剂、风力发电机叶片的涂料、油漆（危险化学品经营许可证限定范围）的技术开发、销售;电线、电缆的技术开发、安装及销售;自营和代理各类商品及技术的进出口业务（国家限定企业经营或紧张进出口的商品和技术除外）。（依法须经批准的项目,经相关部门批准后方可开展经营活动）许可项目:电线、电缆制造（依法须经批准的项目,经相关部门批准后方可开展经营活动,具体经营项目以审批结果为准）一般项目:电子元器件制造;金属结构制造（除依法须经批准的项目外,凭营业执照依法自主开展经营活动） | W143: 在园 | X143: 2 | Z143: a0a475cf454cf9a06979034098167b9e | AA143: 启用 | AB143: 1 | AC143: now()
A144: 无锡大账房信息技术有限公司 | B144: 91320213MA1XH53L69 | C144: 200 | D144: 1 | E144: 2018-11-22 | F144: 王有 | G144: 13400005851 | H144: =VLOOKUP(A144,'[1]合同信息 '!$F$1:$M$438,7,0) ->  | I144: =VLOOKUP(A144,'[1]合同信息 '!$F$1:$M$438,8,0) ->  | J144: manystep@126.com | M144: 无锡市新吴区菱湖大道200号E2-103-1022 | O144: 通讯信息技术、计算机、软件的技术开发、技术服务、技术咨询;会计服务;税务服务;工商登记代理服务;信息系统集成服务;计算机、软件及辅助设备的销售;企业管理咨询;企业营销策划;电脑加工图片服务。（依法须经批准的项目,经相关部门批准后方可开展经营活动） 许可项目:代理记账（依法须经批准的项目,经相关部门批准后方可开展经营活动,具体经营项目以审批结果为准） | W144: 挂靠 | Z144: a0a475cf454cf9a06979034098167b9e | AA144: 禁用 | AB144: 0 | AC144: now()
A145: 无锡锡产瑞成企业管理有限公司 | B145: 91340100MA2MQP0D76 | C145: 665366.5 | D145: 1 | E145: 2015-11-11 | F145: 连永懿 | G145: 010-85326007 | H145: =VLOOKUP(A145,'[1]合同信息 '!$F$1:$M$438,7,0) ->  | I145: =VLOOKUP(A145,'[1]合同信息 '!$F$1:$M$438,8,0) ->  | J145: cyyu@ic-sparc.com | M145: 无锡市新吴区菱湖大道200-10号中国传感网国际创新园E1-1006 | O145: 企业资产管理,投资管理,投资咨询,投资实业。（依法须经批准的项目,经相关部门批准后方可开展经营活动） | W145: 挂靠 | Z145: a0a475cf454cf9a06979034098167b9e | AA145: 禁用 | AB145: 0 | AC145: now()
A146: 江苏慧乔信息科技有限公司 | B146: 91320214088255584N | C146: 1100 | D146: 1 | E146: 2014-03-26 | F146: 于林 | G146: 15152214722 | H146: =VLOOKUP(A146,'[1]合同信息 '!$F$1:$M$438,7,0) -> 于林 | I146: =VLOOKUP(A146,'[1]合同信息 '!$F$1:$M$438,8,0) -> 15152214722 | J146: 3095255007@qq.com | M146: 无锡市新吴区菱湖大道200号中国物联网创新园G1-406 | O146: 许可项目:建设工程施工;建设工程设计;输电、供电、受电电力设施的安装、维修和试验（依法须经批准的项目,经相关部门批准后方可开展经营活动,具体经营项目以审批结果为准） 一般项目:技术服务、技术开发、技术咨询、技术交流、技术转让、技术推广;图文设计制作;办公服务;专业设计服务;数字技术服务;集成电路设计;安防设备销售;电子产品销售;办公设备销售;移动终端设备销售;光通信设备销售;通信设备销售;货物进出口;技术进出口;进出口代理;智能车载设备销售;自动售货机销售;教学专用仪器销售;停车场服务;充电桩销售;电动汽车充电基础设施运营;机动车充电销售;软件开发（除依法须经批准的项目外,凭营业执照依法自主开展经营活动） | W146: 在园 | X146: 2 | Z146: a0a475cf454cf9a06979034098167b9e | AA146: 启用 | AB146: 1 | AC146: now()
A147: 无锡感讯微电子有限公司 | B147: 91310000583407151J | C147: 500 | D147: 1 | E147: 2011-10-08 | F147: 缪建民（MIAO JIANMIN） | G147: 021-50808008 | H147: =VLOOKUP(A147,'[1]合同信息 '!$F$1:$M$438,7,0) ->  | I147: =VLOOKUP(A147,'[1]合同信息 '!$F$1:$M$438,8,0) ->  | J147: zhouqj@mlsenstech.com | M147: 无锡市新吴区菱湖大道200-17（F2）栋301 | O147: 一般项目:传感器产品、传感系统、传感设备、集成电路的研发,物联网传感器和软件的开发、设计,并提供相关的技术服务、技术咨询和技术转让,电子产品的批发、进出口、佣金代理（拍卖除外）。（除依法须经批准的项目外,凭营业执照自主开展经营活动） | W147: 挂靠 | Z147: a0a475cf454cf9a06979034098167b9e | AA147: 禁用 | AB147: 0 | AC147: now()
A148: 西克制冷（无锡）有限公司 | B148: 91320214MA1YNMQP5U | C148: 1000 | D148: 1 | E148: 2019-07-08 | F148: 吴焱君 | G148: 13282823666 | H148: =VLOOKUP(A148,'[1]合同信息 '!$F$1:$M$438,7,0) -> 吴艳梅 | I148: =VLOOKUP(A148,'[1]合同信息 '!$F$1:$M$438,8,0) -> 13958006159 | J148: president@hzxike.com | M148: 无锡市新吴区菱湖大道200号中国物联网国际创新园B-201 | O148: 节能制冷机组、空调机组、冷凝器、蒸发器及零部件的生产、安装、维修、技术服务及咨询;制冷设备、空调设备及配件的销售;冷库设备工程安装与施工;制冷氟利昂、控制元件、电子产品的销售;自营和代理各类商品及技术的进出口（国家限定企业经营或禁止进出口的商品及技术除外）。 | W148: 在园 | X148: 2 | Z148: a0a475cf454cf9a06979034098167b9e | AA148: 启用 | AB148: 1 | AC148: now()
A149: 麦臻新能源科技无锡有限公司 | B149: 91320214MA22F5FT0G | C149: 1000 | D149: 1 | E149: 2020-09-15 | F149: 王辉 | G149: 0510-81816208 | H149: =VLOOKUP(A149,'[1]合同信息 '!$F$1:$M$438,7,0) ->  | I149: =VLOOKUP(A149,'[1]合同信息 '!$F$1:$M$438,8,0) ->  | J149: admin@igen-tech.com | M149: 无锡市新吴区菱湖大道200号F4 | O149: 一般项目:技术服务、技术开发、技术咨询、技术交流、技术转让、技术推广;光伏设备及元器件销售;光伏设备及元器件制造;物联网设备销售;光伏发电设备租赁;租赁服务（不含出版物出租）;太阳能发电技术服务;软件开发;软件销售;信息技术咨询服务;广告制作;广告设计、代理;人工智能硬件销售（除依法须经批准的项目外,凭营业执照依法自主开展经营活动） | W149: 挂靠 | Z149: a0a475cf454cf9a06979034098167b9e | AA149: 禁用 | AB149: 0 | AC149: now()
A150: 无锡专心智制科技有限公司 | B150: 91320214MA1WT4XR8J | C150: 1000 | D150: 1 | E150: 2018-06-29 | F150: 宋波 | G150: 0510-68799783 | H150: =VLOOKUP(A150,'[1]合同信息 '!$F$1:$M$438,7,0) -> 宋波 | I150: =VLOOKUP(A150,'[1]合同信息 '!$F$1:$M$438,8,0) -> 17715691376 | J150: wxzxzz@anosi.cn | M150: 无锡市新吴区菱湖大道200号中国传感网国际创新园G7-401 | O150: 技术开发、技术推广、技术转让、技术咨询、技术服务；物联网信息服务；信息系统集成服务；文化用品、日用品、医疗器械、通信设备、电子产品、安防设备、机械设备、计算机、仪器仪表、物联网设备的维修、制造、销售（含网上销售）及安装服务；企业管理服务（不含投资管理）。（依法须经批准的项目，经相关部门批准后方可开展经营活动）一般项目：软件开发；软件销售；物联网技术研发；物联网技术服务；物联网应用服务；工业互联网数据服务；大数据服务；在线能源监测技术研发；节能管理服务（除依法须经批准的项目外，凭营业执照依法自主开展经营活动） | W150: 在园 | X150: 2 | Z150: a0a475cf454cf9a06979034098167b9e | AA150: 启用 | AB150: 1 | AC150: now()
A151: 无锡华睿众合投资中心（有限合伙） | B151: 91320214MA22ADTG8G | C151: 3750 | D151: 1 | E151: 2020-08-26 | F151: 北京华睿互联投资管理有限公司 | G151: 15852807123 | H151: =VLOOKUP(A151,'[1]合同信息 '!$F$1:$M$438,7,0) ->  | I151: =VLOOKUP(A151,'[1]合同信息 '!$F$1:$M$438,8,0) ->  | J151: guyu@vfortune.com.cn | M151: 无锡市新吴区菱湖大道200号中国传感网国际创新园E1-202-11 | O151: 一般项目：以自有资金从事投资活动（除依法须经批准的项目外，凭营业执照依法自主开展经营活动） | W151: 挂靠 | Z151: a0a475cf454cf9a06979034098167b9e | AA151: 禁用 | AB151: 0 | AC151: now()
A152: 无锡紫光微电子有限公司 | B152: 913202143138987208 | C152: 3000 | D152: 1 | E152: 2014-08-19 | F152: 马道杰 | G152: 0510-85217533 | H152: =VLOOKUP(A152,'[1]合同信息 '!$F$1:$M$438,7,0) -> 马道杰 | I152: =VLOOKUP(A152,'[1]合同信息 '!$F$1:$M$438,8,0) -> 15961832572 | J152: hr@tsinghuaicwx.com | M152: 无锡市新吴区菱湖大道200号中国传感网国际创新园D2栋四层 | O152: 半导体集成电路和器件、电子产品、仪器仪表的研发、设计、生产和销售；利用自有资产对外投资；自营各类商品及技术的进出口（国家限定公司经营或禁止进出口的商品和技术除外）。（依法须经批准的项目，经相关部门批准后方可开展经营活动） | W152: 在园 | X152: 2 | Z152: a0a475cf454cf9a06979034098167b9e | AA152: 启用 | AB152: 1 | AC152: now()
A153: 无锡融弘国联股权投资有限公司 | B153: 91320214696799913M | C153: 200 | D153: 1 | E153: 2009-11-19 | F153: 王欧 | G153: 0510-83692288 | H153: =VLOOKUP(A153,'[1]合同信息 '!$F$1:$M$438,7,0) ->  | I153: =VLOOKUP(A153,'[1]合同信息 '!$F$1:$M$438,8,0) ->  | J153: Fang.Song@everbright.com | M153: 无锡新吴区菱湖大道200号传感网国际创新园E2-103 | O153: 一般项目:股权投资（除依法须经批准的项目外,凭营业执照依法自主开展经营活动） | W153: 挂靠 | Z153: a0a475cf454cf9a06979034098167b9e | AA153: 禁用 | AB153: 0 | AC153: now()
A154: 无锡菩芯电子科技有限公司 | B154: 9132021309408411XU | C154: 200 | D154: 1 | E154: 2014-04-03 | F154: 张海涛 | G154: 18901510792 | H154: =VLOOKUP(A154,'[1]合同信息 '!$F$1:$M$438,7,0) ->  | I154: =VLOOKUP(A154,'[1]合同信息 '!$F$1:$M$438,8,0) ->  | J154: 2604215815@qq.com | M154: 无锡市菱湖大道200号中国传感网国际创新园D2-402 | O154: 电子产品及通讯设备（不含卫星地面接收设施和发射装置）、电气机械及器材的研究与开发、技术服务、技术转让、技术咨询、制造及销售;利用自有资金对外投资;投资咨询（不含期货、证券类）;受托资产管理（不含国有资产）;自营和代理各类商品及技术的进出口业务（国家限定企业经营或禁止进出口的商品和技术除外）;培训服务（不含发证、不含国家统一认可的职业证书类培训）。（依法须经批准的项目,经相关部门批准后方可开展经营活动） | W154: 挂靠 | Z154: a0a475cf454cf9a06979034098167b9e | AA154: 禁用 | AB154: 0 | AC154: now()
A155: 无锡创芯投资合伙企业（有限合伙） | B155: 91320200MA1NY30N14 | C155: 100 | D155: 1 | E155: 2017-05-09 | F155: 栾年生 | G155: 0510-85383398 | H155: =VLOOKUP(A155,'[1]合同信息 '!$F$1:$M$438,7,0) ->  | I155: =VLOOKUP(A155,'[1]合同信息 '!$F$1:$M$438,8,0) ->  | J155: 1458394262@qq.com | M155: 无锡市菱湖大道200号中国传感网国际创新园C栋1楼 | O155: 利用自有资金对外投资。（依法须经批准的项目，经相关部门批准后方可开展经营活动） | W155: 挂靠 | Z155: a0a475cf454cf9a06979034098167b9e | AA155: 禁用 | AB155: 0 | AC155: now()
A156: 无锡精质视觉科技有限公司 | B156: 91320214MA1MQLTU8M | C156: 1960.78 | D156: 1 | E156: 2016-07-29 | F156: 蒋乐 | G156: 18015336139 | H156: =VLOOKUP(A156,'[1]合同信息 '!$F$1:$M$438,7,0) -> 蒋乐 | I156: =VLOOKUP(A156,'[1]合同信息 '!$F$1:$M$438,8,0) -> 18015336139 | J156: 785753869@qq.com | M156: 无锡新吴区菱湖大道200号中国传感网国际创新园G10-206号 | O156: 许可项目：货物进出口；技术进出口；进出口代理（依法须经批准的项目，经相关部门批准后方可开展经营活动，具体经营项目以审批结果为准）一般项目：软件开发；软件销售；工业自动控制系统装置制造；工业自动控制系统装置销售；人工智能应用软件开发；信息技术咨询服务（除依法须经批准的项目外，凭营业执照依法自主开展经营活动） | W156: 在园 | X156: 2 | Z156: a0a475cf454cf9a06979034098167b9e | AA156: 启用 | AB156: 1 | AC156: now()
A157: 江苏行云信息科技有限公司 | B157: 913202143461128789 | C157: 1000 | D157: 1 | E157: 2015-06-15 | F157: 李锋 | G157: 13861777727 | H157: =VLOOKUP(A157,'[1]合同信息 '!$F$1:$M$438,7,0) -> 李锋 | I157: =VLOOKUP(A157,'[1]合同信息 '!$F$1:$M$438,8,0) -> 13861777727 | J157: alan@xingyuntech.com | M157: 无锡新吴区菱湖大道200号中国传感网国际创新园G10-410 | O157: 许可项目:计算机信息系统安全专用产品销售（依法须经批准的项目,经相关部门批准后方可开展经营活动,具体经营项目以审批结果为准）一般项目:信息技术咨询服务;信息系统集成服务;信息系统运行维护服务;信息安全设备制造;智能控制系统集成;物联网技术服务;物联网技术研发;大数据服务;软件开发;软件销售;软件外包服务;区块链技术相关软件和服务;信息安全设备销售;企业管理咨询;云计算设备销售;人工智能硬件销售;人工智能应用软件开发;智能机器人销售;工业机器人安装、维修;网络与信息安全软件开发;云计算装备技术服务;互联网销售（除销售需要许可的商品）;劳动保护用品销售;数据处理服务;数据处理和存储支持服务;工业互联网数据服务;线下数据处理服务;互联网数据服务;虚拟现实设备制造;计算机软硬件及外围设备制造;可穿戴智能设备销售;网络设备销售;机械设备销售;通信设备销售;电子产品销售;工业控制计算机及系统销售;智能无人飞行器销售;绘图、计算及测量仪器销售（除依法须经批准的项目外,凭营业执照依法自主开展经营活动） | W157: 在园 | X157: 2 | Z157: a0a475cf454cf9a06979034098167b9e | AA157: 启用 | AB157: 1 | AC157: now()
A158: 中科智库物联网技术研究院江苏有限公司 | B158: 91320214323630197P | C158: 1000 | D158: 1 | E158: 2015-01-15 | F158: 刘顺艇 | G158: 18914140008 | H158: =VLOOKUP(A158,'[1]合同信息 '!$F$1:$M$438,7,0) ->  | I158: =VLOOKUP(A158,'[1]合同信息 '!$F$1:$M$438,8,0) ->  | J158: 18914140008@189.cn | M158: 无锡市新吴区菱湖大道200号中国传感网国际创新园C栋2楼 | O158: 一般项目:物联网应用服务;物联网技术服务;物联网技术研发;软件开发;农业科学研究和试验发展;区块链技术相关软件和服务;工业设计服务;机械设备研发;智能机器人的研发;人工智能理论与算法软件开发;信息技术咨询服务;技术服务、技术开发、技术咨询、技术交流、技术转让、技术推广;会议及展览服务（除依法须经批准的项目外,凭营业执照依法自主开展经营活动） | W158: 挂靠 | Z158: a0a475cf454cf9a06979034098167b9e | AA158: 禁用 | AB158: 0 | AC158: now()
A159: 无锡国联集成电路投资中心（有限合伙） | B159: 91320200MA1XJ1G58R | C159: 300000 | D159: 1 | E159: 2018-11-28 | F159: 无锡国联产业投资私募基金管理有限公司 | G159: 0510-82830019 | H159: =VLOOKUP(A159,'[1]合同信息 '!$F$1:$M$438,7,0) ->  | I159: =VLOOKUP(A159,'[1]合同信息 '!$F$1:$M$438,8,0) ->  | J159: info@wuxicapital.com.cn | M159: 无锡市新吴区菱湖大道200号中国传感网国际创新园E1-202-62 | O159: 利用自有资金对集成电路行业进行投资。（依法须经批准的项目,经相关部门批准后方可开展经营活动） | W159: 挂靠 | Z159: a0a475cf454cf9a06979034098167b9e | AA159: 禁用 | AB159: 0 | AC159: now()
A160: 无锡智行华芯高科技合伙企业（有限合伙） | B160: 91320214MA1X5TP98Y | C160: 402.92 | D160: 1 | E160: 2018-09-10 | F160: 胡国俊 | G160: 0510-82709868 | H160: =VLOOKUP(A160,'[1]合同信息 '!$F$1:$M$438,7,0) ->  | I160: =VLOOKUP(A160,'[1]合同信息 '!$F$1:$M$438,8,0) ->  | J160: sds@sds-wuxi.com | M160: 无锡市新吴区菱湖大道200号中国传感网国际创新园F6 | O160: 集成电路设计,软件开发,行业性实业投资。（依法须经批准的项目,经相关部门批准后方可开展经营活动） | W160: 挂靠 | Z160: a0a475cf454cf9a06979034098167b9e | AA160: 禁用 | AB160: 0 | AC160: now()
A161: 无锡新创吉联股权投资合伙企业（有限合伙） | B161: 91320214MA7DN62810 | C161: 1033 | D161: 1 | E161: 2021-12-20 | F161: 无锡国联新创私募投资基金有限公司 | G161: 0510-85185760 | H161: =VLOOKUP(A161,'[1]合同信息 '!$F$1:$M$438,7,0) ->  | I161: =VLOOKUP(A161,'[1]合同信息 '!$F$1:$M$438,8,0) ->  | J161: info@glxcpe.com | M161: 无锡市新吴区菱湖大道200号E1-202-42 | O161: 一般项目:以自有资金从事投资活动（除依法须经批准的项目外,凭营业执照依法自主开展经营活动） | W161: 挂靠 | Z161: a0a475cf454cf9a06979034098167b9e | AA161: 禁用 | AB161: 0 | AC161: now()
A162: 睿创微纳（无锡）技术有限公司 | B162: 91320214MA22UTXQ8B | C162: 10000 | D162: 1 | E162: 2020-10-29 | F162: 王鹏 | G162: 0510-85386643 | H162: =VLOOKUP(A162,'[1]合同信息 '!$F$1:$M$438,7,0) ->  | I162: =VLOOKUP(A162,'[1]合同信息 '!$F$1:$M$438,8,0) ->  | J162: jiajia.hu@raytrontek.com | M162: 无锡市新吴区菱湖大道200号中国传感网国际创新园G8-403-A | O162: 一般项目:技术服务、技术开发、技术咨询、技术交流、技术转让、技术推广;集成电路芯片设计及服务;集成电路芯片及产品制造;集成电路芯片及产品销售;电子元器件制造;半导体分立器件制造;半导体分立器件销售;光电子器件制造;光电子器件销售;电子元器件与机电组件设备制造;电子元器件与机电组件设备销售;光学仪器制造;光学仪器销售;太赫兹检测技术研发;软件开发;软件销售;信息技术咨询服务（除依法须经批准的项目外,凭营业执照依法自主开展经营活动） | W162: 挂靠 | Z162: a0a475cf454cf9a06979034098167b9e | AA162: 禁用 | AB162: 0 | AC162: now()
A163: 无锡中科明略科技有限公司 | B163: 91320214MA205JKH6U | C163: 2000 | D163: 1 | E163: 2019-09-27 | F163: 李峰 | G163: 13776606705 | H163: =VLOOKUP(A163,'[1]合同信息 '!$F$1:$M$438,7,0) ->  | I163: =VLOOKUP(A163,'[1]合同信息 '!$F$1:$M$438,8,0) ->  | J163: huawenjun@mininglamp.com | M163: 无锡市新吴区菱湖大道200号中国传感网国际创新园C1-801 | O163: 软件开发;技术开发、技术转让、技术咨询、技术服务、技术推广;计算机系统服务;数据处理;计算机维修;基础软件服务;应用软件服务;信息系统集成服务;面向成年人开展的计算机技术培训服务（不含国家统一认可的职业证书类培训）;企业管理咨询（不含投资咨询）;信息安全设备、电子产品、计算机、软件及辅助设备、通讯设备的销售;自营和代理各类商品和技术的进出口（国家限定公司经营或禁止进出口的商品和技术除外）。（依法须经批准的项目,经相关部门批准后方可开展经营活动） | W163: 挂靠 | Z163: a0a475cf454cf9a06979034098167b9e | AA163: 禁用 | AB163: 0 | AC163: now()
A164: 无锡中科芯启程产业投资合伙企业（有限合伙） | B164: 91320214MA253QWX64 | C164: 5000 | D164: 1 | E164: 2021-01-22 | F164: 无锡中科英智投资管理有限公司 | G164: 0510-85383398 | H164: =VLOOKUP(A164,'[1]合同信息 '!$F$1:$M$438,7,0) ->  | I164: =VLOOKUP(A164,'[1]合同信息 '!$F$1:$M$438,8,0) ->  | J164: 1458394262@qq.com | M164: 无锡市新吴区菱湖大道200号中国传感网国际创新园C1座203 | O164: 一般项目:以自有资金从事投资活动;创业投资（限投资未上市企业）（除依法须经批准的项目外,凭营业执照依法自主开展经营活动） | W164: 挂靠 | Z164: a0a475cf454cf9a06979034098167b9e | AA164: 禁用 | AB164: 0 | AC164: now()
A165: 无锡麦姆斯咨询有限公司 | B165: 91320214085047499G | C165: 117.6471 | D165: 1 | E165: 2013-12-06 | F165: 王懿 | G165: 0510-83481111 | H165: =VLOOKUP(A165,'[1]合同信息 '!$F$1:$M$438,7,0) -> 田娟 | I165: =VLOOKUP(A165,'[1]合同信息 '!$F$1:$M$438,8,0) -> 13196572937 | J165: WANGYi@MEMSConsulting.com | M165: 无锡市新吴区菱湖大道200号中国传感网国际创新园B-406-A | O165: 许可项目:技术进出口（依法须经批准的项目,经相关部门批准后方可开展经营活动,具体经营项目以审批结果为准）一般项目:信息咨询服务（不含许可类信息咨询服务）;科技中介服务;技术服务、技术开发、技术咨询、技术交流、技术转让、技术推广;物联网技术服务;教育咨询服务（不含涉许可审批的教育培训活动）;从事科技培训的营利性民办培训机构（除面向中小学生开展的学科类、语言类文化教育培训）;市场调查;会议及展览服务;市场营销策划;软件开发（除依法须经批准的项目外,凭营业执照依法自主开展经营活动） | W165: 在园 | X165: 2 | Z165: a0a475cf454cf9a06979034098167b9e | AA165: 启用 | AB165: 1 | AC165: now()
A166: 江苏生活通信息技术有限公司 | B166: 91320206585504529D | C166: 1000 | D166: 1 | E166: 2011-10-28 | F166: 吴京玉 | G166: 0510-85218383 | H166: =VLOOKUP(A166,'[1]合同信息 '!$F$1:$M$438,7,0) -> 吴京玉 | I166: =VLOOKUP(A166,'[1]合同信息 '!$F$1:$M$438,8,0) -> 13656183128 | J166: wanglin@jsujingyu.com | M166: 无锡市新吴区菱湖大道200号中国物联网国际创新园B-329 | O166: 一般项目:技术服务、技术开发、技术咨询、技术交流、技术转让、技术推广;软件开发;计算机系统服务;计算机软硬件及辅助设备零售;日用品销售;汽车零配件批发;润滑油销售;食品销售（仅销售预包装食品）;广告设计、代理;广告发布;广告制作;市场营销策划;会议及展览服务;企业管理咨询;货物进出口;技术进出口;进出口代理（除依法须经批准的项目外,凭营业执照依法自主开展经营活动） | W166: 在园 | X166: 2 | Z166: a0a475cf454cf9a06979034098167b9e | AA166: 启用 | AB166: 1 | AC166: now()
A167: 无锡影速半导体科技有限公司 | B167: 91320214323618980Q | C167: 5000 | D167: 1 | E167: 2015-01-13 | F167: 肖燕青 | G167: 0510-66903355 | H167: =VLOOKUP(A167,'[1]合同信息 '!$F$1:$M$438,7,0) -> 肖燕青 | I167: =VLOOKUP(A167,'[1]合同信息 '!$F$1:$M$438,8,0) -> 18600090096 | J167: zhunn@ysphotech.com | M167: 无锡新吴区菱湖大道200号中国传感网国际创新园F3栋1-3层 | O167: 集成电路生产设备研发、设计、制造、销售、维修及技术服务、咨询;精密机械设备及零部件、光学仪器的设计、制造、销售及维修;集成电路软件的设计、销售;自营和代理各类商品和技术的进出口（国家限定公司经营或禁止进出口的商品和技术除外）。（依法须经批准的项目,经相关部门批准后方可开展经营活动） | W167: 在园 | X167: 2 | Z167: a0a475cf454cf9a06979034098167b9e | AA167: 启用 | AB167: 1 | AC167: now()
A168: 无锡军创工程技术有限公司 | B168: 9132021467489491X4 | C168: 1000 | D168: 1 | E168: 2008-05-12 | F168: 叶春明 | G168: 0510-81015188 | H168: =VLOOKUP(A168,'[1]合同信息 '!$F$1:$M$438,7,0) ->  | I168: =VLOOKUP(A168,'[1]合同信息 '!$F$1:$M$438,8,0) ->  | J168: junchuang@wxjc-epc.com | M168: 无锡市新吴区菱湖大道200号中国传感网国际创新园G1-502 | O168: 许可项目:建设工程设计;建筑智能化系统设计;建设工程施工（依法须经批准的项目,经相关部门批准后方可开展经营活动,具体经营项目以审批结果为准） 一般项目:技术服务、技术开发、技术咨询、技术交流、技术转让、技术推广;网络与信息安全软件开发;软件开发;机械电气设备销售;合同能源管理;电气设备销售;五金产品零售;消防器材销售;电子产品销售;气体、液体分离及纯净设备销售;机械设备租赁;普通机械设备安装服务;家用电器销售;家用电器零配件销售;家用电器安装服务（除依法须经批准的项目外,凭营业执照依法自主开展经营活动） | W168: 挂靠 | Z168: a0a475cf454cf9a06979034098167b9e | AA168: 禁用 | AB168: 0 | AC168: now()
A169: 无锡国发云轫创业投资有限公司 | B169: 91320200MA1XQRGE06 | C169: 3500 | D169: 1 | E169: 2019-01-08 | F169: 王志行 | G169: 0510-82831178 | H169: =VLOOKUP(A169,'[1]合同信息 '!$F$1:$M$438,7,0) ->  | I169: =VLOOKUP(A169,'[1]合同信息 '!$F$1:$M$438,8,0) ->  | J169: info@wuxicapital.com.cn | M169: 无锡市新吴区菱湖大道200号中国传感网国际创新园E1-202-61 | O169: 创业投资业务;创业投资咨询业务;为创业企业提供创业管理服务业务;参与设立创业投资企业与创业投资管理机构。（依法须经批准的项目,经相关部门批准后方可开展经营活动） | W169: 挂靠 | Z169: a0a475cf454cf9a06979034098167b9e | AA169: 禁用 | AB169: 0 | AC169: now()
A170: 江苏极熵物联科技有限公司 | B170: 91320214MA1NEYNEX0 | C170: 1176.470588 | D170: 1 | E170: 2017-02-23 | F170: 孙东来 | G170: 0510-85385099 | H170: =VLOOKUP(A170,'[1]合同信息 '!$F$1:$M$438,7,0) -> 孙东来 | I170: =VLOOKUP(A170,'[1]合同信息 '!$F$1:$M$438,8,0) -> 13795356873 | J170: hr@maxtropy.com | M170: 无锡市新吴区菱湖大道200号中国传感网国际创新园E1-503 | O170: 一般项目：技术服务、技术开发、技术咨询、技术交流、技术转让、技术推广；科技推广和应用服务；信息系统集成服务；信息系统运行维护服务；新兴能源技术研发；人工智能行业应用系统集成服务；人工智能通用应用系统；软件开发；软件销售；计算机系统服务；智能控制系统集成；工业互联网数据服务；物联网技术研发；物联网技术服务；碳减排、碳转化、碳捕捉、碳封存技术研发；节能管理服务；太阳能发电技术服务；企业管理咨询；社会经济咨询服务；信息技术咨询服务；电力电子元器件制造；电力电子元器件销售；配电开关控制设备制造；配电开关控制设备销售；输配电及控制设备制造；智能输配电及控制设备销售；电池制造；电池销售；蓄电池租赁；太阳能热利用产品销售；充电桩销售；智能家庭消费设备制造；光伏设备及元器件销售；智能仪器仪表制造；智能仪器仪表销售；物联网设备制造；物联网设备销售；集成电路制造；集成电路设计；集成电路销售；电子元器件制造；电子元器件零售；电子产品销售；机械电气设备销售；新能源原动设备销售；货物进出口；技术进出口；集中式快速充电站；电动汽车充电基础设施运营；停车场服务（除依法须经批准的项目外，凭营业执照依法自主开展经营活动） | W170: 在园 | X170: 2 | Z170: a0a475cf454cf9a06979034098167b9e | AA170: 启用 | AB170: 1 | AC170: now()
A171: 无锡思杰软件有限公司 | B171: 91320214MA1NYLW30G | C171: 1000 | D171: 1 | E171: 2017-05-10 | F171: 田峰 | G171: 0510-58385676 | H171: =VLOOKUP(A171,'[1]合同信息 '!$F$1:$M$438,7,0) ->  | I171: =VLOOKUP(A171,'[1]合同信息 '!$F$1:$M$438,8,0) ->  | J171: 33144969@qq.com | M171: 无锡市新吴区菱湖大道200号中国传感网国际创新园G1-406 | O171: 计算机软硬件的研发、销售：电子产品、电脑及耗材的销售；计算机网络工程及应用软件技术开发、技术服务；增值电信业务（业务覆盖范围：江苏省，且互联网信息服务不含新闻、出版、教育、医疗保健、药品和医疗器械、文化、广播电影电视节目、电子公告内容）；自营和代理各类商品及技术的进出口业务（国家限定企业经营或禁止进出口的商品和技术除外）。（依法须经批准的项目，经相关部门批准后方可开展经营活动） | W171: 挂靠 | Z171: a0a475cf454cf9a06979034098167b9e | AA171: 禁用 | AB171: 0 | AC171: now()
A172: 无锡峰睿投资有限公司 | B172: 91320214MA1PC0GF1J | C172: 550 | D172: 1 | E172: 2017-07-06 | F172: 李丰 | G172: 13611015827 | H172: =VLOOKUP(A172,'[1]合同信息 '!$F$1:$M$438,7,0) ->  | I172: =VLOOKUP(A172,'[1]合同信息 '!$F$1:$M$438,8,0) ->  | J172: sunqiang@freesvc.com | M172: 无锡市新吴区菱湖大道200号中国传感网国际创新园D2-608号 | O172: 利用自有资金对外投资;企业管理服务。（依法须经批准的项目,经相关部门批准后方可开展经营活动） | W172: 挂靠 | Z172: a0a475cf454cf9a06979034098167b9e | AA172: 禁用 | AB172: 0 | AC172: now()
A173: 无锡赛默斐视科技有限公司 | B173: 91320214087928871P | C173: 1000 | D173: 1 | E173: 2014-03-14 | F173: 邹逸 | G173: 15312232356 | H173: =VLOOKUP(A173,'[1]合同信息 '!$F$1:$M$438,7,0) ->  | I173: =VLOOKUP(A173,'[1]合同信息 '!$F$1:$M$438,8,0) ->  | J173: 493619815@qq.com | M173: 无锡市新吴区菱湖大道200号中国传感网国际创新园E2-101 | O173: 工业自动控制系统装置、电子产品、计算机软件的研究、开发、技术转让、技术咨询、技术服务及销售；信息系统集成服务。（依法须经批准的项目，经相关部门批准后方可开展经营活动） | W173: 挂靠 | Z173: a0a475cf454cf9a06979034098167b9e | AA173: 禁用 | AB173: 0 | AC173: now()
A174: 无锡谱视群英科技中心（有限合伙） | B174: 91320214MA25MTWD47 | C174: 580.75 | D174: 1 | E174: 2021-04-09 | F174: 杨飞 | G174: 0510-85290662 | H174: =VLOOKUP(A174,'[1]合同信息 '!$F$1:$M$438,7,0) ->  | I174: =VLOOKUP(A174,'[1]合同信息 '!$F$1:$M$438,8,0) ->  | J174: f.yang@specvision.com.cn | M174: 无锡市新吴区菱湖大道200号E2-111 | O174: 一般项目:技术服务、技术开发、技术咨询、技术交流、技术转让、技术推广;企业管理咨询;会议及展览服务;市场营销策划;企业形象策划;市场调查（不含涉外调查）（除依法须经批准的项目外,凭营业执照依法自主开展经营活动） | W174: 挂靠 | Z174: a0a475cf454cf9a06979034098167b9e | AA174: 禁用 | AB174: 0 | AC174: now()
A175: 无锡先迪德宝电子有限公司 | B175: 9132021472655466XY | C175: 2320 | D175: 1 | E175: 2001-01-21 | F175: 郑宝龙 | G175: 0510-82706686 | H175: =VLOOKUP(A175,'[1]合同信息 '!$F$1:$M$438,7,0) ->  | I175: =VLOOKUP(A175,'[1]合同信息 '!$F$1:$M$438,8,0) ->  | J175: 18762609290@139.com | M175: 无锡新吴区太湖国际科技园菱湖大道200号中国传感网国际创新园F1-A | O175: 电子产品、通讯及广播电视设备（不含卫星电视广播地面接收设施及发射装置）、通用机械及配件、五金产品、金属材料、化工产品及原料（不含危险品）、针纺织品的销售;百货零售;电子产品的制造;计算机软件、电子产品的技术开发、技术转让、技术服务;自营和代理各类商品及技术的进出口业务（国家限定企业经营或禁止进出口的商品及技术除外）;防伪溯源系统工程开发。（依法须经批准的项目,经相关部门批准后方可开展经营活动） | W175: 挂靠 | Z175: a0a475cf454cf9a06979034098167b9e | AA175: 禁用 | AB175: 0 | AC175: now()
A176: 无锡泓瑞信息科技有限公司 | B176: 913202143021767301 | C176: 1000 | D176: 1 | E176: 2014-06-12 | F176: 周全 | G176: 0510-82736412 | H176: =VLOOKUP(A176,'[1]合同信息 '!$F$1:$M$438,7,0) ->  | I176: =VLOOKUP(A176,'[1]合同信息 '!$F$1:$M$438,8,0) ->  | J176: 000000@qq.com | M176: 无锡新区太湖国际科技园菱湖大道200号中国传感网国际创新园E2-417 | O176: 计算机网络工程;网络技术领域内的技术服务、技术开发、技术咨询、技术转让;日用百货、工艺品、家用电器、化妆品、办公用品、五金交电、电子产品、通讯器材（除卫星电视广播地面接收设施）的销售;计算机软件及辅助设备的销售;会务服务;企业管理咨询、商务信息咨询。（依法须经批准的项目,经相关部门批准后方可开展经营活动） | W176: 挂靠 | Z176: a0a475cf454cf9a06979034098167b9e | AA176: 禁用 | AB176: 0 | AC176: now()
A177: 无锡克莱沃智能装备有限公司 | B177: 91320214MA22FLFC5X | C177: 500 | D177: 1 | E177: 2020-09-16 | F177: 苏荃 | G177: 0510-83129869 | H177: =VLOOKUP(A177,'[1]合同信息 '!$F$1:$M$438,7,0) -> 苏荃 | I177: =VLOOKUP(A177,'[1]合同信息 '!$F$1:$M$438,8,0) -> 15251612007 | J177: kelaiwozn@163.com | M177: 无锡市新吴区菱湖大道200号G1-1108 | O177: 许可项目:货物进出口;技术进出口;进出口代理（依法须经批准的项目,经相关部门批准后方可开展经营活动,具体经营项目以审批结果为准）一般项目:计算机软硬件及外围设备制造;技术服务、技术开发、技术咨询、技术交流、技术转让、技术推广;计算机软硬件及辅助设备零售;信息系统集成服务;专业设计服务;普通机械设备安装服务;软件开发;集成电路设计;数据处理和存储支持服务;工程和技术研究和试验发展;对外承包工程;雷达及配套设备制造;雷达、无线电导航设备专业修理;工业设计服务;工业机器人制造;智能机器人的研发;智能基础制造装备制造;人工智能基础软件开发;人工智能应用软件开发;智能控制系统集成;工业自动控制系统装置制造;工业自动控制系统装置销售;通用设备制造（不含特种设备制造）;通用零部件制造;专用设备制造（不含许可类专业设备制造）;电子测量仪器制造;电子测量仪器销售;仪器仪表制造;仪器仪表修理;仪器仪表销售;机械设备研发（除依法须经批准的项目外,凭营业执照依法自主开展经营活动） | W177: 在园 | X177: 2 | Z177: a0a475cf454cf9a06979034098167b9e | AA177: 启用 | AB177: 1 | AC177: now()
A178: 无锡朗邦网络科技有限公司 | B178: 91320214MA21A99N6G | C178: 500 | D178: 1 | E178: 2020-04-21 | F178: 李华辉 | G178: 18951503039 | H178: =VLOOKUP(A178,'[1]合同信息 '!$F$1:$M$438,7,0) ->  | I178: =VLOOKUP(A178,'[1]合同信息 '!$F$1:$M$438,8,0) ->  | J178: lihuahui@qiyuerp.com | M178: 无锡市新吴区菱湖大道200号E2-112-245 | O178: 一般项目:网络与信息安全软件开发;网络设备销售;办公服务;信息技术咨询服务;技术服务、技术开发、技术咨询、技术交流、技术转让、技术推广;企业管理;版权代理;知识产权服务;科技中介服务;科技指导;软件开发;计算机软硬件及辅助设备批发;软件销售;网络技术服务（除依法须经批准的项目外,凭营业执照依法自主开展经营活动） | W178: 挂靠 | Z178: a0a475cf454cf9a06979034098167b9e | AA178: 禁用 | AB178: 0 | AC178: now()
A179: 无锡建瓴投资合伙企业（有限合伙） | B179: 91320200MA1P5MC644 | C179: 25 | D179: 1 | E179: 2017-06-08 | F179: 姚小巍 | G179: 0510-68101580 | H179: =VLOOKUP(A179,'[1]合同信息 '!$F$1:$M$438,7,0) ->  | I179: =VLOOKUP(A179,'[1]合同信息 '!$F$1:$M$438,8,0) ->  | J179: jennie.qian@len-technology.com | M179: 无锡新吴区菱湖大道200号F11栋二楼 | O179: 利用自有资金对外投资。（依法须经批准的项目，经相关部门批准后方可开展经营活动） | W179: 挂靠 | Z179: a0a475cf454cf9a06979034098167b9e | AA179: 禁用 | AB179: 0 | AC179: now()
A180: 无锡中科创星投资合伙企业（有限合伙） | B180: 91320214MA1UTTMDX6 | C180: 10000 | D180: 1 | E180: 2017-12-29 | F180: 无锡中科英智投资管理有限公司 | G180: 0510-85383398 | H180: =VLOOKUP(A180,'[1]合同信息 '!$F$1:$M$438,7,0) ->  | I180: =VLOOKUP(A180,'[1]合同信息 '!$F$1:$M$438,8,0) ->  | J180: 1458394262@qq.com | M180: 无锡市新吴区菱湖大道200号中国传感网国际创新园C1座209 | O180: 利用自有资金对外投资。（依法须经批准的项目，经相关部门批准后方可开展经营活动） | W180: 挂靠 | Z180: a0a475cf454cf9a06979034098167b9e | AA180: 禁用 | AB180: 0 | AC180: now()
A181: 无锡中科君芯企业管理合伙企业（有限合伙） | B181: 91320200091492265J | C181: 1 | D181: 1 | E181: 2014-01-28 | F181: 无锡中科锡产企业管理有限责任公司（委派代表 连永懿） | G181: 0510-81884888 | H181: =VLOOKUP(A181,'[1]合同信息 '!$F$1:$M$438,7,0) ->  | I181: =VLOOKUP(A181,'[1]合同信息 '!$F$1:$M$438,8,0) ->  | J181: junshine@cas-junshine.com | M181: 无锡新区菱湖大道200号中国传感网国际创新园D2-503 | O181: 企业管理（不含投资与资产管理）。（依法须经批准的项目,经相关部门批准后方可开展经营活动） | W181: 挂靠 | Z181: a0a475cf454cf9a06979034098167b9e | AA181: 禁用 | AB181: 0 | AC181: now()
A182: 无锡凯必特斯半导体科技有限公司 | B182: 91320214321171652D | C182: 2000 | D182: 1 | E182: 2014-11-03 | F182: 鲜于居 | G182: 18651579618 | H182: =VLOOKUP(A182,'[1]合同信息 '!$F$1:$M$438,7,0) -> 王丕松 | I182: =VLOOKUP(A182,'[1]合同信息 '!$F$1:$M$438,8,0) -> 13656191264 | J182: 18651579618@qq.com | M182: 无锡新吴区菱湖大道200号中国传感网国际创新园E2-108 | O182: 电子产品、通用机械设备、五金产品的研发、销售；加热带、阀门、半导体设备零部件、电子工业专用设备的组装、维修；自营和代理各类商品和技术的进出口业务（国家限定公司经营或禁止进出口的商品和技术除外）；技术服务。（依法须经批准的项目，经相关部门批准后方可开展经营活动） | W182: 在园 | X182: 2 | Z182: a0a475cf454cf9a06979034098167b9e | AA182: 启用 | AB182: 1 | AC182: now()
A183: 无锡微软艾柏通讯技术有限公司 | B183: 91320214MA1W3XKG2G | C183: 1000 | D183: 1 | E183: 2018-02-09 | F183: 仇上玉 | G183: 15150111853 | H183: =VLOOKUP(A183,'[1]合同信息 '!$F$1:$M$438,7,0) ->  | I183: =VLOOKUP(A183,'[1]合同信息 '!$F$1:$M$438,8,0) ->  | J183: - | M183: 无锡市新吴区菱湖大道200号B区202 | O183: 科技企业孵化;通信网络支撑系统技术服务;技术推广;软件开发;云计算;传感网信息技术服务;物联网信息技术服务;新一代宽带无线移动通信系统开发;数据处理;计算机系统服务;基础软件服务、应用软件服务;网络技术服务;企业策划、设计;公共关系服务;会议服务;信息安全服务;承办展览展示活动;电脑动画设计;组织文化艺术交流活动（不含营业性演出）;设计、制作、代理、发布国内广告;房屋租赁（不含融资租赁）。（依法须经批准的项目,经相关部门批准后方可开展经营活动） | W183: 挂靠 | Z183: a0a475cf454cf9a06979034098167b9e | AA183: 禁用 | AB183: 0 | AC183: now()
A184: 无锡中水通实业投资合伙企业（有限合伙） | B184: 91320200MA1MK65A8P | C184: 450 | D184: 1 | E184: 2016-04-29 | F184: 熊承惠 | G184: 13093011282 | H184: =VLOOKUP(A184,'[1]合同信息 '!$F$1:$M$438,7,0) ->  | I184: =VLOOKUP(A184,'[1]合同信息 '!$F$1:$M$438,8,0) ->  | J184: 1129901693@qq.com | M184: 无锡市菱湖大道200号中国传感网国际创新园G10-610 | O184: 行业性实业投资；企业管理咨询（不含投资咨询）；物联网领域的技术开发、技术转让、技术咨询；计算机软件的技术开发和技术转让。（依法须经批准的项目，经相关部门批准后方可开展经营活动） | W184: 挂靠 | Z184: a0a475cf454cf9a06979034098167b9e | AA184: 禁用 | AB184: 0 | AC184: now()
A185: 无锡国联新创私募投资基金有限公司 | B185: 91320214MA257MR64E | C185: 1200 | D185: 1 | E185: 2021-02-10 | F185: 沈广平 | G185: 0510-85185760 | H185: =VLOOKUP(A185,'[1]合同信息 '!$F$1:$M$438,7,0) ->  | I185: =VLOOKUP(A185,'[1]合同信息 '!$F$1:$M$438,8,0) ->  | J185: info@glxcpe.com | M185: 无锡市新吴区菱湖大道200-10号中国传感网国际创新园E1-202-905 | O185: 一般项目:私募股权投资基金管理、创业投资基金管理服务（须在中国证券投资基金业协会完成登记备案后方可从事经营活动）;股权投资;创业投资（限投资未上市企业）;以自有资金从事投资活动;企业管理咨询（除依法须经批准的项目外,凭营业执照依法自主开展经营活动） | W185: 挂靠 | Z185: a0a475cf454cf9a06979034098167b9e | AA185: 禁用 | AB185: 0 | AC185: now()
A186: 无锡旭浦能源科技有限公司 | B186: 91320211MA1QEY386G | C186: 500 | D186: 1 | E186: 2017-09-04 | F186: 吴可可 | G186: 13395133150 | H186: =VLOOKUP(A186,'[1]合同信息 '!$F$1:$M$438,7,0) -> 吴超 | I186: =VLOOKUP(A186,'[1]合同信息 '!$F$1:$M$438,8,0) -> 18662777776 | J186: oscar.wu@soltaro.cn | M186: 无锡市新吴区菱湖大道200号中国传感网国际创新园B416号 | O186: 新能源应用技术的开发;电池的研发、设计、销售;光伏设备及元器件、逆变器的研发、技术咨询、技术服务、销售;自营和代理各类商品和技术的进出口业务（国家限定公司经营或禁止进出口的商品和技术除外）。（依法须经批准的项目,经相关部门批准后方可开展经营活动） | W186: 在园 | X186: 2 | Z186: a0a475cf454cf9a06979034098167b9e | AA186: 启用 | AB186: 1 | AC186: now()
A187: 江苏瀚点智能科技有限公司 | B187: 913202115524732952 | C187: 1180 | D187: 1 | E187: 2010-03-19 | F187: 尤礼军 | G187: 15895329291 | H187: =VLOOKUP(A187,'[1]合同信息 '!$F$1:$M$438,7,0) -> 尤礼军 | I187: =VLOOKUP(A187,'[1]合同信息 '!$F$1:$M$438,8,0) -> 13912383338 | J187: 735721829@qq.com | M187: 无锡市新吴区菱湖大道200号中国传感网国际创新园B-206 | O187: 许可项目：建筑智能化系统设计；建筑智能化工程施工；消防技术服务；消防设施工程施工；各类工程建设活动；住宅室内装饰装修（依法须经批准的项目，经相关部门批准后方可开展经营活动，具体经营项目以审批结果为准）一般项目：软件开发；技术服务、技术开发、技术咨询、技术交流、技术转让、技术推广；计算机软硬件及外围设备制造；电子元器件制造；物联网设备制造；安防设备制造；电子（气）物理设备及其他电子设备制造；信息系统集成服务；物联网技术服务；物联网应用服务；数据处理和存储支持服务；住宅水电安装维护服务；环保咨询服务；集成电路设计；计算机软硬件及辅助设备批发；计算机软硬件及辅助设备零售；电子产品销售；安防设备销售；消防器材销售；环境保护专用设备销售；制冷、空调设备销售；电气机械设备销售；建筑材料销售；五金产品零售；电线、电缆经营；第二类医疗器械销售；食用农产品批发（除依法须经批准的项目外，凭营业执照依法自主开展经营活动） | W187: 在园 | X187: 2 | Z187: a0a475cf454cf9a06979034098167b9e | AA187: 启用 | AB187: 1 | AC187: now()
A188: 江苏彰旗物联网科技有限公司 | B188: 91320211MA1NNR869Q | C188: 2000 | D188: 1 | E188: 2017-03-30 | F188: 蒋宇峰 | G188: 0510-88238020 | H188: =VLOOKUP(A188,'[1]合同信息 '!$F$1:$M$438,7,0) -> 钱美新 | I188: =VLOOKUP(A188,'[1]合同信息 '!$F$1:$M$438,8,0) -> 15961845337 | J188: 1351628382@qq.com | M188: 无锡市新吴区菱湖大道200号中国传感网国际创新园G10-802 | O188: 物联网系统开发、制造、销售及设计服务;集成电路设计、制造、销售;自营和代理各类商品和技术的进出口（国家限定企业经营或禁止进出口的商品和技术除外）。（依法须经批准的项目,经相关部门批准后方可开展经营活动） | W188: 在园 | X188: 2 | Z188: a0a475cf454cf9a06979034098167b9e | AA188: 启用 | AB188: 1 | AC188: now()
A189: 盛奕半导体科技（无锡）有限公司 | B189: 91320214MA1XD32R1A | C189: 500 | D189: 1 | E189: 2018-10-29 | F189: 王贝易 | G189: 0510-88362775 | H189: =VLOOKUP(A189,'[1]合同信息 '!$F$1:$M$438,7,0) -> 王贝易 | I189: =VLOOKUP(A189,'[1]合同信息 '!$F$1:$M$438,8,0) -> 18621667765 | J189: yuyanhong@sy-semitech.com | M189: 无锡市新吴区菱湖大道200号中国物联网国际创新园F7号 | O189: 半导体技术开发、技术服务、技术咨询、技术转让;半导体设备的生产、销售、安装、维修、检测;电子产品、机电设备、机械设备及配件、仪器仪表、化工原料及产品（危险化学品经营凭许可证）、金属材料、环保设备、金属制品、橡塑制品、机电设备、五金交电、建筑建材、化工原料（除危险品）、消防器材、包装材料、家具用品、办公用品、日用百货、清洁用品的销售;自营和代理各类商品和技术的进出口（国家限定公司经营或禁止进出口的商品和技术除外）。（依法须经批准的项目,经相关部门批准后方可开展经营活动）许可项目:各类工程建设活动（依法须经批准的项目,经相关部门批准后方可开展经营活动,具体经营项目以审批结果为准）一般项目:工程管理服务（除依法须经批准的项目外,凭营业执照依法自主开展经营活动） | W189: 在园 | X189: 2 | Z189: a0a475cf454cf9a06979034098167b9e | AA189: 启用 | AB189: 1 | AC189: now()
A190: 问天鼎讯量子科技（无锡）有限公司 | B190: 91320214MA22JETH8N | C190: 2000 | D190: 1 | E190: 2020-09-24 | F190: 黎斌 | G190: 0510-68789595 | H190: =VLOOKUP(A190,'[1]合同信息 '!$F$1:$M$438,7,0) -> 黎斌 | I190: =VLOOKUP(A190,'[1]合同信息 '!$F$1:$M$438,8,0) -> 13855169313 | J190: chuxf@bjzjdx.com | M190: 无锡市新吴区菱湖大道200号中国物联网国际创新园D2-607 | O190: 许可项目:各类工程建设活动（依法须经批准的项目,经相关部门批准后方可开展经营活动,具体经营项目以审批结果为准）一般项目:技术服务、技术开发、技术咨询、技术交流、技术转让、技术推广;通信设备制造;光通信设备制造;通信传输设备专业修理;通信交换设备专业修理;通信设备销售;光通信设备销售;互联网设备制造;网络设备制造;云计算设备制造;物联网设备制造;计算机软硬件及外围设备制造;卫星通信服务;国内贸易代理;销售代理;工业控制计算机及系统销售;电子产品销售;软件开发;信息系统集成服务;信息技术咨询服务;计算机及通讯设备租赁;物联网设备销售;网络设备销售;会议及展览服务;工业控制计算机及系统制造;集成电路制造;集成电路芯片及产品制造;集成电路销售;物联网技术研发;物联网技术服务;信息安全设备制造;信息安全设备销售;网络与信息安全软件开发;互联网安全服务;计算机软硬件及辅助设备批发;物联网应用服务;计算机系统服务;计算机软硬件及辅助设备零售;软件销售;信息系统运行维护服务;互联网设备销售（除依法须经批准的项目外,凭营业执照依法自主开展经营活动） | W190: 在园 | X190: 2 | Z190: a0a475cf454cf9a06979034098167b9e | AA190: 启用 | AB190: 1 | AC190: now()
A191: 无锡生科一号咨询服务合伙企业（有限合伙） | B191: 91320214MA23QR7Q6C | C191: 6000 | D191: 1 | E191: 2020-12-10 | F191: - | G191: 0510-85185760 | H191: =VLOOKUP(A191,'[1]合同信息 '!$F$1:$M$438,7,0) ->  | I191: =VLOOKUP(A191,'[1]合同信息 '!$F$1:$M$438,8,0) ->  | J191: info@glxcpe.com | M191: 无锡市新吴区菱湖大道200号中国传感网国际创新园E1-202-901 | O191: 一般项目：社会经济咨询服务；以自有资金从事投资活动（除依法须经批准的项目外，凭营业执照依法自主开展经营活动） | W191: 挂靠 | Z191: a0a475cf454cf9a06979034098167b9e | AA191: 禁用 | AB191: 0 | AC191: now()
A192: 江苏深网科技有限公司 | B192: 91320214MA20EJA45X | C192: 1000 | D192: 1 | E192: 2019-11-18 | F192: 王传林 | G192: 13915358105 | H192: =VLOOKUP(A192,'[1]合同信息 '!$F$1:$M$438,7,0) -> 王传林 | I192: =VLOOKUP(A192,'[1]合同信息 '!$F$1:$M$438,8,0) -> 13915358105 | J192: xiely@jsdeepnet.com | M192: 无锡市新吴区菱湖大道200号中国物联网国际创新园A601号 | O192: 计算机网络及软硬件的技术开发、技术转让、技术服务；系统集成；信息技术咨询服务；数据处理和存储服务；计算机软硬件及辅助设备的销售；自营和代理各类商品及技术的进出口（国家限定公司经营或禁止进出口的商品和技术除外）。（依法须经批准的项目，经相关部门批准后方可开展经营活动） | W192: 在园 | X192: 2 | Z192: a0a475cf454cf9a06979034098167b9e | AA192: 启用 | AB192: 1 | AC192: now()
A193: 江苏无锡国鹏航空投资中心（有限合伙） | B193: 91320214MA26T03T0P | C193: 100100 | D193: 1 | E193: 2021-08-13 | F193: 无锡国曦投资有限公司 | G193: 0510-82740100 | H193: =VLOOKUP(A193,'[1]合同信息 '!$F$1:$M$438,7,0) ->  | I193: =VLOOKUP(A193,'[1]合同信息 '!$F$1:$M$438,8,0) ->  | J193: 1335498427@qq.com | M193: 无锡市新吴区菱湖大道200-10号中国传感网国际创新园E1-202-29 | O193: 一般项目:以自有资金从事投资活动（除依法须经批准的项目外,凭营业执照依法自主开展经营活动） | W193: 挂靠 | Z193: a0a475cf454cf9a06979034098167b9e | AA193: 禁用 | AB193: 0 | AC193: now()
A194: 摩诃科技无锡有限公司 | B194: 91320214MA1MUDEB7J | C194: 1000 | D194: 1 | E194: 2016-09-14 | F194: 许爱花 | G194: 0510-85385215 | H194: =VLOOKUP(A194,'[1]合同信息 '!$F$1:$M$438,7,0) -> 于洋 | I194: =VLOOKUP(A194,'[1]合同信息 '!$F$1:$M$438,8,0) -> 18914989168 | J194: zhuli@imohe.com | M194: 无锡市新吴区菱湖大道200号中国物联网国际创新园G10-801 | O194: 一般项目:软件开发;软件销售;软件外包服务;网络与信息安全软件开发;人工智能应用软件开发;工业互联网数据服务;工业机器人制造;工业控制计算机及系统制造;工业控制计算机及系统销售;信息技术咨询服务;信息系统运行维护服务;技术服务、技术开发、技术咨询、技术交流、技术转让、技术推广;数字技术服务;业务培训（不含教育培训、职业技能培训等需取得许可的培训）;技术进出口（除依法须经批准的项目外,凭营业执照依法自主开展经营活动） | W194: 在园 | X194: 2 | Z194: a0a475cf454cf9a06979034098167b9e | AA194: 启用 | AB194: 1 | AC194: now()
A195: 无锡超信工业外包有限公司 | B195: 913202143392037208 | C195: 500 | D195: 1 | E195: 2015-06-05 | F195: 段波浪 | G195: 0510-88520666 | H195: =VLOOKUP(A195,'[1]合同信息 '!$F$1:$M$438,7,0) -> 段波浪 | I195: =VLOOKUP(A195,'[1]合同信息 '!$F$1:$M$438,8,0) -> 15852804026 | J195: zoegao@mail.chaosin.com | M195: 无锡市新吴区菱湖大道200号中国物联网国际创新园A301-1 | O195: 许可项目:货物进出口;技术进出口;进出口代理;职业中介活动;劳务派遣服务（依法须经批准的项目,经相关部门批准后方可开展经营活动,具体经营项目以审批结果为准）一般项目:人力资源服务（不含职业中介活动）;软件开发;技术服务、技术开发、技术咨询、技术交流、技术转让、技术推广;社会经济咨询服务;供应链管理服务;信息技术咨询服务;单位后勤管理服务;电子元器件制造;电力电子元器件制造;电子元器件与机电组件设备销售;通用设备制造（不含特种设备制造）;电器辅件制造;光伏设备及元器件制造;日用杂品制造;文具制造;体育用品制造;照明器具制造;服饰制造;劳动保护用品生产;计算器设备制造;光电子器件制造;电子专用材料制造;半导体照明器件制造;集成电路芯片设计及服务;数控机床制造;机械零件、零部件加工;铸造机械制造;气压动力机械及元件制造;变压器、整流器和电感器制造;安防设备制造;气体压缩机械制造;电机制造（除依法须经批准的项目外,凭营业执照依法自主开展经营活动） | W195: 在园 | X195: 2 | Z195: a0a475cf454cf9a06979034098167b9e | AA195: 启用 | AB195: 1 | AC195: now()
A196: 无锡医迈德科技有限公司 | B196: 91320214346080298E | C196: 1000 | D196: 1 | E196: 2015-06-19 | F196: 朱宏宽 | G196: 0510-85386822 | H196: =VLOOKUP(A196,'[1]合同信息 '!$F$1:$M$438,7,0) -> 朱宏宽 | I196: =VLOOKUP(A196,'[1]合同信息 '!$F$1:$M$438,8,0) -> 13911076973 | J196: 346007703@qq.com | M196: 无锡新吴区菱湖大道200号中国传感网国际创新园D2-303 | O196: 技术推广服务；经济贸易咨询；医疗器械的研发；通用机械配件、电子元器件的销售；计算机软件的研发、销售、技术服务；组织文化艺术交流活动；会议会展服务。（依法须经批准的项目，经相关部门批准后方可开展经营活动） | W196: 在园 | X196: 2 | Z196: a0a475cf454cf9a06979034098167b9e | AA196: 启用 | AB196: 1 | AC196: now()
A197: 无锡瓴博科技合伙企业（有限合伙） | B197: 91320214MA27CAXJ51 | C197: 2492 | D197: 1 | E197: 2021-11-04 | F197: 无锡瓴域科技合伙企业（有限合伙） | G197: 0510-68101580 | H197: =VLOOKUP(A197,'[1]合同信息 '!$F$1:$M$438,7,0) ->  | I197: =VLOOKUP(A197,'[1]合同信息 '!$F$1:$M$438,8,0) ->  | J197: jennie.qian@len-technology.com | M197: 无锡市新吴区菱湖大道200-28（A）栋201 | O197: 一般项目：技术服务、技术开发、技术咨询、技术交流、技术转让、技术推广；信息技术咨询服务；企业管理；企业管理咨询（除依法须经批准的项目外，凭营业执照依法自主开展经营活动） | W197: 挂靠 | Z197: a0a475cf454cf9a06979034098167b9e | AA197: 禁用 | AB197: 0 | AC197: now()
A198: 无锡吉成生物科技有限公司 | B198: 91320214MA1P83J63H | C198: 1000 | D198: 1 | E198: 2017-06-20 | F198: 朱成 | G198: 18914162535 | H198: =VLOOKUP(A198,'[1]合同信息 '!$F$1:$M$438,7,0) -> 朱成 | I198: =VLOOKUP(A198,'[1]合同信息 '!$F$1:$M$438,8,0) -> 13861811199 | J198: 1196692864@QQ.COM | M198: 无锡市新吴区菱湖大道200号中国传感网国际创新园E1-805 | O198: 生物技术、医疗器械、计算机软硬件、网络技术的研发、技术服务、技术咨询、技术转让；医疗用品及器材、电子产品的销售；医疗仪器设备及器械修理；商务咨询服务（不含投资咨询）；自营和代理各类商品及技术的进出口业务（国家限定企业经营或禁止进出口的商品和技术除外）。依法须经批准的项目，经相关部门批准后方可开展经营活动） | W198: 在园 | X198: 2 | Z198: a0a475cf454cf9a06979034098167b9e | AA198: 启用 | AB198: 1 | AC198: now()
A199: 江苏壹佳环球品牌管理有限公司 | B199: 91320213MA1WU2M31K | C199: 1000 | D199: 1 | E199: 2018-07-05 | F199: 胡诸鸿 | G199: 0510-82828199 | H199: =VLOOKUP(A199,'[1]合同信息 '!$F$1:$M$438,7,0) ->  | I199: =VLOOKUP(A199,'[1]合同信息 '!$F$1:$M$438,8,0) ->  | J199: huzhuhong@yijiagt.com | M199: 无锡市新吴区菱湖大道200号中国传感网国际创新园E2-506 | O199: 电子产品及通讯设备（不含卫星地面接收设施和发射装置）、计算机、软件及辅助设备的研究与开发、技术咨询、技术转让及销售;信息系统集成服务;母婴用品、食品、医疗器械、家用电器、文化用品、照相器材、化妆品、清洁用品、办公用品、体育用品、针纺织品、服装、日用品、家具、珠宝首饰、眼镜、玩具、汽车零配件、仪器仪表、陶瓷制品、花卉、苗木、装饰装潢材料的销售;自营和代理各类商品及技术的进出口业务（国家限定公司经营或禁止进出口的商品和技术除外）;仓储服务。（依法须经批准的项目,经相关部门批准后方可开展经营活动） 许可项目:第一类增值电信业务;第二类增值电信业务;在线数据处理与交易处理业务（经营类电子商务）（依法须经批准的项目,经相关部门批准后方可开展经营活动,具体经营项目以审批结果为准） 一般项目:人力资源服务（不含职业中介活动、劳务派遣服务）;物联网技术研发;贸易经纪;政府采购代理服务;科技推广和应用服务;科技中介服务;品牌管理;广告设计、代理;图文设计制作;办公服务（标志牌、铜牌的设计、制作服务,奖杯、奖牌、奖章、锦旗的设计、制作）;专业设计服务;第二类医疗器械销售;软件开发;信息系统集成服务;技术服务、技术开发、技术咨询、技术交流、技术转让、技术推广（除依法须经批准的项目外,凭营业执照依法自主开展经营活动） | W199: 挂靠 | Z199: a0a475cf454cf9a06979034098167b9e | AA199: 禁用 | AB199: 0 | AC199: now()
A200: 中科创新物联网产业无锡有限公司 | B200: 91320213MA1MDXJ19X | C200: 5000 | D200: 1 | E200: 2015-12-31 | F200: 黄伟 | G200: 17714555279 | H200: =VLOOKUP(A200,'[1]合同信息 '!$F$1:$M$438,7,0) ->  | I200: =VLOOKUP(A200,'[1]合同信息 '!$F$1:$M$438,8,0) ->  | J200: zhuangxiaodan@csmic.ac.cn | M200: 无锡菱湖大道200号中国传感网国际创新园C栋4楼 | O200: 物联网、传感器相关领域内系统、产品和设备研发、销售、维修;物联网及信息系统集成、软件研发、技术培训、技术转让、咨询服务;利用自有资产对外投资;会务服务。（依法须经批准的项目,经相关部门批准后方可开展经营活动） | W200: 挂靠 | Z200: a0a475cf454cf9a06979034098167b9e | AA200: 禁用 | AB200: 0 | AC200: now()
... 1550 more rows

Sheet Sheet2

Sheet Sheet3
